Workbook

Sheet Events
A3: FELL CHAMPIONSHIPS 2017 | B3: ROAD CHAMPIONSHIPS 2017 | C3: EXTREME CHAMPIONSHIPS 2017 | D3: XC CHAMPIONSHIPS 2017 | E3: ALL ROUND CHAMPIONSHIPS 2017
A4: (Best 5 of 9) | B4: (Best 5 of 9) | C4: Best 3 of 5) | D4: (Best 4 of 7) | E4: (Best 5 races to qualify)
A5: Jan 28th Hoofstones 8M BM | B5: Mar 19th Bradford 10K | C5: Feb 4th Rombald Stride 23M | D5: Jan17 Yorkshire Champs | E5: Best 2 Fell
A6: Feb 18th Bleasdale Circle 5M AS | B6: May 3/10/17thEsholt (Series) 5K YVAA | C6: Apr 29th 3 Peaks 23.2M AL | D6: Feb17 National Champs | E6: Best 2 Road
A7: Mar 4th Stan Bradshaw Pendle Round 10.4M BM | B7: June 8th Bronte 5 5M YVAA | C7: June 10th Ennerdale 22.9M AL | D7: Any (best) Open Kross Challenge | E7: Best XC Or Best Extreme
A8: Apr 8th Coledale Horseshoe 8.5M AM | B8: July 5th Helen Windsor 10K | C8: Aug 5th Borrowdale 16.8M AL | D8: Oct17 1st WYXC Race
A9: July 2nd Oakworth Haul 5.6M | B9: Aug 3rd UAK Track 1M | C9: Nov 18th Full Tour of Pendle 16.8M AL | D9: Oct17 2nd WYXC Race
A10: Sept 2nd Grisedale Horseshoe 9.9M AM | B10: Aug 19th Burnsall 10M | D10: Nov17 3rd WYXC Race
A11: Sept 23rd Great Whernside 4M AS | B11: Oct 29th Holmfirth 10K | D11: Dec17 4th WYXC Race
A12: Dec 9th Mytholmroyd 6M AS | B12: Best ½ Marathon
A13: Dec 27th Guisborough Wood 5.5M BS | B13: Best Marathon

Sheet Overall Champs
U3: =TODAY() -> 2017-05-11
F4: Best Road | G4: 2nd Best Road | H4: Best Fell | I4: 2nd Best Fell | J4: Best Cross Country | K4: Best Extreme | R4: =F4 -> Best Road | S4: 2nd Best Road | T4: Best Fell | U4: 2nd Best Fell | V4: Best Cross Country | W4: Best Extreme
B5: Pos | C5: Name | F5: 1 | G5: 2 | H5: 3 | I5: 4 | J5: 5 | L5: Scoring Total | N5: Pos | O5: Name | R5: 1 | S5: 2 | T5: 3 | U5: 4 | V5: 5 | X5: Scoring Total
J6: (Best Score Counts) | V6: (Best Score Counts)
B7: =RANK(L7,$L$7:$L$47,0) -> 1 | C7: John-Paul Hopkinson | D7: M | E7: =VLOOKUP($C7,'Age Cat'!F:G,2,FALSE) -> V40 | F7: =IFERROR(VLOOKUP($C7,'2017 Road Table'!$B$3:$T$100,15,FALSE),"") -> 25 | G7: =IFERROR(VLOOKUP($C7,'2017 Road Table'!$B$3:$T$100,16,FALSE),"") ->  | H7: =IFERROR(VLOOKUP($C7,'2017 fell Table'!$B$3:$T$101,15,FALSE),"") -> 25 | I7: =IFERROR(VLOOKUP(C7,'2017 fell Table'!$B$3:$T$101,16,FALSE),"") -> 24 | K7: =IFERROR(VLOOKUP(C7,'2017 extreme Table'!$B$3:$T$114,11,FALSE),"") -> 25 | L7: =SUM(F7:I7)+MAX(J7:K7) -> 99 | N7: =RANK(X7,$X$7:$X$37,0) -> 1 | O7: Tracey Hodgson | P7: F | Q7: =VLOOKUP($O7,'Age Cat'!F:G,2,FALSE) -> V30 | R7: =IFERROR(VLOOKUP($O7,'2017 Road Table'!$B$3:$T$100,15,FALSE),"") -> 22 | S7: =IFERROR(VLOOKUP($O7,'2017 Road Table'!$B$3:$T$100,16,FALSE),"") -> 18 | T7: =IFERROR(VLOOKUP($O7,'2017 fell Table'!$B$3:$T$101,15,FALSE),"") -> 24 | U7: =IFERROR(VLOOKUP(O7,'2017 fell Table'!$B$3:$T$101,16,FALSE),"") -> 24 | V7: =IFERROR(VLOOKUP(O7,'2017 xc Table'!$B$3:$T$100,13,FALSE),"") ->  | W7: =IFERROR(VLOOKUP(O7,'2017 extreme Table'!$B$3:$T$114,11,FALSE),"") ->  | X7: =SUM(R7:U7)+MAX(V7:W7) -> 88
B8: =RANK(L8,$L$7:$L$47,0) -> 2 | C8: John Conroy | D8: M | E8: =VLOOKUP($C8,'Age Cat'!F:G,2,FALSE) -> V40 | F8: =IFERROR(VLOOKUP($C8,'2017 Road Table'!$B$3:$T$100,15,FALSE),"") -> 23 | G8: =IFERROR(VLOOKUP($C8,'2017 Road Table'!$B$3:$T$100,16,FALSE),"") ->  | H8: =IFERROR(VLOOKUP($C8,'2017 fell Table'!$B$3:$T$101,15,FALSE),"") -> 21 | I8: =IFERROR(VLOOKUP(C8,'2017 fell Table'!$B$3:$T$101,16,FALSE),"") -> 20 | J8: =IFERROR(VLOOKUP(C8,'2017 xc Table'!$B$3:$T$100,13,FALSE),"") -> 24 | K8: =IFERROR(VLOOKUP(C8,'2017 extreme Table'!$B$3:$T$114,11,FALSE),"") -> 20 | L8: =SUM(F8:I8)+MAX(J8:K8) -> 88 | N8: =RANK(X8,$X$7:$X$37,0) -> 2 | O8: Hannah Thom | P8: F | Q8: =VLOOKUP($O8,'Age Cat'!F:G,2,FALSE) -> S | R8: =IFERROR(VLOOKUP($O8,'2017 Road Table'!$B$3:$T$100,15,FALSE),"") ->  | S8: =IFERROR(VLOOKUP($O8,'2017 Road Table'!$B$3:$T$100,16,FALSE),"") ->  | T8: =IFERROR(VLOOKUP($O8,'2017 fell Table'!$B$3:$T$101,15,FALSE),"") -> 25 | U8: =IFERROR(VLOOKUP(O8,'2017 fell Table'!$B$3:$T$101,16,FALSE),"") -> 24 | V8: =IFERROR(VLOOKUP(O8,'2017 xc Table'!$B$3:$T$100,13,FALSE),"") ->  | W8: =IFERROR(VLOOKUP(O8,'2017 extreme Table'!$B$3:$T$114,11,FALSE),"") -> 22 | X8: 71
B9: =RANK(L9,$L$7:$L$47,0) -> 3 | C9: Ian Willis | D9: M | E9: =VLOOKUP($C9,'Age Cat'!F:G,2,FALSE) -> V40 | F9: =IFERROR(VLOOKUP($C9,'2017 Road Table'!$B$3:$T$100,15,FALSE),"") ->  | G9: =IFERROR(VLOOKUP($C9,'2017 Road Table'!$B$3:$T$100,16,FALSE),"") ->  | H9: =IFERROR(VLOOKUP($C9,'2017 fell Table'!$B$3:$T$101,15,FALSE),"") -> 25 | I9: =IFERROR(VLOOKUP(C9,'2017 fell Table'!$B$3:$T$101,16,FALSE),"") -> 24 | J9: =IFERROR(VLOOKUP(C9,'2017 xc Table'!$B$3:$T$100,13,FALSE),"") -> 25 | K9: =IFERROR(VLOOKUP(C9,'2017 extreme Table'!$B$3:$T$114,11,FALSE),"") ->  | L9: 74 | N9: =RANK(X9,$X$7:$X$37,0) -> 3 | O9: Hannah Yates | P9: F | Q9: =VLOOKUP($O9,'Age Cat'!F:G,2,FALSE) -> S | R9: =IFERROR(VLOOKUP($O9,'2017 Road Table'!$B$3:$T$100,15,FALSE),"") -> 24 | S9: =IFERROR(VLOOKUP($O9,'2017 Road Table'!$B$3:$T$100,16,FALSE),"") -> 22 | T9: =IFERROR(VLOOKUP($O9,'2017 fell Table'!$B$3:$T$101,15,FALSE),"") ->  | U9: =IFERROR(VLOOKUP(O9,'2017 fell Table'!$B$3:$T$101,16,FALSE),"") ->  | V9: =IFERROR(VLOOKUP(O9,'2017 xc Table'!$B$3:$T$100,13,FALSE),"") ->  | W9: =IFERROR(VLOOKUP(O9,'2017 extreme Table'!$B$3:$T$114,11,FALSE),"") -> 24 | X9: 70
B10: =RANK(L10,$L$7:$L$47,0) -> 4 | C10: Richard Butter | D10: M | E10: =VLOOKUP($C10,'Age Cat'!F:G,2,FALSE) -> V40 | F10: =IFERROR(VLOOKUP($C10,'2017 Road Table'!$B$3:$T$100,15,FALSE),"") -> 22 | G10: =IFERROR(VLOOKUP($C10,'2017 Road Table'!$B$3:$T$100,16,FALSE),"") ->  | H10: =IFERROR(VLOOKUP($C10,'2017 fell Table'!$B$3:$T$101,15,FALSE),"") -> 20 | I10: =IFERROR(VLOOKUP(C10,'2017 fell Table'!$B$3:$T$101,16,FALSE),"") -> 19 | J10: =IFERROR(VLOOKUP(C10,'2017 xc Table'!$B$3:$T$100,13,FALSE),"") ->  | K10: =IFERROR(VLOOKUP(C10,'2017 extreme Table'!$B$3:$T$114,11,FALSE),"") ->  | L10: 61 | N10: =RANK(X10,$X$7:$X$37,0) -> 3 | O10: Amanda Sterling | P10: F | Q10: =VLOOKUP($O10,'Age Cat'!F:G,2,FALSE) -> V40 | R10: =IFERROR(VLOOKUP($O10,'2017 Road Table'!$B$3:$T$100,15,FALSE),"") -> 24 | S10: =IFERROR(VLOOKUP($O10,'2017 Road Table'!$B$3:$T$100,16,FALSE),"") -> 23 | T10: =IFERROR(VLOOKUP($O10,'2017 fell Table'!$B$3:$T$101,15,FALSE),"") ->  | U10: =IFERROR(VLOOKUP(O10,'2017 fell Table'!$B$3:$T$101,16,FALSE),"") ->  | V10: =IFERROR(VLOOKUP(O10,'2017 xc Table'!$B$3:$T$100,13,FALSE),"") ->  | W10: =IFERROR(VLOOKUP(O10,'2017 extreme Table'!$B$3:$T$114,11,FALSE),"") -> 23 | X10: 70
B11: =RANK(L11,$L$7:$L$47,0) -> 4 | C11: Peter Lloyd | D11: M | E11: =VLOOKUP($C11,'Age Cat'!F:G,2,FALSE) -> V30 | F11: =IFERROR(VLOOKUP($C11,'2017 Road Table'!$B$3:$T$100,15,FALSE),"") ->  | G11: =IFERROR(VLOOKUP($C11,'2017 Road Table'!$B$3:$T$100,16,FALSE),"") ->  | H11: =IFERROR(VLOOKUP($C11,'2017 fell Table'!$B$3:$T$101,15,FALSE),"") -> 22 | I11: =IFERROR(VLOOKUP(C11,'2017 fell Table'!$B$3:$T$101,16,FALSE),"") -> 20 | J11: =IFERROR(VLOOKUP(C11,'2017 xc Table'!$B$3:$T$100,13,FALSE),"") ->  | K11: =IFERROR(VLOOKUP(C11,'2017 extreme Table'!$B$3:$T$114,11,FALSE),"") -> 19 | L11: 61 | N11: =RANK(X11,$X$7:$X$37,0) -> 5 | O11: Tizz Woffenden | P11: F | Q11: S | R11: =IFERROR(VLOOKUP($O11,'2017 Road Table'!$B$3:$T$100,15,FALSE),"") -> 25 | S11: =IFERROR(VLOOKUP($O11,'2017 Road Table'!$B$3:$T$100,16,FALSE),"") ->  | T11: =IFERROR(VLOOKUP($O11,'2017 fell Table'!$B$3:$T$101,15,FALSE),"") ->  | U11: =IFERROR(VLOOKUP(O11,'2017 fell Table'!$B$3:$T$101,16,FALSE),"") ->  | V11: =IFERROR(VLOOKUP(O11,'2017 xc Table'!$B$3:$T$100,13,FALSE),"") -> 25 | W11: =IFERROR(VLOOKUP(O11,'2017 extreme Table'!$B$3:$T$114,11,FALSE),"") ->  | X11: 50
B12: =RANK(L12,$L$7:$L$47,0) -> 6 | C12: Scott Bairstow | D12: M | E12: =VLOOKUP($C12,'Age Cat'!F:G,2,FALSE) -> V40 | F12: =IFERROR(VLOOKUP($C12,'2017 Road Table'!$B$3:$T$100,15,FALSE),"") ->  | G12: =IFERROR(VLOOKUP($C12,'2017 Road Table'!$B$3:$T$100,16,FALSE),"") ->  | H12: =IFERROR(VLOOKUP($C12,'2017 fell Table'!$B$3:$T$101,15,FALSE),"") -> 25 | I12: =IFERROR(VLOOKUP(C12,'2017 fell Table'!$B$3:$T$101,16,FALSE),"") ->  | J12: =IFERROR(VLOOKUP(C12,'2017 xc Table'!$B$3:$T$100,13,FALSE),"") -> 25 | K12: =IFERROR(VLOOKUP(C12,'2017 extreme Table'!$B$3:$T$114,11,FALSE),"") ->  | L12: =SUM(F12:I12)+MAX(J12:K12) -> 50 | N12: =RANK(X12,$X$7:$X$37,0) -> 5 | O12: Hilary Barber | P12: F | Q12: =VLOOKUP($O12,'Age Cat'!F:G,2,FALSE) -> V50 | R12: =IFERROR(VLOOKUP($O12,'2017 Road Table'!$B$3:$T$100,15,FALSE),"") ->  | S12: =IFERROR(VLOOKUP($O12,'2017 Road Table'!$B$3:$T$100,16,FALSE),"") ->  | T12: =IFERROR(VLOOKUP($O12,'2017 fell Table'!$B$3:$T$101,15,FALSE),"") -> 25 | U12: =IFERROR(VLOOKUP(O12,'2017 fell Table'!$B$3:$T$101,16,FALSE),"") -> 25 | V12: =IFERROR(VLOOKUP(O12,'2017 xc Table'!$B$3:$T$100,13,FALSE),"") ->  | W12: =IFERROR(VLOOKUP(O12,'2017 extreme Table'!$B$3:$T$114,11,FALSE),"") ->  | X12: 50
B13: =RANK(L13,$L$7:$L$47,0) -> 6 | C13: Paul Crabtree | D13: M | E13: =VLOOKUP($C13,'Age Cat'!F:G,2,FALSE) -> V40 | F13: =IFERROR(VLOOKUP($C13,'2017 Road Table'!$B$3:$T$100,15,FALSE),"") ->  | G13: =IFERROR(VLOOKUP($C13,'2017 Road Table'!$B$3:$T$100,16,FALSE),"") ->  | H13: =IFERROR(VLOOKUP($C13,'2017 fell Table'!$B$3:$T$101,15,FALSE),"") -> 25 | I13: =IFERROR(VLOOKUP(C13,'2017 fell Table'!$B$3:$T$101,16,FALSE),"") -> 25 | J13: =IFERROR(VLOOKUP(C13,'2017 xc Table'!$B$3:$T$100,13,FALSE),"") ->  | K13: =IFERROR(VLOOKUP(C13,'2017 extreme Table'!$B$3:$T$114,11,FALSE),"") ->  | L13: 50 | N13: =RANK(X13,$X$7:$X$37,0) -> 7 | O13: Claire Cooper | P13: F | Q13: =VLOOKUP($O13,'Age Cat'!F:G,2,FALSE) -> V30 | R13: =IFERROR(VLOOKUP($O13,'2017 Road Table'!$B$3:$T$100,15,FALSE),"") -> 25 | S13: =IFERROR(VLOOKUP($O13,'2017 Road Table'!$B$3:$T$100,16,FALSE),"") ->  | T13: =IFERROR(VLOOKUP($O13,'2017 fell Table'!$B$3:$T$101,15,FALSE),"") ->  | U13: =IFERROR(VLOOKUP(O13,'2017 fell Table'!$B$3:$T$101,16,FALSE),"") ->  | V13: =IFERROR(VLOOKUP(O13,'2017 xc Table'!$B$3:$T$100,13,FALSE),"") -> 24 | W13: =IFERROR(VLOOKUP(O13,'2017 extreme Table'!$B$3:$T$114,11,FALSE),"") ->  | X13: 49
B14: =RANK(L14,$L$7:$L$47,0) -> 6 | C14: Tim Thom | D14: M | E14: =VLOOKUP($C14,'Age Cat'!F:G,2,FALSE) -> V50 | F14: =IFERROR(VLOOKUP($C14,'2017 Road Table'!$B$3:$T$100,15,FALSE),"") ->  | G14: =IFERROR(VLOOKUP($C14,'2017 Road Table'!$B$3:$T$100,16,FALSE),"") ->  | H14: =IFERROR(VLOOKUP($C14,'2017 fell Table'!$B$3:$T$101,15,FALSE),"") -> 21 | I14: =IFERROR(VLOOKUP(C14,'2017 fell Table'!$B$3:$T$101,16,FALSE),"") -> 18 | J14: =IFERROR(VLOOKUP(C14,'2017 xc Table'!$B$3:$T$100,13,FALSE),"") ->  | K14: =IFERROR(VLOOKUP(C14,'2017 extreme Table'!$B$3:$T$114,11,FALSE),"") -> 11 | L14: 50 | N14: =RANK(X14,$X$7:$X$37,0) -> 8 | O14: Sue Straw | P14: F | Q14: =VLOOKUP($O14,'Age Cat'!F:G,2,FALSE) -> V40 | R14: =IFERROR(VLOOKUP($O14,'2017 Road Table'!$B$3:$T$100,15,FALSE),"") -> 25 | S14: =IFERROR(VLOOKUP($O14,'2017 Road Table'!$B$3:$T$100,16,FALSE),"") -> 23 | T14: =IFERROR(VLOOKUP($O14,'2017 fell Table'!$B$3:$T$101,15,FALSE),"") ->  | U14: =IFERROR(VLOOKUP(O14,'2017 fell Table'!$B$3:$T$101,16,FALSE),"") ->  | V14: =IFERROR(VLOOKUP(O14,'2017 xc Table'!$B$3:$T$100,13,FALSE),"") ->  | W14: =IFERROR(VLOOKUP(O14,'2017 extreme Table'!$B$3:$T$114,11,FALSE),"") ->  | X14: 48
B15: =RANK(L15,$L$7:$L$47,0) -> 9 | C15: Craig Cooper | D15: M | E15: =VLOOKUP($C15,'Age Cat'!F:G,2,FALSE) -> V40 | F15: =IFERROR(VLOOKUP($C15,'2017 Road Table'!$B$3:$T$100,15,FALSE),"") -> 25 | G15: =IFERROR(VLOOKUP($C15,'2017 Road Table'!$B$3:$T$100,16,FALSE),"") -> 23 | H15: =IFERROR(VLOOKUP($C15,'2017 fell Table'!$B$3:$T$101,15,FALSE),"") ->  | I15: =IFERROR(VLOOKUP(C15,'2017 fell Table'!$B$3:$T$101,16,FALSE),"") ->  | J15: =IFERROR(VLOOKUP(C15,'2017 xc Table'!$B$3:$T$100,13,FALSE),"") ->  | K15: =IFERROR(VLOOKUP(C15,'2017 extreme Table'!$B$3:$T$114,11,FALSE),"") ->  | L15: 48 | N15: =RANK(X15,$X$7:$X$37,0) -> 9 | O15: Sarah O'Sullivan | P15: F | Q15: =VLOOKUP($O15,'Age Cat'!F:G,2,FALSE) -> V40 | R15: =IFERROR(VLOOKUP($O15,'2017 Road Table'!$B$3:$T$100,15,FALSE),"") -> 24 | S15: =IFERROR(VLOOKUP($O15,'2017 Road Table'!$B$3:$T$100,16,FALSE),"") ->  | T15: =IFERROR(VLOOKUP($O15,'2017 fell Table'!$B$3:$T$101,15,FALSE),"") ->  | U15: =IFERROR(VLOOKUP(O15,'2017 fell Table'!$B$3:$T$101,16,FALSE),"") ->  | V15: =IFERROR(VLOOKUP(O15,'2017 xc Table'!$B$3:$T$100,13,FALSE),"") -> 23 | W15: =IFERROR(VLOOKUP(O15,'2017 extreme Table'!$B$3:$T$114,11,FALSE),"") ->  | X15: 47
B16: =RANK(L16,$L$7:$L$47,0) -> 9 | C16: Tony Booth | D16: M | E16: =VLOOKUP($C16,'Age Cat'!F:G,2,FALSE) -> V40 | F16: =IFERROR(VLOOKUP($C16,'2017 Road Table'!$B$3:$T$100,15,FALSE),"") -> 24 | G16: =IFERROR(VLOOKUP($C16,'2017 Road Table'!$B$3:$T$100,16,FALSE),"") -> 24 | H16: =IFERROR(VLOOKUP($C16,'2017 fell Table'!$B$3:$T$101,15,FALSE),"") ->  | I16: =IFERROR(VLOOKUP(C16,'2017 fell Table'!$B$3:$T$101,16,FALSE),"") ->  | J16: =IFERROR(VLOOKUP(C16,'2017 xc Table'!$B$3:$T$100,13,FALSE),"") ->  | K16: =IFERROR(VLOOKUP(C16,'2017 extreme Table'!$B$3:$T$114,11,FALSE),"") ->  | L16: 48 | N16: =RANK(X16,$X$7:$X$37,0) -> 10 | O16: Diane Macdonald | P16: F | Q16: =VLOOKUP($O16,'Age Cat'!F:G,2,FALSE) -> V40 | R16: =IFERROR(VLOOKUP($O16,'2017 Road Table'!$B$3:$T$100,15,FALSE),"") ->  | S16: =IFERROR(VLOOKUP($O16,'2017 Road Table'!$B$3:$T$100,16,FALSE),"") ->  | T16: =IFERROR(VLOOKUP($O16,'2017 fell Table'!$B$3:$T$101,15,FALSE),"") -> 21 | U16: =IFERROR(VLOOKUP(O16,'2017 fell Table'!$B$3:$T$101,16,FALSE),"") ->  | V16: =IFERROR(VLOOKUP(O16,'2017 xc Table'!$B$3:$T$100,13,FALSE),"") ->  | W16: =IFERROR(VLOOKUP(O16,'2017 extreme Table'!$B$3:$T$114,11,FALSE),"") -> 25 | X16: 46
B17: =RANK(L17,$L$7:$L$47,0) -> 9 | C17: Tony Booth | D17: M | E17: =VLOOKUP($C17,'Age Cat'!F:G,2,FALSE) -> V40 | F17: =IFERROR(VLOOKUP($C17,'2017 Road Table'!$B$3:$T$100,15,FALSE),"") -> 24 | G17: =IFERROR(VLOOKUP($C17,'2017 Road Table'!$B$3:$T$100,16,FALSE),"") -> 24 | H17: =IFERROR(VLOOKUP($C17,'2017 fell Table'!$B$3:$T$101,15,FALSE),"") ->  | I17: =IFERROR(VLOOKUP(C17,'2017 fell Table'!$B$3:$T$101,16,FALSE),"") ->  | J17: =IFERROR(VLOOKUP(C17,'2017 xc Table'!$B$3:$T$100,13,FALSE),"") ->  | K17: =IFERROR(VLOOKUP(C17,'2017 extreme Table'!$B$3:$T$114,11,FALSE),"") ->  | L17: 48 | N17: =RANK(X17,$X$7:$X$37,0) -> 10 | O17: Donna Chester | P17: F | Q17: =VLOOKUP($O17,'Age Cat'!F:G,2,FALSE) -> V30 | R17: =IFERROR(VLOOKUP($O17,'2017 Road Table'!$B$3:$T$100,15,FALSE),"") -> 23 | S17: =IFERROR(VLOOKUP($O17,'2017 Road Table'!$B$3:$T$100,16,FALSE),"") ->  | T17: =IFERROR(VLOOKUP($O17,'2017 fell Table'!$B$3:$T$101,15,FALSE),"") ->  | U17: =IFERROR(VLOOKUP(O17,'2017 fell Table'!$B$3:$T$101,16,FALSE),"") ->  | V17: =IFERROR(VLOOKUP(O17,'2017 xc Table'!$B$3:$T$100,13,FALSE),"") ->  | W17: =IFERROR(VLOOKUP(O17,'2017 extreme Table'!$B$3:$T$114,11,FALSE),"") -> 23 | X17: 46
B18: =RANK(L18,$L$7:$L$47,0) -> 9 | C18: Craig Cooper | D18: M | E18: =VLOOKUP($C18,'Age Cat'!F:G,2,FALSE) -> V40 | F18: =IFERROR(VLOOKUP($C18,'2017 Road Table'!$B$3:$T$100,15,FALSE),"") -> 25 | G18: =IFERROR(VLOOKUP($C18,'2017 Road Table'!$B$3:$T$100,16,FALSE),"") -> 23 | H18: =IFERROR(VLOOKUP($C18,'2017 fell Table'!$B$3:$T$101,15,FALSE),"") ->  | I18: =IFERROR(VLOOKUP(C18,'2017 fell Table'!$B$3:$T$101,16,FALSE),"") ->  | J18: =IFERROR(VLOOKUP(C18,'2017 xc Table'!$B$3:$T$100,13,FALSE),"") ->  | K18: =IFERROR(VLOOKUP(C18,'2017 extreme Table'!$B$3:$T$114,11,FALSE),"") ->  | L18: 48 | N18: =RANK(X18,$X$7:$X$37,0) -> 12 | O18: Camille Askins | P18: F | Q18: =VLOOKUP($O18,'Age Cat'!F:G,2,FALSE) -> V40 | R18: =IFERROR(VLOOKUP($O18,'2017 Road Table'!$B$3:$T$100,15,FALSE),"") -> 22 | S18: =IFERROR(VLOOKUP($O18,'2017 Road Table'!$B$3:$T$100,16,FALSE),"") ->  | T18: =IFERROR(VLOOKUP($O18,'2017 fell Table'!$B$3:$T$101,15,FALSE),"") ->  | U18: =IFERROR(VLOOKUP(O18,'2017 fell Table'!$B$3:$T$101,16,FALSE),"") ->  | V18: =IFERROR(VLOOKUP(O18,'2017 xc Table'!$B$3:$T$100,13,FALSE),"") -> 21 | W18: =IFERROR(VLOOKUP(O18,'2017 extreme Table'!$B$3:$T$114,11,FALSE),"") ->  | X18: 43
B19: =RANK(L19,$L$7:$L$47,0) -> 13 | C19: Dave Evans | D19: M | E19: =VLOOKUP($C19,'Age Cat'!F:G,2,FALSE) -> V30 | F19: =IFERROR(VLOOKUP($C19,'2017 Road Table'!$B$3:$T$100,15,FALSE),"") ->  | G19: =IFERROR(VLOOKUP($C19,'2017 Road Table'!$B$3:$T$100,16,FALSE),"") ->  | H19: =IFERROR(VLOOKUP($C19,'2017 fell Table'!$B$3:$T$101,15,FALSE),"") -> 24 | I19: =IFERROR(VLOOKUP(C19,'2017 fell Table'!$B$3:$T$101,16,FALSE),"") -> 23 | J19: =IFERROR(VLOOKUP(C19,'2017 xc Table'!$B$3:$T$100,13,FALSE),"") ->  | K19: =IFERROR(VLOOKUP(C19,'2017 extreme Table'!$B$3:$T$114,11,FALSE),"") ->  | L19: 47 | N19: =RANK(X19,$X$7:$X$37,0) -> 13 | O19: Lorraine Bamfield | P19: F | Q19: =VLOOKUP($O19,'Age Cat'!F:G,2,FALSE) -> V40 | R19: =IFERROR(VLOOKUP($O19,'2017 Road Table'!$B$3:$T$100,15,FALSE),"") -> 21 | S19: =IFERROR(VLOOKUP($O19,'2017 Road Table'!$B$3:$T$100,16,FALSE),"") -> 20 | T19: =IFERROR(VLOOKUP($O19,'2017 fell Table'!$B$3:$T$101,15,FALSE),"") ->  | U19: =IFERROR(VLOOKUP(O19,'2017 fell Table'!$B$3:$T$101,16,FALSE),"") ->  | V19: =IFERROR(VLOOKUP(O19,'2017 xc Table'!$B$3:$T$100,13,FALSE),"") ->  | W19: =IFERROR(VLOOKUP(O19,'2017 extreme Table'!$B$3:$T$114,11,FALSE),"") ->  | X19: 41
B20: =RANK(L20,$L$7:$L$47,0) -> 14 | C20: Alfie Walker | D20: M | E20: =VLOOKUP($C20,'Age Cat'!F:G,2,FALSE) -> V40 | F20: =IFERROR(VLOOKUP($C20,'2017 Road Table'!$B$3:$T$100,15,FALSE),"") ->  | G20: =IFERROR(VLOOKUP($C20,'2017 Road Table'!$B$3:$T$100,16,FALSE),"") ->  | H20: =IFERROR(VLOOKUP($C20,'2017 fell Table'!$B$3:$T$101,15,FALSE),"") -> 23 | I20: =IFERROR(VLOOKUP(C20,'2017 fell Table'!$B$3:$T$101,16,FALSE),"") -> 22 | J20: =IFERROR(VLOOKUP(C20,'2017 xc Table'!$B$3:$T$100,13,FALSE),"") ->  | K20: =IFERROR(VLOOKUP(C20,'2017 extreme Table'!$B$3:$T$114,11,FALSE),"") ->  | L20: 45 | N20: =RANK(X20,$X$7:$X$37,0) -> 14 | O20: Lorna Hubbard | P20: F | Q20: =VLOOKUP($O20,'Age Cat'!F:G,2,FALSE) -> V30 | R20: =IFERROR(VLOOKUP($O20,'2017 Road Table'!$B$3:$T$100,15,FALSE),"") ->  | S20: =IFERROR(VLOOKUP($O20,'2017 Road Table'!$B$3:$T$100,16,FALSE),"") ->  | T20: =IFERROR(VLOOKUP($O20,'2017 fell Table'!$B$3:$T$101,15,FALSE),"") -> 25 | U20: =IFERROR(VLOOKUP(O20,'2017 fell Table'!$B$3:$T$101,16,FALSE),"") ->  | V20: =IFERROR(VLOOKUP(O20,'2017 xc Table'!$B$3:$T$100,13,FALSE),"") ->  | W20: =IFERROR(VLOOKUP(O20,'2017 extreme Table'!$B$3:$T$114,11,FALSE),"") ->  | X20: =SUM(R20:U20)+MAX(V20:W20) -> 25
B21: =RANK(L21,$L$7:$L$47,0) -> 15 | C21: Simon Wheeler | D21: M | E21: =VLOOKUP($C21,'Age Cat'!F:G,2,FALSE) -> V40 | F21: =IFERROR(VLOOKUP($C21,'2017 Road Table'!$B$3:$T$100,15,FALSE),"") ->  | G21: =IFERROR(VLOOKUP($C21,'2017 Road Table'!$B$3:$T$100,16,FALSE),"") ->  | H21: =IFERROR(VLOOKUP($C21,'2017 fell Table'!$B$3:$T$101,15,FALSE),"") -> 19 | I21: =IFERROR(VLOOKUP(C21,'2017 fell Table'!$B$3:$T$101,16,FALSE),"") ->  | J21: =IFERROR(VLOOKUP(C21,'2017 xc Table'!$B$3:$T$100,13,FALSE),"") ->  | K21: =IFERROR(VLOOKUP(C21,'2017 extreme Table'!$B$3:$T$114,11,FALSE),"") -> 20 | L21: 39 | N21: =RANK(X21,$X$7:$X$37,0) -> 14 | O21: Angela Paxton | P21: F | Q21: =VLOOKUP($O21,'Age Cat'!F:G,2,FALSE) -> V50 | R21: =IFERROR(VLOOKUP($O21,'2017 Road Table'!$B$3:$T$100,15,FALSE),"") ->  | S21: =IFERROR(VLOOKUP($O21,'2017 Road Table'!$B$3:$T$100,16,FALSE),"") ->  | T21: =IFERROR(VLOOKUP($O21,'2017 fell Table'!$B$3:$T$101,15,FALSE),"") ->  | U21: =IFERROR(VLOOKUP(O21,'2017 fell Table'!$B$3:$T$101,16,FALSE),"") ->  | V21: =IFERROR(VLOOKUP(O21,'2017 xc Table'!$B$3:$T$100,13,FALSE),"") -> 22 | W21: =IFERROR(VLOOKUP(O21,'2017 extreme Table'!$B$3:$T$114,11,FALSE),"") -> 25 | X21: 25
B22: =RANK(L22,$L$7:$L$47,0) -> 16 | C22: Richard Hindle | D22: M | E22: =VLOOKUP($C22,'Age Cat'!F:G,2,FALSE) -> V60 | F22: =IFERROR(VLOOKUP($C22,'2017 Road Table'!$B$3:$T$100,15,FALSE),"") ->  | G22: =IFERROR(VLOOKUP($C22,'2017 Road Table'!$B$3:$T$100,16,FALSE),"") ->  | H22: =IFERROR(VLOOKUP($C22,'2017 fell Table'!$B$3:$T$101,15,FALSE),"") -> 20 | I22: =IFERROR(VLOOKUP(C22,'2017 fell Table'!$B$3:$T$101,16,FALSE),"") -> 17 | J22: =IFERROR(VLOOKUP(C22,'2017 xc Table'!$B$3:$T$100,13,FALSE),"") ->  | K22: =IFERROR(VLOOKUP(C22,'2017 extreme Table'!$B$3:$T$114,11,FALSE),"") ->  | L22: 37 | N22: =RANK(X22,$X$7:$X$37,0) -> 16 | O22: Sharon Hudson | P22: F | Q22: =VLOOKUP($O22,'Age Cat'!F:G,2,FALSE) -> V40 | R22: =IFERROR(VLOOKUP($O22,'2017 Road Table'!$B$3:$T$100,15,FALSE),"") ->  | S22: =IFERROR(VLOOKUP($O22,'2017 Road Table'!$B$3:$T$100,16,FALSE),"") ->  | T22: =IFERROR(VLOOKUP($O22,'2017 fell Table'!$B$3:$T$101,15,FALSE),"") ->  | U22: =IFERROR(VLOOKUP(O22,'2017 fell Table'!$B$3:$T$101,16,FALSE),"") ->  | V22: =IFERROR(VLOOKUP(O22,'2017 xc Table'!$B$3:$T$100,13,FALSE),"") ->  | W22: =IFERROR(VLOOKUP(O22,'2017 extreme Table'!$B$3:$T$114,11,FALSE),"") -> 24 | X22: 24
B23: =RANK(L23,$L$7:$L$47,0) -> 17 | C23: Christopher Loftus | D23: M | E23: =VLOOKUP($C23,'Age Cat'!F:G,2,FALSE) -> V40 | F23: =IFERROR(VLOOKUP($C23,'2017 Road Table'!$B$3:$T$100,15,FALSE),"") ->  | G23: =IFERROR(VLOOKUP($C23,'2017 Road Table'!$B$3:$T$100,16,FALSE),"") ->  | H23: =IFERROR(VLOOKUP($C23,'2017 fell Table'!$B$3:$T$101,15,FALSE),"") ->  | I23: =IFERROR(VLOOKUP(C23,'2017 fell Table'!$B$3:$T$101,16,FALSE),"") ->  | J23: =IFERROR(VLOOKUP(C23,'2017 xc Table'!$B$3:$T$100,13,FALSE),"") ->  | K23: =IFERROR(VLOOKUP(C23,'2017 extreme Table'!$B$3:$T$114,11,FALSE),"") -> 25 | L23: 25 | N23: =RANK(X23,$X$7:$X$37,0) -> 17 | O23: Emma Dooks | P23: F | Q23: =VLOOKUP($O23,'Age Cat'!F:G,2,FALSE) -> V50 | R23: =IFERROR(VLOOKUP($O23,'2017 Road Table'!$B$3:$T$100,15,FALSE),"") ->  | S23: =IFERROR(VLOOKUP($O23,'2017 Road Table'!$B$3:$T$100,16,FALSE),"") ->  | T23: =IFERROR(VLOOKUP($O23,'2017 fell Table'!$B$3:$T$101,15,FALSE),"") -> 22 | U23: =IFERROR(VLOOKUP(O23,'2017 fell Table'!$B$3:$T$101,16,FALSE),"") ->  | V23: =IFERROR(VLOOKUP(O23,'2017 xc Table'!$B$3:$T$100,13,FALSE),"") ->  | W23: =IFERROR(VLOOKUP(O23,'2017 extreme Table'!$B$3:$T$114,11,FALSE),"") ->  | X23: 22
B24: =RANK(L24,$L$7:$L$47,0) -> 17 | C24: Gary Chapman | D24: M | E24: =VLOOKUP($C24,'Age Cat'!F:G,2,FALSE) -> V40 | F24: =IFERROR(VLOOKUP($C24,'2017 Road Table'!$B$3:$T$100,15,FALSE),"") -> 25 | G24: =IFERROR(VLOOKUP($C24,'2017 Road Table'!$B$3:$T$100,16,FALSE),"") ->  | H24: =IFERROR(VLOOKUP($C24,'2017 fell Table'!$B$3:$T$101,15,FALSE),"") ->  | I24: =IFERROR(VLOOKUP(C24,'2017 fell Table'!$B$3:$T$101,16,FALSE),"") ->  | J24: =IFERROR(VLOOKUP(C24,'2017 xc Table'!$B$3:$T$100,13,FALSE),"") ->  | K24: =IFERROR(VLOOKUP(C24,'2017 extreme Table'!$B$3:$T$114,11,FALSE),"") ->  | L24: 25 | N24: =RANK(X24,$X$7:$X$37,0) -> 17 | O24: Victoria Wadsworth | P24: F | Q24: =VLOOKUP($O24,'Age Cat'!F:G,2,FALSE) -> V40 | R24: =IFERROR(VLOOKUP($O24,'2017 Road Table'!$B$3:$T$100,15,FALSE),"") ->  | S24: =IFERROR(VLOOKUP($O24,'2017 Road Table'!$B$3:$T$100,16,FALSE),"") ->  | T24: =IFERROR(VLOOKUP($O24,'2017 fell Table'!$B$3:$T$101,15,FALSE),"") ->  | U24: =IFERROR(VLOOKUP(O24,'2017 fell Table'!$B$3:$T$101,16,FALSE),"") ->  | V24: =IFERROR(VLOOKUP(O24,'2017 xc Table'!$B$3:$T$100,13,FALSE),"") ->  | W24: =IFERROR(VLOOKUP(O24,'2017 extreme Table'!$B$3:$T$114,11,FALSE),"") -> 22 | X24: =SUM(R24:U24)+MAX(V24:W24) -> 22
B25: =RANK(L25,$L$7:$L$47,0) -> 19 | C25: Sam Downey | D25: M | F25: =IFERROR(VLOOKUP($C25,'2017 Road Table'!$B$3:$T$100,15,FALSE),"") ->  | G25: =IFERROR(VLOOKUP($C25,'2017 Road Table'!$B$3:$T$100,16,FALSE),"") ->  | H25: =IFERROR(VLOOKUP($C25,'2017 fell Table'!$B$3:$T$101,15,FALSE),"") ->  | I25: =IFERROR(VLOOKUP(C25,'2017 fell Table'!$B$3:$T$101,16,FALSE),"") ->  | J25: =IFERROR(VLOOKUP(C25,'2017 xc Table'!$B$3:$T$100,13,FALSE),"") ->  | K25: =IFERROR(VLOOKUP(C25,'2017 extreme Table'!$B$3:$T$114,11,FALSE),"") -> 24 | L25: 24 | N25: =RANK(X25,$X$7:$X$37,0) -> 19 | O25: Heather Crow | P25: F | Q25: =VLOOKUP($O25,'Age Cat'!F:G,2,FALSE) -> S | R25: =IFERROR(VLOOKUP($O25,'2017 Road Table'!$B$3:$T$100,15,FALSE),"") -> 21 | S25: =IFERROR(VLOOKUP($O25,'2017 Road Table'!$B$3:$T$100,16,FALSE),"") ->  | T25: =IFERROR(VLOOKUP($O25,'2017 fell Table'!$B$3:$T$101,15,FALSE),"") ->  | U25: =IFERROR(VLOOKUP(O25,'2017 fell Table'!$B$3:$T$101,16,FALSE),"") ->  | V25: =IFERROR(VLOOKUP(O25,'2017 xc Table'!$B$3:$T$100,13,FALSE),"") ->  | W25: =IFERROR(VLOOKUP(O25,'2017 extreme Table'!$B$3:$T$114,11,FALSE),"") ->  | X25: 21
B26: =RANK(L26,$L$7:$L$47,0) -> 19 | C26: Chris Tomes | D26: M | E26: =VLOOKUP($C26,'Age Cat'!F:G,2,FALSE) -> V60 | F26: =IFERROR(VLOOKUP($C26,'2017 Road Table'!$B$3:$T$100,15,FALSE),"") -> 24 | G26: =IFERROR(VLOOKUP($C26,'2017 Road Table'!$B$3:$T$100,16,FALSE),"") ->  | H26: =IFERROR(VLOOKUP($C26,'2017 fell Table'!$B$3:$T$101,15,FALSE),"") ->  | I26: =IFERROR(VLOOKUP(C26,'2017 fell Table'!$B$3:$T$101,16,FALSE),"") ->  | J26: =IFERROR(VLOOKUP(C26,'2017 xc Table'!$B$3:$T$100,13,FALSE),"") ->  | K26: =IFERROR(VLOOKUP(C26,'2017 extreme Table'!$B$3:$T$114,11,FALSE),"") ->  | L26: =SUM(F26:I26)+MAX(J26:K26) -> 24 | N26: =RANK(X26,$X$7:$X$37,0) -> 19 | O26: Kayleigh Fish | P26: F | Q26: =VLOOKUP($O26,'Age Cat'!F:G,2,FALSE) -> S | R26: =IFERROR(VLOOKUP($O26,'2017 Road Table'!$B$3:$T$100,15,FALSE),"") -> 21 | S26: =IFERROR(VLOOKUP($O26,'2017 Road Table'!$B$3:$T$100,16,FALSE),"") ->  | T26: =IFERROR(VLOOKUP($O26,'2017 fell Table'!$B$3:$T$101,15,FALSE),"") ->  | U26: =IFERROR(VLOOKUP(O26,'2017 fell Table'!$B$3:$T$101,16,FALSE),"") ->  | V26: =IFERROR(VLOOKUP(O26,'2017 xc Table'!$B$3:$T$100,13,FALSE),"") ->  | W26: =IFERROR(VLOOKUP(O26,'2017 extreme Table'!$B$3:$T$114,11,FALSE),"") ->  | X26: 21
B27: =RANK(L27,$L$7:$L$47,0) -> 21 | C27: Shaun Wilkinson | D27: M | E27: =VLOOKUP($C27,'Age Cat'!F:G,2,FALSE) -> V50 | F27: =IFERROR(VLOOKUP($C27,'2017 Road Table'!$B$3:$T$100,15,FALSE),"") ->  | G27: =IFERROR(VLOOKUP($C27,'2017 Road Table'!$B$3:$T$100,16,FALSE),"") ->  | H27: =IFERROR(VLOOKUP($C27,'2017 fell Table'!$B$3:$T$101,15,FALSE),"") ->  | I27: =IFERROR(VLOOKUP(C27,'2017 fell Table'!$B$3:$T$101,16,FALSE),"") ->  | J27: =IFERROR(VLOOKUP(C27,'2017 xc Table'!$B$3:$T$100,13,FALSE),"") ->  | K27: =IFERROR(VLOOKUP(C27,'2017 extreme Table'!$B$3:$T$114,11,FALSE),"") -> 23 | L27: 23 | N27: =RANK(X27,$X$7:$X$37,0) -> 21 | O27: Samantha Knowles | P27: F | Q27: =VLOOKUP($O27,'Age Cat'!F:G,2,FALSE) -> V40 | R27: =IFERROR(VLOOKUP($O27,'2017 Road Table'!$B$3:$T$100,15,FALSE),"") -> 20 | S27: =IFERROR(VLOOKUP($O27,'2017 Road Table'!$B$3:$T$100,16,FALSE),"") ->  | T27: =IFERROR(VLOOKUP($O27,'2017 fell Table'!$B$3:$T$101,15,FALSE),"") ->  | U27: =IFERROR(VLOOKUP(O27,'2017 fell Table'!$B$3:$T$101,16,FALSE),"") ->  | V27: =IFERROR(VLOOKUP(O27,'2017 xc Table'!$B$3:$T$100,13,FALSE),"") ->  | W27: =IFERROR(VLOOKUP(O27,'2017 extreme Table'!$B$3:$T$114,11,FALSE),"") ->  | X27: 20
B28: =RANK(L28,$L$7:$L$47,0) -> 21 | C28: Dick Ballantine | D28: M | E28: =VLOOKUP($C28,'Age Cat'!F:G,2,FALSE) -> V50 | F28: =IFERROR(VLOOKUP($C28,'2017 Road Table'!$B$3:$T$100,15,FALSE),"") ->  | G28: =IFERROR(VLOOKUP($C28,'2017 Road Table'!$B$3:$T$100,16,FALSE),"") ->  | H28: =IFERROR(VLOOKUP($C28,'2017 fell Table'!$B$3:$T$101,15,FALSE),"") ->  | I28: =IFERROR(VLOOKUP(C28,'2017 fell Table'!$B$3:$T$101,16,FALSE),"") ->  | J28: =IFERROR(VLOOKUP(C28,'2017 xc Table'!$B$3:$T$100,13,FALSE),"") ->  | K28: =IFERROR(VLOOKUP(C28,'2017 extreme Table'!$B$3:$T$114,11,FALSE),"") -> 23 | L28: 23 | N28: =RANK(X28,$X$7:$X$37,0) -> 22 | O28: Sarah Meikle | P28: F | Q28: =VLOOKUP($O28,'Age Cat'!F:G,2,FALSE) -> V40 | R28: =IFERROR(VLOOKUP($O28,'2017 Road Table'!$B$3:$T$100,15,FALSE),"") -> 19 | S28: =IFERROR(VLOOKUP($O28,'2017 Road Table'!$B$3:$T$100,16,FALSE),"") ->  | T28: =IFERROR(VLOOKUP($O28,'2017 fell Table'!$B$3:$T$101,15,FALSE),"") ->  | U28: =IFERROR(VLOOKUP(O28,'2017 fell Table'!$B$3:$T$101,16,FALSE),"") ->  | V28: =IFERROR(VLOOKUP(O28,'2017 xc Table'!$B$3:$T$100,13,FALSE),"") ->  | W28: =IFERROR(VLOOKUP(O28,'2017 extreme Table'!$B$3:$T$114,11,FALSE),"") ->  | X28: =SUM(R28:U28)+MAX(V28:W28) -> 19
B29: =RANK(L29,$L$7:$L$47,0) -> 21 | C29: Paul Wilson | D29: M | E29: =VLOOKUP($C29,'Age Cat'!F:G,2,FALSE) -> V40 | F29: =IFERROR(VLOOKUP($C29,'2017 Road Table'!$B$3:$T$100,15,FALSE),"") -> 23 | G29: =IFERROR(VLOOKUP($C29,'2017 Road Table'!$B$3:$T$100,16,FALSE),"") ->  | H29: =IFERROR(VLOOKUP($C29,'2017 fell Table'!$B$3:$T$101,15,FALSE),"") ->  | I29: =IFERROR(VLOOKUP(C29,'2017 fell Table'!$B$3:$T$101,16,FALSE),"") ->  | J29: =IFERROR(VLOOKUP(C29,'2017 xc Table'!$B$3:$T$100,13,FALSE),"") ->  | K29: =IFERROR(VLOOKUP(C29,'2017 extreme Table'!$B$3:$T$114,11,FALSE),"") ->  | L29: 23 | N29: =RANK(X29,$X$7:$X$37,0) -> 23 | O29: Luisa Lauren | P29: F | Q29: =VLOOKUP($O29,'Age Cat'!F:G,2,FALSE) -> V50 | R29: =IFERROR(VLOOKUP($O29,'2017 Road Table'!$B$3:$T$100,15,FALSE),"") -> 17 | S29: =IFERROR(VLOOKUP($O29,'2017 Road Table'!$B$3:$T$100,16,FALSE),"") ->  | T29: =IFERROR(VLOOKUP($O29,'2017 fell Table'!$B$3:$T$101,15,FALSE),"") ->  | U29: =IFERROR(VLOOKUP(O29,'2017 fell Table'!$B$3:$T$101,16,FALSE),"") ->  | V29: =IFERROR(VLOOKUP(O29,'2017 xc Table'!$B$3:$T$100,13,FALSE),"") ->  | W29: =IFERROR(VLOOKUP(O29,'2017 extreme Table'!$B$3:$T$114,11,FALSE),"") ->  | X29: 17
B30: =RANK(L30,$L$7:$L$47,0) -> 24 | C30: Simon Smallwood | D30: M | E30: =VLOOKUP($C30,'Age Cat'!F:G,2,FALSE) -> V50 | F30: =IFERROR(VLOOKUP($C30,'2017 Road Table'!$B$3:$T$100,15,FALSE),"") -> 22 | G30: =IFERROR(VLOOKUP($C30,'2017 Road Table'!$B$3:$T$100,16,FALSE),"") ->  | H30: =IFERROR(VLOOKUP($C30,'2017 fell Table'!$B$3:$T$101,15,FALSE),"") ->  | I30: =IFERROR(VLOOKUP(C30,'2017 fell Table'!$B$3:$T$101,16,FALSE),"") ->  | J30: =IFERROR(VLOOKUP(C30,'2017 xc Table'!$B$3:$T$100,13,FALSE),"") ->  | K30: =IFERROR(VLOOKUP(C30,'2017 extreme Table'!$B$3:$T$114,11,FALSE),"") ->  | L30: 22 | N30: =RANK(X30,$X$7:$X$37,0) -> 24 | O30: Paula Williams | P30: F | Q30: =VLOOKUP($O30,'Age Cat'!F:G,2,FALSE) -> V40 | R30: =IFERROR(VLOOKUP($O30,'2017 Road Table'!$B$3:$T$100,15,FALSE),"") -> 16 | S30: =IFERROR(VLOOKUP($O30,'2017 Road Table'!$B$3:$T$100,16,FALSE),"") ->  | T30: =IFERROR(VLOOKUP($O30,'2017 fell Table'!$B$3:$T$101,15,FALSE),"") ->  | U30: =IFERROR(VLOOKUP(O30,'2017 fell Table'!$B$3:$T$101,16,FALSE),"") ->  | V30: =IFERROR(VLOOKUP(O30,'2017 xc Table'!$B$3:$T$100,13,FALSE),"") ->  | W30: =IFERROR(VLOOKUP(O30,'2017 extreme Table'!$B$3:$T$114,11,FALSE),"") ->  | X30: 16
B31: =RANK(L31,$L$7:$L$47,0) -> 24 | C31: Ben Timbers | D31: M | E31: =VLOOKUP($C31,'Age Cat'!F:G,2,FALSE) -> V40 | F31: =IFERROR(VLOOKUP($C31,'2017 Road Table'!$B$3:$T$100,15,FALSE),"") ->  | G31: =IFERROR(VLOOKUP($C31,'2017 Road Table'!$B$3:$T$100,16,FALSE),"") ->  | H31: =IFERROR(VLOOKUP($C31,'2017 fell Table'!$B$3:$T$101,15,FALSE),"") ->  | I31: =IFERROR(VLOOKUP(C31,'2017 fell Table'!$B$3:$T$101,16,FALSE),"") ->  | J31: =IFERROR(VLOOKUP(C31,'2017 xc Table'!$B$3:$T$100,13,FALSE),"") ->  | K31: =IFERROR(VLOOKUP(C31,'2017 extreme Table'!$B$3:$T$114,11,FALSE),"") -> 22 | L31: 22 | N31: =RANK(X31,$X$7:$X$37,0) -> 25 | O31: Catherine Bellwood | P31: F | Q31: =VLOOKUP($O31,'Age Cat'!F:G,2,FALSE) -> V50 | R31: =IFERROR(VLOOKUP($O31,'2017 Road Table'!$B$3:$T$100,15,FALSE),"") -> 15 | S31: =IFERROR(VLOOKUP($O31,'2017 Road Table'!$B$3:$T$100,16,FALSE),"") ->  | T31: =IFERROR(VLOOKUP($O31,'2017 fell Table'!$B$3:$T$101,15,FALSE),"") ->  | U31: =IFERROR(VLOOKUP(O31,'2017 fell Table'!$B$3:$T$101,16,FALSE),"") ->  | V31: =IFERROR(VLOOKUP(O31,'2017 xc Table'!$B$3:$T$100,13,FALSE),"") ->  | W31: =IFERROR(VLOOKUP(O31,'2017 extreme Table'!$B$3:$T$114,11,FALSE),"") ->  | X31: 15
B32: =RANK(L32,$L$7:$L$47,0) -> 24 | C32: Joe Atherton | D32: M | E32: =VLOOKUP($C32,'Age Cat'!F:G,2,FALSE) -> V30 | F32: =IFERROR(VLOOKUP($C32,'2017 Road Table'!$B$3:$T$100,15,FALSE),"") -> 22 | G32: =IFERROR(VLOOKUP($C32,'2017 Road Table'!$B$3:$T$100,16,FALSE),"") ->  | H32: =IFERROR(VLOOKUP($C32,'2017 fell Table'!$B$3:$T$101,15,FALSE),"") ->  | I32: =IFERROR(VLOOKUP(C32,'2017 fell Table'!$B$3:$T$101,16,FALSE),"") ->  | J32: =IFERROR(VLOOKUP(C32,'2017 xc Table'!$B$3:$T$100,13,FALSE),"") ->  | K32: =IFERROR(VLOOKUP(C32,'2017 extreme Table'!$B$3:$T$114,11,FALSE),"") ->  | L32: 22 | N32: =RANK(X32,$X$7:$X$37,0) -> 26 | O32: Mary Hodgkiss | P32: F | Q32: =VLOOKUP($O32,'Age Cat'!F:G,2,FALSE) -> V60 | R32: =IFERROR(VLOOKUP($O32,'2017 Road Table'!$B$3:$T$100,15,FALSE),"") -> 14 | S32: =IFERROR(VLOOKUP($O32,'2017 Road Table'!$B$3:$T$100,16,FALSE),"") ->  | T32: =IFERROR(VLOOKUP($O32,'2017 fell Table'!$B$3:$T$101,15,FALSE),"") ->  | U32: =IFERROR(VLOOKUP(O32,'2017 fell Table'!$B$3:$T$101,16,FALSE),"") ->  | V32: =IFERROR(VLOOKUP(O32,'2017 xc Table'!$B$3:$T$100,13,FALSE),"") ->  | W32: =IFERROR(VLOOKUP(O32,'2017 extreme Table'!$B$3:$T$114,11,FALSE),"") ->  | X32: 14
B33: =RANK(L33,$L$7:$L$47,0) -> 24 | C33: Simon Bellwood | D33: M | E33: =VLOOKUP($C33,'Age Cat'!F:G,2,FALSE) -> V50 | F33: =IFERROR(VLOOKUP($C33,'2017 Road Table'!$B$3:$T$100,15,FALSE),"") ->  | G33: =IFERROR(VLOOKUP($C33,'2017 Road Table'!$B$3:$T$100,16,FALSE),"") ->  | H33: =IFERROR(VLOOKUP($C33,'2017 fell Table'!$B$3:$T$101,15,FALSE),"") ->  | I33: =IFERROR(VLOOKUP(C33,'2017 fell Table'!$B$3:$T$101,16,FALSE),"") ->  | J33: =IFERROR(VLOOKUP(C33,'2017 xc Table'!$B$3:$T$100,13,FALSE),"") ->  | K33: =IFERROR(VLOOKUP(C33,'2017 extreme Table'!$B$3:$T$114,11,FALSE),"") -> 22 | L33: 22 | N33: =RANK(X33,$X$7:$X$37,0) -> 27 | O33: Andrea Stead | P33: F | R33: =IFERROR(VLOOKUP($O33,'2017 Road Table'!$B$3:$T$100,15,FALSE),"") -> 13 | S33: =IFERROR(VLOOKUP($O33,'2017 Road Table'!$B$3:$T$100,16,FALSE),"") ->  | T33: =IFERROR(VLOOKUP($O33,'2017 fell Table'!$B$3:$T$101,15,FALSE),"") ->  | U33: =IFERROR(VLOOKUP(O33,'2017 fell Table'!$B$3:$T$101,16,FALSE),"") ->  | V33: =IFERROR(VLOOKUP(O33,'2017 xc Table'!$B$3:$T$100,13,FALSE),"") ->  | W33: =IFERROR(VLOOKUP(O33,'2017 extreme Table'!$B$3:$T$114,11,FALSE),"") ->  | X33: 13
B34: =RANK(L34,$L$7:$L$47,0) -> 28 | C34: Rick Harwood | D34: M | F34: =IFERROR(VLOOKUP($C34,'2017 Road Table'!$B$3:$T$100,15,FALSE),"") ->  | G34: =IFERROR(VLOOKUP($C34,'2017 Road Table'!$B$3:$T$100,16,FALSE),"") ->  | H34: =IFERROR(VLOOKUP($C34,'2017 fell Table'!$B$3:$T$101,15,FALSE),"") ->  | I34: =IFERROR(VLOOKUP(C34,'2017 fell Table'!$B$3:$T$101,16,FALSE),"") ->  | J34: =IFERROR(VLOOKUP(C34,'2017 xc Table'!$B$3:$T$100,13,FALSE),"") ->  | K34: =IFERROR(VLOOKUP(C34,'2017 extreme Table'!$B$3:$T$114,11,FALSE),"") -> 21 | L34: =SUM(F34:I34)+MAX(J34:K34) -> 21
B35: =RANK(L35,$L$7:$L$47,0) -> 28 | C35: Anand Raval | D35: M | E35: =VLOOKUP($C35,'Age Cat'!F:G,2,FALSE) -> V30 | F35: =IFERROR(VLOOKUP($C35,'2017 Road Table'!$B$3:$T$100,15,FALSE),"") -> 21 | G35: =IFERROR(VLOOKUP($C35,'2017 Road Table'!$B$3:$T$100,16,FALSE),"") ->  | H35: =IFERROR(VLOOKUP($C35,'2017 fell Table'!$B$3:$T$101,15,FALSE),"") ->  | I35: =IFERROR(VLOOKUP(C35,'2017 fell Table'!$B$3:$T$101,16,FALSE),"") ->  | J35: =IFERROR(VLOOKUP(C35,'2017 xc Table'!$B$3:$T$100,13,FALSE),"") ->  | K35: =IFERROR(VLOOKUP(C35,'2017 extreme Table'!$B$3:$T$114,11,FALSE),"") ->  | L35: =SUM(F35:I35)+MAX(J35:K35) -> 21
B36: =RANK(L36,$L$7:$L$47,0) -> 28 | C36: Russell Fairhurst | D36: M | E36: =VLOOKUP($C36,'Age Cat'!F:G,2,FALSE) -> V50 | F36: =IFERROR(VLOOKUP($C36,'2017 Road Table'!$B$3:$T$100,15,FALSE),"") ->  | G36: =IFERROR(VLOOKUP($C36,'2017 Road Table'!$B$3:$T$100,16,FALSE),"") ->  | H36: =IFERROR(VLOOKUP($C36,'2017 fell Table'!$B$3:$T$101,15,FALSE),"") ->  | I36: =IFERROR(VLOOKUP(C36,'2017 fell Table'!$B$3:$T$101,16,FALSE),"") ->  | J36: =IFERROR(VLOOKUP(C36,'2017 xc Table'!$B$3:$T$100,13,FALSE),"") ->  | K36: =IFERROR(VLOOKUP(C36,'2017 extreme Table'!$B$3:$T$114,11,FALSE),"") -> 21 | L36: 21
B37: =RANK(L37,$L$7:$L$47,0) -> 31 | C37: Simon Chester | D37: M | E37: =VLOOKUP($C37,'Age Cat'!F:G,2,FALSE) -> V40 | F37: =IFERROR(VLOOKUP($C37,'2017 Road Table'!$B$3:$T$100,15,FALSE),"") -> 20 | G37: =IFERROR(VLOOKUP($C37,'2017 Road Table'!$B$3:$T$100,16,FALSE),"") ->  | H37: =IFERROR(VLOOKUP($C37,'2017 fell Table'!$B$3:$T$101,15,FALSE),"") ->  | I37: =IFERROR(VLOOKUP(C37,'2017 fell Table'!$B$3:$T$101,16,FALSE),"") ->  | J37: =IFERROR(VLOOKUP(C37,'2017 xc Table'!$B$3:$T$100,13,FALSE),"") ->  | K37: =IFERROR(VLOOKUP(C37,'2017 extreme Table'!$B$3:$T$114,11,FALSE),"") ->  | L37: 20
B38: =RANK(L38,$L$7:$L$47,0) -> 32 | C38: Steve Carter | D38: M | E38: =VLOOKUP($C38,'Age Cat'!F:G,2,FALSE) -> V60 | F38: =IFERROR(VLOOKUP($C38,'2017 Road Table'!$B$3:$T$100,15,FALSE),"") ->  | G38: =IFERROR(VLOOKUP($C38,'2017 Road Table'!$B$3:$T$100,16,FALSE),"") ->  | H38: =IFERROR(VLOOKUP($C38,'2017 fell Table'!$B$3:$T$101,15,FALSE),"") ->  | I38: =IFERROR(VLOOKUP(C38,'2017 fell Table'!$B$3:$T$101,16,FALSE),"") ->  | J38: =IFERROR(VLOOKUP(C38,'2017 xc Table'!$B$3:$T$100,13,FALSE),"") ->  | K38: =IFERROR(VLOOKUP(C38,'2017 extreme Table'!$B$3:$T$114,11,FALSE),"") -> 19 | L38: 19
B39: =RANK(L39,$L$7:$L$47,0) -> 33 | C39: Russell Aydon-Butler | D39: M | F39: =IFERROR(VLOOKUP($C39,'2017 Road Table'!$B$3:$T$100,15,FALSE),"") ->  | G39: =IFERROR(VLOOKUP($C39,'2017 Road Table'!$B$3:$T$100,16,FALSE),"") ->  | H39: =IFERROR(VLOOKUP($C39,'2017 fell Table'!$B$3:$T$101,15,FALSE),"") ->  | I39: =IFERROR(VLOOKUP(C39,'2017 fell Table'!$B$3:$T$101,16,FALSE),"") ->  | J39: =IFERROR(VLOOKUP(C39,'2017 xc Table'!$B$3:$T$100,13,FALSE),"") ->  | K39: =IFERROR(VLOOKUP(C39,'2017 extreme Table'!$B$3:$T$114,11,FALSE),"") -> 18 | L39: 18
B40: =RANK(L40,$L$7:$L$47,0) -> 33 | C40: Ian Rodgers | D40: M | F40: =IFERROR(VLOOKUP($C40,'2017 Road Table'!$B$3:$T$100,15,FALSE),"") ->  | G40: =IFERROR(VLOOKUP($C40,'2017 Road Table'!$B$3:$T$100,16,FALSE),"") ->  | H40: =IFERROR(VLOOKUP($C40,'2017 fell Table'!$B$3:$T$101,15,FALSE),"") ->  | I40: =IFERROR(VLOOKUP(C40,'2017 fell Table'!$B$3:$T$101,16,FALSE),"") ->  | J40: =IFERROR(VLOOKUP(C40,'2017 xc Table'!$B$3:$T$100,13,FALSE),"") ->  | K40: =IFERROR(VLOOKUP(C40,'2017 extreme Table'!$B$3:$T$114,11,FALSE),"") -> 18 | L40: 18
B41: =RANK(L41,$L$7:$L$47,0) -> 35 | C41: David Copping | D41: M | E41: =VLOOKUP($C41,'Age Cat'!F:G,2,FALSE) -> V50 | F41: =IFERROR(VLOOKUP($C41,'2017 Road Table'!$B$3:$T$100,15,FALSE),"") ->  | G41: =IFERROR(VLOOKUP($C41,'2017 Road Table'!$B$3:$T$100,16,FALSE),"") ->  | H41: =IFERROR(VLOOKUP($C41,'2017 fell Table'!$B$3:$T$101,15,FALSE),"") ->  | I41: =IFERROR(VLOOKUP(C41,'2017 fell Table'!$B$3:$T$101,16,FALSE),"") ->  | J41: =IFERROR(VLOOKUP(C41,'2017 xc Table'!$B$3:$T$100,13,FALSE),"") ->  | K41: =IFERROR(VLOOKUP(C41,'2017 extreme Table'!$B$3:$T$114,11,FALSE),"") -> 17 | L41: 17
B42: =RANK(L42,$L$7:$L$47,0) -> 35 | C42: Paul Sessford | D42: M | E42: =VLOOKUP($C42,'Age Cat'!F:G,2,FALSE) -> V50 | F42: =IFERROR(VLOOKUP($C42,'2017 Road Table'!$B$3:$T$100,15,FALSE),"") ->  | G42: =IFERROR(VLOOKUP($C42,'2017 Road Table'!$B$3:$T$100,16,FALSE),"") ->  | H42: =IFERROR(VLOOKUP($C42,'2017 fell Table'!$B$3:$T$101,15,FALSE),"") -> 17 | I42: =IFERROR(VLOOKUP(C42,'2017 fell Table'!$B$3:$T$101,16,FALSE),"") ->  | J42: =IFERROR(VLOOKUP(C42,'2017 xc Table'!$B$3:$T$100,13,FALSE),"") ->  | K42: =IFERROR(VLOOKUP(C42,'2017 extreme Table'!$B$3:$T$114,11,FALSE),"") ->  | L42: 17
B43: =RANK(L43,$L$7:$L$47,0) -> 37 | C43: Andrew Travis | D43: M | E43: =VLOOKUP($C43,'Age Cat'!F:G,2,FALSE) -> V40 | F43: =IFERROR(VLOOKUP($C43,'2017 Road Table'!$B$3:$T$100,15,FALSE),"") ->  | G43: =IFERROR(VLOOKUP($C43,'2017 Road Table'!$B$3:$T$100,16,FALSE),"") ->  | H43: =IFERROR(VLOOKUP($C43,'2017 fell Table'!$B$3:$T$101,15,FALSE),"") ->  | I43: =IFERROR(VLOOKUP(C43,'2017 fell Table'!$B$3:$T$101,16,FALSE),"") ->  | J43: =IFERROR(VLOOKUP(C43,'2017 xc Table'!$B$3:$T$100,13,FALSE),"") ->  | K43: =IFERROR(VLOOKUP(C43,'2017 extreme Table'!$B$3:$T$114,11,FALSE),"") -> 16 | L43: 16
B44: =RANK(L44,$L$7:$L$47,0) -> 38 | C44: Dan Timbers | D44: M | F44: =IFERROR(VLOOKUP($C44,'2017 Road Table'!$B$3:$T$100,15,FALSE),"") ->  | G44: =IFERROR(VLOOKUP($C44,'2017 Road Table'!$B$3:$T$100,16,FALSE),"") ->  | H44: =IFERROR(VLOOKUP($C44,'2017 fell Table'!$B$3:$T$101,15,FALSE),"") ->  | I44: =IFERROR(VLOOKUP(C44,'2017 fell Table'!$B$3:$T$101,16,FALSE),"") ->  | J44: =IFERROR(VLOOKUP(C44,'2017 xc Table'!$B$3:$T$100,13,FALSE),"") ->  | K44: =IFERROR(VLOOKUP(C44,'2017 extreme Table'!$B$3:$T$114,11,FALSE),"") -> 13 | L44: 13
B45: =RANK(L45,$L$7:$L$47,0) -> 39 | C45: Peter Smith | D45: M | E45: =VLOOKUP($C45,'Age Cat'!F:G,2,FALSE) -> V30 | F45: =IFERROR(VLOOKUP($C45,'2017 Road Table'!$B$3:$T$100,15,FALSE),"") ->  | G45: =IFERROR(VLOOKUP($C45,'2017 Road Table'!$B$3:$T$100,16,FALSE),"") ->  | H45: =IFERROR(VLOOKUP($C45,'2017 fell Table'!$B$3:$T$101,15,FALSE),"") ->  | I45: =IFERROR(VLOOKUP(C45,'2017 fell Table'!$B$3:$T$101,16,FALSE),"") ->  | J45: =IFERROR(VLOOKUP(C45,'2017 xc Table'!$B$3:$T$100,13,FALSE),"") ->  | K45: =IFERROR(VLOOKUP(C45,'2017 extreme Table'!$B$3:$T$114,11,FALSE),"") ->  | L45: 0
B46: =RANK(L46,$L$7:$L$47,0) -> 39 | C46: Dave Copping | D46: M | F46: =IFERROR(VLOOKUP($C46,'2017 Road Table'!$B$3:$T$100,15,FALSE),"") ->  | G46: =IFERROR(VLOOKUP($C46,'2017 Road Table'!$B$3:$T$100,16,FALSE),"") ->  | H46: =IFERROR(VLOOKUP($C46,'2017 fell Table'!$B$3:$T$101,15,FALSE),"") ->  | I46: =IFERROR(VLOOKUP(C46,'2017 fell Table'!$B$3:$T$101,16,FALSE),"") ->  | J46: =IFERROR(VLOOKUP(C46,'2017 xc Table'!$B$3:$T$100,13,FALSE),"") ->  | K46: =IFERROR(VLOOKUP(C46,'2017 extreme Table'!$B$3:$T$114,11,FALSE),"") ->  | L46: 0
B47: =RANK(L47,$L$7:$L$47,0) -> 39 | C47: Alistair Gavins | D47: M | E47: =VLOOKUP($C47,'Age Cat'!F:G,2,FALSE) -> V50 | F47: =IFERROR(VLOOKUP($C47,'2017 Road Table'!$B$3:$T$100,15,FALSE),"") ->  | G47: =IFERROR(VLOOKUP($C47,'2017 Road Table'!$B$3:$T$100,16,FALSE),"") ->  | H47: =IFERROR(VLOOKUP($C47,'2017 fell Table'!$B$3:$T$101,15,FALSE),"") ->  | I47: =IFERROR(VLOOKUP(C47,'2017 fell Table'!$B$3:$T$101,16,FALSE),"") ->  | J47: =IFERROR(VLOOKUP(C47,'2017 xc Table'!$B$3:$T$100,13,FALSE),"") ->  | K47: =IFERROR(VLOOKUP(C47,'2017 extreme Table'!$B$3:$T$114,11,FALSE),"") ->  | L47: 0

Sheet 2017 extreme Table
A1: 2017 - Extreme (Best 3 of 5 Races)
D2: =VLOOKUP(D3,$A$57:$C$65,3,FALSE) -> Rombald Stride 23m | E2: =VLOOKUP(E3,$A$57:$C$65,3,FALSE) -> 3 Peaks 23.2m | F2: =VLOOKUP(F3,$A$57:$C$65,3,FALSE) -> Ennerdale 22.9m | G2: =VLOOKUP(G3,$A$57:$C$65,3,FALSE) -> Borrowdale 16.8m | H2: =VLOOKUP(H3,$A$57:$C$65,3,FALSE) -> Full Tour of Pendle 16.8m
A3: Pos | B3: Name | D3: 1 | E3: 2 | F3: 3 | G3: 4 | H3: 5 | I3: Total | J3: Scoring Total | K3: # Races | L3: Top 3 results
D4: =VLOOKUP(D3,$A$57:$C$65,2,FALSE) -> 2017-02-04 | E4: =VLOOKUP(E3,$A$57:$C$65,2,FALSE) -> 2017-04-29 | F4: =VLOOKUP(F3,$A$57:$C$65,2,FALSE) -> 2017-06-10 | G4: =VLOOKUP(G3,$A$57:$C$65,2,FALSE) -> 2017-08-05 | H4: =VLOOKUP(H3,$A$57:$C$65,2,FALSE) -> 2017-11-18 | L4: =D3 -> 1 | M4: =E3 -> 2 | N4: =F3 -> 3
A5: =RANK(J5,$J$5:$J$39,0) -> 1 | B5: Dick Ballantine | C5: =VLOOKUP(B5,'Age Cat'!F:G,2,FALSE) -> V50 | D5: =IFERROR(VLOOKUP($B5,'2017 extreme results'!$B$3:$D$14,3,FALSE),"") -> 23 | E5: =IFERROR(VLOOKUP($B5,'2017 extreme results'!$B$22:$D$31,3,FALSE),"") ->  | F5: =IFERROR(VLOOKUP($B5,'2017 extreme results'!$B$34:$D$49,3,FALSE),"") -> 12 | G5: =IFERROR(VLOOKUP($B5,'2017 extreme results'!$B$53:$D$64,3,FALSE),"") ->  | H5: =IFERROR(VLOOKUP($B5,'2017 extreme results'!$B$68:$D$79,3,FALSE),"") ->  | I5: =IF(SUM(D5:H5)=0,"",SUM(D5:H5)) -> 35 | J5: =SUM(L5:N5) -> 35 | K5: =IF(COUNT(D5:H5)=0,"",COUNT(D5:H5)) -> 2 | L5: =IFERROR(LARGE($D5:$H$5,D3),"") -> 23 | M5: =IFERROR(LARGE($D5:$H$5,E3),"") -> 12 | N5: =IFERROR(LARGE($D5:$H$5,F3),"") ->  | O5: =COUNT(L5:N5) -> 2
A6: =RANK(J6,$J$5:$J$39,0) -> 2 | B6: Simon Wheeler | C6: =VLOOKUP(B6,'Age Cat'!F:G,2,FALSE) -> V40 | D6: =IFERROR(VLOOKUP($B6,'2017 extreme results'!$B$3:$D$14,3,FALSE),"") -> 20 | E6: =IFERROR(VLOOKUP($B6,'2017 extreme results'!$B$22:$D$31,3,FALSE),"") ->  | F6: =IFERROR(VLOOKUP($B6,'2017 extreme results'!$B$34:$D$49,3,FALSE),"") -> 10 | G6: =IFERROR(VLOOKUP($B6,'2017 extreme results'!$B$53:$D$64,3,FALSE),"") ->  | H6: =IFERROR(VLOOKUP($B6,'2017 extreme results'!$B$68:$D$79,3,FALSE),"") ->  | I6: =IF(SUM(D6:H6)=0,"",SUM(D6:H6)) -> 30 | J6: =SUM(L6:N6) -> 30 | K6: =IF(COUNT(D6:H6)=0,"",COUNT(D6:H6)) -> 2 | L6: =IFERROR(LARGE($D6:$H6,D$3),"") -> 20 | M6: =IFERROR(LARGE($D6:$H6,E$3),"") -> 10 | N6: =IFERROR(LARGE($D6:$H6,F$3),"") ->  | O6: =COUNT(L6:N6) -> 2
A7: =RANK(J7,$J$5:$J$39,0) -> 3 | B7: John-Paul Hopkinson | C7: =VLOOKUP(B7,'Age Cat'!F:G,2,FALSE) -> V40 | D7: =IFERROR(VLOOKUP($B7,'2017 extreme results'!$B$3:$D$14,3,FALSE),"") -> 25 | E7: =IFERROR(VLOOKUP($B7,'2017 extreme results'!$B$22:$D$31,3,FALSE),"") ->  | F7: =IFERROR(VLOOKUP($B7,'2017 extreme results'!$B$34:$D$49,3,FALSE),"") ->  | G7: =IFERROR(VLOOKUP($B7,'2017 extreme results'!$B$53:$D$64,3,FALSE),"") ->  | H7: =IFERROR(VLOOKUP($B7,'2017 extreme results'!$B$68:$D$79,3,FALSE),"") ->  | I7: 25 | J7: 25 | K7: 1 | L7: 25 | O7: 1
A8: =RANK(J8,$J$5:$J$39,0) -> 3 | B8: Christopher Loftus | C8: =VLOOKUP(B8,'Age Cat'!F:G,2,FALSE) -> V40 | D8: =IFERROR(VLOOKUP($B8,'2017 extreme results'!$B$3:$D$14,3,FALSE),"") ->  | E8: =IFERROR(VLOOKUP($B8,'2017 extreme results'!$B$22:$D$31,3,FALSE),"") -> 25 | F8: =IFERROR(VLOOKUP($B8,'2017 extreme results'!$B$34:$D$49,3,FALSE),"") ->  | G8: =IFERROR(VLOOKUP($B8,'2017 extreme results'!$B$53:$D$64,3,FALSE),"") ->  | H8: =IFERROR(VLOOKUP($B8,'2017 extreme results'!$B$68:$D$79,3,FALSE),"") ->  | I8: 25 | J8: 25 | K8: 1 | L8: 25 | O8: 1
A9: =RANK(J9,$J$5:$J$39,0) -> 5 | B9: Sam Downey | D9: =IFERROR(VLOOKUP($B9,'2017 extreme results'!$B$3:$D$14,3,FALSE),"") ->  | E9: =IFERROR(VLOOKUP($B9,'2017 extreme results'!$B$22:$D$31,3,FALSE),"") -> 24 | F9: =IFERROR(VLOOKUP($B9,'2017 extreme results'!$B$34:$D$49,3,FALSE),"") ->  | G9: =IFERROR(VLOOKUP($B9,'2017 extreme results'!$B$53:$D$64,3,FALSE),"") ->  | H9: =IFERROR(VLOOKUP($B9,'2017 extreme results'!$B$68:$D$79,3,FALSE),"") ->  | I9: 24 | J9: 24 | K9: 1 | L9: 24 | O9: 1
A10: =RANK(J10,$J$5:$J$39,0) -> 6 | B10: Shaun Wilkinson | C10: =VLOOKUP(B10,'Age Cat'!F:G,2,FALSE) -> V50 | D10: =IFERROR(VLOOKUP($B10,'2017 extreme results'!$B$3:$D$14,3,FALSE),"") ->  | E10: =IFERROR(VLOOKUP($B10,'2017 extreme results'!$B$22:$D$31,3,FALSE),"") -> 23 | F10: =IFERROR(VLOOKUP($B10,'2017 extreme results'!$B$34:$D$49,3,FALSE),"") ->  | G10: =IFERROR(VLOOKUP($B10,'2017 extreme results'!$B$53:$D$64,3,FALSE),"") ->  | H10: =IFERROR(VLOOKUP($B10,'2017 extreme results'!$B$68:$D$79,3,FALSE),"") ->  | I10: 23 | J10: 23 | K10: 1 | L10: 23 | O10: 1
A11: =RANK(J11,$J$5:$J$39,0) -> 7 | B11: Ben Timbers | C11: =VLOOKUP(B11,'Age Cat'!F:G,2,FALSE) -> V40 | D11: =IFERROR(VLOOKUP($B11,'2017 extreme results'!$B$3:$D$14,3,FALSE),"") ->  | E11: =IFERROR(VLOOKUP($B11,'2017 extreme results'!$B$22:$D$31,3,FALSE),"") -> 22 | F11: =IFERROR(VLOOKUP($B11,'2017 extreme results'!$B$34:$D$49,3,FALSE),"") ->  | G11: =IFERROR(VLOOKUP($B11,'2017 extreme results'!$B$53:$D$64,3,FALSE),"") ->  | H11: =IFERROR(VLOOKUP($B11,'2017 extreme results'!$B$68:$D$79,3,FALSE),"") ->  | I11: 22 | J11: 22 | K11: 1 | L11: 22 | O11: 1
A12: =RANK(J12,$J$5:$J$39,0) -> 7 | B12: Simon Bellwood | C12: =VLOOKUP(B12,'Age Cat'!F:G,2,FALSE) -> V50 | D12: =IFERROR(VLOOKUP($B12,'2017 extreme results'!$B$3:$D$14,3,FALSE),"") -> 22 | E12: =IFERROR(VLOOKUP($B12,'2017 extreme results'!$B$22:$D$31,3,FALSE),"") ->  | F12: =IFERROR(VLOOKUP($B12,'2017 extreme results'!$B$34:$D$49,3,FALSE),"") ->  | G12: =IFERROR(VLOOKUP($B12,'2017 extreme results'!$B$53:$D$64,3,FALSE),"") ->  | H12: =IFERROR(VLOOKUP($B12,'2017 extreme results'!$B$68:$D$79,3,FALSE),"") ->  | I12: 22 | J12: 22 | K12: 1 | L12: 22 | O12: 1
A13: =RANK(J13,$J$5:$J$39,0) -> 9 | B13: Rick Harwood | D13: =IFERROR(VLOOKUP($B13,'2017 extreme results'!$B$3:$D$14,3,FALSE),"") ->  | E13: =IFERROR(VLOOKUP($B13,'2017 extreme results'!$B$22:$D$31,3,FALSE),"") -> 21 | F13: =IFERROR(VLOOKUP($B13,'2017 extreme results'!$B$34:$D$49,3,FALSE),"") ->  | G13: =IFERROR(VLOOKUP($B13,'2017 extreme results'!$B$53:$D$64,3,FALSE),"") ->  | H13: =IFERROR(VLOOKUP($B13,'2017 extreme results'!$B$68:$D$79,3,FALSE),"") ->  | I13: 21 | J13: 21 | K13: 1 | L13: 21 | O13: 1
A14: =RANK(J14,$J$5:$J$39,0) -> 9 | B14: Russell Fairhurst | C14: =VLOOKUP(B14,'Age Cat'!F:G,2,FALSE) -> V50 | D14: =IFERROR(VLOOKUP($B14,'2017 extreme results'!$B$3:$D$14,3,FALSE),"") -> 21 | E14: =IFERROR(VLOOKUP($B14,'2017 extreme results'!$B$22:$D$31,3,FALSE),"") ->  | F14: =IFERROR(VLOOKUP($B14,'2017 extreme results'!$B$34:$D$49,3,FALSE),"") ->  | G14: =IFERROR(VLOOKUP($B14,'2017 extreme results'!$B$53:$D$64,3,FALSE),"") ->  | H14: =IFERROR(VLOOKUP($B14,'2017 extreme results'!$B$68:$D$79,3,FALSE),"") ->  | I14: 21 | J14: 21 | K14: 1 | L14: =IFERROR(LARGE($D14:$H14,D$3),"") -> 21 | M14: =IFERROR(LARGE($D14:$H14,E$3),"") ->  | N14: =IFERROR(LARGE($D14:$H14,F$3),"") ->  | O14: 1
A15: =RANK(J15,$J$5:$J$39,0) -> 12 | B15: Steve Carter | C15: =VLOOKUP(B15,'Age Cat'!F:G,2,FALSE) -> V60 | D15: =IFERROR(VLOOKUP($B15,'2017 extreme results'!$B$3:$D$14,3,FALSE),"") -> 19 | E15: =IFERROR(VLOOKUP($B15,'2017 extreme results'!$B$22:$D$31,3,FALSE),"") ->  | F15: =IFERROR(VLOOKUP($B15,'2017 extreme results'!$B$34:$D$49,3,FALSE),"") ->  | G15: =IFERROR(VLOOKUP($B15,'2017 extreme results'!$B$53:$D$64,3,FALSE),"") ->  | H15: =IFERROR(VLOOKUP($B15,'2017 extreme results'!$B$68:$D$79,3,FALSE),"") ->  | I15: 19 | J15: 19 | K15: 1 | L15: 19 | O15: 1
A16: =RANK(J16,$J$5:$J$39,0) -> 14 | B16: Russell Aydon-Butler | D16: =IFERROR(VLOOKUP($B16,'2017 extreme results'!$B$3:$D$14,3,FALSE),"") ->  | E16: =IFERROR(VLOOKUP($B16,'2017 extreme results'!$B$22:$D$31,3,FALSE),"") -> 18 | F16: =IFERROR(VLOOKUP($B16,'2017 extreme results'!$B$34:$D$49,3,FALSE),"") ->  | G16: =IFERROR(VLOOKUP($B16,'2017 extreme results'!$B$53:$D$64,3,FALSE),"") ->  | H16: =IFERROR(VLOOKUP($B16,'2017 extreme results'!$B$68:$D$79,3,FALSE),"") ->  | I16: =IF(SUM(D16:H16)=0,"",SUM(D16:H16)) -> 18 | J16: =SUM(L16:N16) -> 18 | K16: =IF(COUNT(D16:H16)=0,"",COUNT(D16:H16)) -> 1 | L16: =IFERROR(LARGE($D16:$H16,D$3),"") -> 18 | M16: =IFERROR(LARGE($D16:$H16,E$3),"") ->  | N16: =IFERROR(LARGE($D16:$H16,F$3),"") ->  | O16: =COUNT(L16:N16) -> 1
A17: =RANK(J17,$J$5:$J$39,0) -> 14 | B17: Ian Rodgers | D17: =IFERROR(VLOOKUP($B17,'2017 extreme results'!$B$3:$D$14,3,FALSE),"") -> 18 | E17: =IFERROR(VLOOKUP($B17,'2017 extreme results'!$B$22:$D$31,3,FALSE),"") ->  | F17: =IFERROR(VLOOKUP($B17,'2017 extreme results'!$B$34:$D$49,3,FALSE),"") ->  | G17: =IFERROR(VLOOKUP($B17,'2017 extreme results'!$B$53:$D$64,3,FALSE),"") ->  | H17: =IFERROR(VLOOKUP($B17,'2017 extreme results'!$B$68:$D$79,3,FALSE),"") ->  | I17: 18 | J17: 18 | K17: 1 | L17: 18 | O17: 1
A18: =RANK(J18,$J$5:$J$39,0) -> 16 | B18: David Copping | C18: =VLOOKUP(B18,'Age Cat'!F:G,2,FALSE) -> V50 | D18: =IFERROR(VLOOKUP($B18,'2017 extreme results'!$B$3:$D$14,3,FALSE),"") ->  | E18: =IFERROR(VLOOKUP($B18,'2017 extreme results'!$B$22:$D$31,3,FALSE),"") -> 17 | F18: =IFERROR(VLOOKUP($B18,'2017 extreme results'!$B$34:$D$49,3,FALSE),"") ->  | G18: =IFERROR(VLOOKUP($B18,'2017 extreme results'!$B$53:$D$64,3,FALSE),"") ->  | H18: =IFERROR(VLOOKUP($B18,'2017 extreme results'!$B$68:$D$79,3,FALSE),"") ->  | I18: 17 | J18: 17 | K18: 1 | L18: 17 | O18: 1
A19: =RANK(J19,$J$5:$J$39,0) -> 17 | B19: Andrew Travis | C19: =VLOOKUP(B19,'Age Cat'!F:G,2,FALSE) -> V40 | D19: =IFERROR(VLOOKUP($B19,'2017 extreme results'!$B$3:$D$14,3,FALSE),"") ->  | E19: =IFERROR(VLOOKUP($B19,'2017 extreme results'!$B$22:$D$31,3,FALSE),"") -> 16 | F19: =IFERROR(VLOOKUP($B19,'2017 extreme results'!$B$34:$D$49,3,FALSE),"") ->  | G19: =IFERROR(VLOOKUP($B19,'2017 extreme results'!$B$53:$D$64,3,FALSE),"") ->  | H19: =IFERROR(VLOOKUP($B19,'2017 extreme results'!$B$68:$D$79,3,FALSE),"") ->  | I19: 16 | J19: 16 | K19: 1 | L19: 16 | O19: 1
A20: =RANK(J20,$J$5:$J$39,0) -> 18 | B20: Dan Timbers | D20: =IFERROR(VLOOKUP($B20,'2017 extreme results'!$B$3:$D$14,3,FALSE),"") ->  | E20: =IFERROR(VLOOKUP($B20,'2017 extreme results'!$B$22:$D$31,3,FALSE),"") ->  | F20: =IFERROR(VLOOKUP($B20,'2017 extreme results'!$B$34:$D$49,3,FALSE),"") -> 13 | G20: =IFERROR(VLOOKUP($B20,'2017 extreme results'!$B$53:$D$64,3,FALSE),"") ->  | H20: =IFERROR(VLOOKUP($B20,'2017 extreme results'!$B$68:$D$79,3,FALSE),"") ->  | I20: 13 | J20: 13 | K20: 1 | L20: 13 | O20: 1
A21: =RANK(J21,$J$5:$J$39,0) -> 20 | B21: Alistair Gavins | C21: =VLOOKUP(B21,'Age Cat'!F:G,2,FALSE) -> V50 | D21: =IFERROR(VLOOKUP($B21,'2017 extreme results'!$B$3:$D$14,3,FALSE),"") ->  | E21: =IFERROR(VLOOKUP($B21,'2017 extreme results'!$B$22:$D$31,3,FALSE),"") ->  | F21: =IFERROR(VLOOKUP($B21,'2017 extreme results'!$B$34:$D$49,3,FALSE),"") ->  | G21: =IFERROR(VLOOKUP($B21,'2017 extreme results'!$B$53:$D$64,3,FALSE),"") ->  | H21: =IFERROR(VLOOKUP($B21,'2017 extreme results'!$B$68:$D$79,3,FALSE),"") ->  | J21: 0 | O21: 0
A22: =RANK(J22,$J$5:$J$39,0) -> 20 | B22: Peter Smith | C22: =VLOOKUP(B22,'Age Cat'!F:G,2,FALSE) -> V30 | D22: =IFERROR(VLOOKUP($B22,'2017 extreme results'!$B$3:$D$15,3,FALSE),"") ->  | E22: =IFERROR(VLOOKUP($B22,'2017 extreme results'!$B$22:$D$31,3,FALSE),"") ->  | F22: =IFERROR(VLOOKUP($B22,'2017 extreme results'!$B$34:$D$49,3,FALSE),"") ->  | G22: =IFERROR(VLOOKUP($B22,'2017 extreme results'!$B$53:$D$64,3,FALSE),"") ->  | H22: =IFERROR(VLOOKUP($B22,'2017 extreme results'!$B$68:$D$79,3,FALSE),"") ->  | J22: =SUM(L22:N22) -> 0 | O22: =COUNT(L22:N22) -> 0
A23: 2 | B23: Ian Willis | D23: =IFERROR(VLOOKUP($B23,'2017 extreme results'!$B$3:$D$14,3,FALSE),"") ->  | E23: =IFERROR(VLOOKUP($B23,'2017 extreme results'!$B$22:$D$31,3,FALSE),"") ->  | F23: =IFERROR(VLOOKUP($B23,'2017 extreme results'!$B$34:$D$49,3,FALSE),"") ->  | G23: =IFERROR(VLOOKUP($B23,'2017 extreme results'!$B$53:$D$64,3,FALSE),"") ->  | H23: =IFERROR(VLOOKUP($B23,'2017 extreme results'!$B$68:$D$79,3,FALSE),"") ->  | J23: 0 | O23: 0
A24: 3 | B24: Alfie Walker | D24: =IFERROR(VLOOKUP($B24,'2017 extreme results'!$B$3:$D$14,3,FALSE),"") ->  | E24: =IFERROR(VLOOKUP($B24,'2017 extreme results'!$B$22:$D$31,3,FALSE),"") ->  | F24: =IFERROR(VLOOKUP($B24,'2017 extreme results'!$B$34:$D$49,3,FALSE),"") ->  | G24: =IFERROR(VLOOKUP($B24,'2017 extreme results'!$B$53:$D$64,3,FALSE),"") ->  | H24: =IFERROR(VLOOKUP($B24,'2017 extreme results'!$B$68:$D$79,3,FALSE),"") ->  | J24: 0 | O24: 0
A25: 4 | B25: Paul Crabtree | D25: =IFERROR(VLOOKUP($B25,'2017 extreme results'!$B$3:$D$14,3,FALSE),"") ->  | E25: =IFERROR(VLOOKUP($B25,'2017 extreme results'!$B$22:$D$31,3,FALSE),"") ->  | F25: =IFERROR(VLOOKUP($B25,'2017 extreme results'!$B$34:$D$49,3,FALSE),"") ->  | G25: =IFERROR(VLOOKUP($B25,'2017 extreme results'!$B$53:$D$64,3,FALSE),"") ->  | H25: =IFERROR(VLOOKUP($B25,'2017 extreme results'!$B$68:$D$79,3,FALSE),"") ->  | J25: 0 | O25: 0
A26: 5 | B26: Dave Copping | D26: =IFERROR(VLOOKUP($B26,'2017 extreme results'!$B$3:$D$14,3,FALSE),"") ->  | E26: =IFERROR(VLOOKUP($B26,'2017 extreme results'!$B$22:$D$31,3,FALSE),"") ->  | F26: =IFERROR(VLOOKUP($B26,'2017 extreme results'!$B$34:$D$49,3,FALSE),"") ->  | G26: =IFERROR(VLOOKUP($B26,'2017 extreme results'!$B$53:$D$64,3,FALSE),"") ->  | H26: =IFERROR(VLOOKUP($B26,'2017 extreme results'!$B$68:$D$79,3,FALSE),"") ->  | J26: 0 | O26: 0
A27: 6 | B27: Peter Lloyd | D27: =IFERROR(VLOOKUP($B27,'2017 extreme results'!$B$3:$D$14,3,FALSE),"") ->  | E27: =IFERROR(VLOOKUP($B27,'2017 extreme results'!$B$22:$D$31,3,FALSE),"") -> 19 | F27: =IFERROR(VLOOKUP($B27,'2017 extreme results'!$B$34:$D$49,3,FALSE),"") ->  | G27: =IFERROR(VLOOKUP($B27,'2017 extreme results'!$B$53:$D$64,3,FALSE),"") ->  | H27: =IFERROR(VLOOKUP($B27,'2017 extreme results'!$B$68:$D$79,3,FALSE),"") ->  | I27: 19 | J27: 19 | K27: 1 | L27: 19 | O27: 1
A28: 8 | B28: Tim Thom | D28: =IFERROR(VLOOKUP($B28,'2017 extreme results'!$B$3:$D$14,3,FALSE),"") ->  | E28: =IFERROR(VLOOKUP($B28,'2017 extreme results'!$B$22:$D$31,3,FALSE),"") ->  | F28: =IFERROR(VLOOKUP($B28,'2017 extreme results'!$B$34:$D$49,3,FALSE),"") -> 11 | G28: =IFERROR(VLOOKUP($B28,'2017 extreme results'!$B$53:$D$64,3,FALSE),"") ->  | H28: =IFERROR(VLOOKUP($B28,'2017 extreme results'!$B$68:$D$79,3,FALSE),"") ->  | I28: 11 | J28: 11 | K28: 1 | L28: 11 | O28: 1
A29: 9 | B29: Paul Sessford | D29: =IFERROR(VLOOKUP($B29,'2017 extreme results'!$B$3:$D$14,3,FALSE),"") ->  | E29: =IFERROR(VLOOKUP($B29,'2017 extreme results'!$B$22:$D$31,3,FALSE),"") ->  | F29: =IFERROR(VLOOKUP($B29,'2017 extreme results'!$B$34:$D$49,3,FALSE),"") ->  | G29: =IFERROR(VLOOKUP($B29,'2017 extreme results'!$B$53:$D$64,3,FALSE),"") ->  | H29: =IFERROR(VLOOKUP($B29,'2017 extreme results'!$B$68:$D$79,3,FALSE),"") ->  | J29: 0 | O29: 0
A30: 10 | B30: Tony Booth | D30: =IFERROR(VLOOKUP($B30,'2017 extreme results'!$B$3:$D$14,3,FALSE),"") ->  | E30: =IFERROR(VLOOKUP($B30,'2017 extreme results'!$B$22:$D$31,3,FALSE),"") ->  | F30: =IFERROR(VLOOKUP($B30,'2017 extreme results'!$B$34:$D$49,3,FALSE),"") ->  | G30: =IFERROR(VLOOKUP($B30,'2017 extreme results'!$B$53:$D$64,3,FALSE),"") ->  | H30: =IFERROR(VLOOKUP($B30,'2017 extreme results'!$B$68:$D$79,3,FALSE),"") ->  | J30: 0 | O30: 0
A31: 11 | B31: Alan Turner | D31: =IFERROR(VLOOKUP($B31,'2017 extreme results'!$B$3:$D$14,3,FALSE),"") ->  | E31: =IFERROR(VLOOKUP($B31,'2017 extreme results'!$B$22:$D$31,3,FALSE),"") ->  | F31: =IFERROR(VLOOKUP($B31,'2017 extreme results'!$B$34:$D$49,3,FALSE),"") ->  | G31: =IFERROR(VLOOKUP($B31,'2017 extreme results'!$B$53:$D$64,3,FALSE),"") ->  | H31: =IFERROR(VLOOKUP($B31,'2017 extreme results'!$B$68:$D$79,3,FALSE),"") ->  | J31: 0 | O31: 0
A32: 12 | B32: John Conroy | D32: =IFERROR(VLOOKUP($B32,'2017 extreme results'!$B$3:$D$14,3,FALSE),"") ->  | E32: =IFERROR(VLOOKUP($B32,'2017 extreme results'!$B$22:$D$31,3,FALSE),"") -> 20 | F32: =IFERROR(VLOOKUP($B32,'2017 extreme results'!$B$34:$D$49,3,FALSE),"") ->  | G32: =IFERROR(VLOOKUP($B32,'2017 extreme results'!$B$53:$D$64,3,FALSE),"") ->  | H32: =IFERROR(VLOOKUP($B32,'2017 extreme results'!$B$68:$D$79,3,FALSE),"") ->  | I32: 20 | J32: 20 | K32: 1 | L32: 20 | O32: 1
A33: 21 | B33: Stuart Walton | D33: =IFERROR(VLOOKUP($B33,'2017 extreme results'!$B$3:$D$14,3,FALSE),"") ->  | E33: =IFERROR(VLOOKUP($B33,'2017 extreme results'!$B$22:$D$31,3,FALSE),"") ->  | F33: =IFERROR(VLOOKUP($B33,'2017 extreme results'!$B$34:$D$49,3,FALSE),"") ->  | G33: =IFERROR(VLOOKUP($B33,'2017 extreme results'!$B$53:$D$64,3,FALSE),"") ->  | H33: =IFERROR(VLOOKUP($B33,'2017 extreme results'!$B$68:$D$79,3,FALSE),"") ->  | J33: 0 | O33: 0
A34: 22 | B34: Joe Atherton | D34: =IFERROR(VLOOKUP($B34,'2017 extreme results'!$B$3:$D$14,3,FALSE),"") ->  | E34: =IFERROR(VLOOKUP($B34,'2017 extreme results'!$B$22:$D$31,3,FALSE),"") ->  | F34: =IFERROR(VLOOKUP($B34,'2017 extreme results'!$B$34:$D$49,3,FALSE),"") ->  | G34: =IFERROR(VLOOKUP($B34,'2017 extreme results'!$B$53:$D$64,3,FALSE),"") ->  | H34: =IFERROR(VLOOKUP($B34,'2017 extreme results'!$B$68:$D$79,3,FALSE),"") ->  | J34: 0 | O34: 0
A35: 23 | B35: Gary Ward | D35: =IFERROR(VLOOKUP($B35,'2017 extreme results'!$B$3:$D$14,3,FALSE),"") ->  | E35: =IFERROR(VLOOKUP($B35,'2017 extreme results'!$B$22:$D$31,3,FALSE),"") ->  | F35: =IFERROR(VLOOKUP($B35,'2017 extreme results'!$B$34:$D$49,3,FALSE),"") ->  | G35: =IFERROR(VLOOKUP($B35,'2017 extreme results'!$B$53:$D$64,3,FALSE),"") ->  | H35: =IFERROR(VLOOKUP($B35,'2017 extreme results'!$B$68:$D$79,3,FALSE),"") ->  | J35: 0 | O35: 0
A36: 24 | B36: Gary Chapman | D36: =IFERROR(VLOOKUP($B36,'2017 extreme results'!$B$3:$D$14,3,FALSE),"") ->  | E36: =IFERROR(VLOOKUP($B36,'2017 extreme results'!$B$22:$D$31,3,FALSE),"") ->  | F36: =IFERROR(VLOOKUP($B36,'2017 extreme results'!$B$34:$D$49,3,FALSE),"") ->  | G36: =IFERROR(VLOOKUP($B36,'2017 extreme results'!$B$53:$D$64,3,FALSE),"") ->  | H36: =IFERROR(VLOOKUP($B36,'2017 extreme results'!$B$68:$D$79,3,FALSE),"") ->  | J36: 0 | O36: 0
A37: 25 | B37: Chris Tomes | D37: =IFERROR(VLOOKUP($B37,'2017 extreme results'!$B$3:$D$14,3,FALSE),"") ->  | E37: =IFERROR(VLOOKUP($B37,'2017 extreme results'!$B$22:$D$31,3,FALSE),"") ->  | F37: =IFERROR(VLOOKUP($B37,'2017 extreme results'!$B$34:$D$49,3,FALSE),"") ->  | G37: =IFERROR(VLOOKUP($B37,'2017 extreme results'!$B$53:$D$64,3,FALSE),"") ->  | H37: =IFERROR(VLOOKUP($B37,'2017 extreme results'!$B$68:$D$79,3,FALSE),"") ->  | J37: 0 | O37: 0
A38: 26 | B38: Nick Dewell | D38: =IFERROR(VLOOKUP($B38,'2017 extreme results'!$B$3:$D$14,3,FALSE),"") ->  | E38: =IFERROR(VLOOKUP($B38,'2017 extreme results'!$B$22:$D$31,3,FALSE),"") ->  | F38: =IFERROR(VLOOKUP($B38,'2017 extreme results'!$B$34:$D$49,3,FALSE),"") ->  | G38: =IFERROR(VLOOKUP($B38,'2017 extreme results'!$B$53:$D$64,3,FALSE),"") ->  | H38: =IFERROR(VLOOKUP($B38,'2017 extreme results'!$B$68:$D$79,3,FALSE),"") ->  | J38: 0 | O38: 0
A39: 27 | B39: Neil Palmer | D39: =IFERROR(VLOOKUP($B39,'2017 extreme results'!$B$3:$D$14,3,FALSE),"") ->  | E39: =IFERROR(VLOOKUP($B39,'2017 extreme results'!$B$22:$D$31,3,FALSE),"") ->  | F39: =IFERROR(VLOOKUP($B39,'2017 extreme results'!$B$34:$D$49,3,FALSE),"") ->  | G39: =IFERROR(VLOOKUP($B39,'2017 extreme results'!$B$53:$D$64,3,FALSE),"") ->  | H39: =IFERROR(VLOOKUP($B39,'2017 extreme results'!$B$68:$D$79,3,FALSE),"") ->  | J39: 0 | O39: 0
A40: 28 | B40: Richard Hindle | D40: =IFERROR(VLOOKUP($B40,'2017 extreme results'!$B$3:$D$14,3,FALSE),"") ->  | E40: =IFERROR(VLOOKUP($B40,'2017 extreme results'!$B$22:$D$31,3,FALSE),"") ->  | F40: =IFERROR(VLOOKUP($B40,'2017 extreme results'!$B$34:$D$49,3,FALSE),"") ->  | G40: =IFERROR(VLOOKUP($B40,'2017 extreme results'!$B$53:$D$64,3,FALSE),"") ->  | H40: =IFERROR(VLOOKUP($B40,'2017 extreme results'!$B$68:$D$79,3,FALSE),"") ->  | J40: 0 | O40: 0
A41: 29 | B41: Arthur Leng | D41: =IFERROR(VLOOKUP($B41,'2017 extreme results'!$B$3:$D$14,3,FALSE),"") ->  | E41: =IFERROR(VLOOKUP($B41,'2017 extreme results'!$B$22:$D$31,3,FALSE),"") ->  | F41: =IFERROR(VLOOKUP($B41,'2017 extreme results'!$B$34:$D$49,3,FALSE),"") ->  | G41: =IFERROR(VLOOKUP($B41,'2017 extreme results'!$B$53:$D$64,3,FALSE),"") ->  | H41: =IFERROR(VLOOKUP($B41,'2017 extreme results'!$B$68:$D$79,3,FALSE),"") ->  | J41: 0 | O41: 0
A43: Pos | B43: Name | D43: 1 | E43: 2 | F43: 3 | G43: 4 | H43: 5 | I43: Total | J43: Scoring Total | K43: # Races | L43: Top 3 results
D44: =VLOOKUP(D43,$A$57:$C$65,2,FALSE) -> 2017-02-04 | E44: =VLOOKUP(E43,$A$57:$C$65,2,FALSE) -> 2017-04-29 | F44: =VLOOKUP(F43,$A$57:$C$65,2,FALSE) -> 2017-06-10 | G44: =VLOOKUP(G43,$A$57:$C$65,2,FALSE) -> 2017-08-05 | H44: =VLOOKUP(H43,$A$57:$C$65,2,FALSE) -> 2017-11-18 | L44: =D43 -> 1 | M44: =E43 -> 2 | N44: =F43 -> 3
A45: =RANK(J45,$J$45:$J$55,0) -> 1 | B45: Diane Macdonald | C45: =VLOOKUP(B45,'Age Cat'!F:G,2,FALSE) -> V40 | D45: =IFERROR(VLOOKUP($B45,'2017 extreme results'!$B$3:$D$14,3,FALSE),"") -> 25 | E45: =IFERROR(VLOOKUP($B45,'2017 extreme results'!$B$22:$D$31,3,FALSE),"") ->  | F45: =IFERROR(VLOOKUP($B45,'2017 extreme results'!$B$34:$D$49,3,FALSE),"") ->  | I45: =IF(SUM(D45:H45)=0,"",SUM(D45:H45)) -> 25 | J45: =SUM(L45:N45) -> 25 | K45: =IF(COUNT(D45:H45)=0,"",COUNT(D45:H45)) -> 1 | L45: =IFERROR(LARGE($D45:$H45,D$3),"") -> 25 | O45: =COUNT(L45:N45) -> 1
A46: =RANK(J46,$J$45:$J$55,0) -> 1 | B46: Angela Paxton | C46: =VLOOKUP(B46,'Age Cat'!F:G,2,FALSE) -> V50 | D46: =IFERROR(VLOOKUP($B46,'2017 extreme results'!$B$3:$D$14,3,FALSE),"") ->  | E46: =IFERROR(VLOOKUP($B46,'2017 extreme results'!$B$22:$D$31,3,FALSE),"") ->  | F46: =IFERROR(VLOOKUP($B46,'2017 extreme results'!$B$34:$D$49,3,FALSE),"") -> 25 | I46: =IF(SUM(D46:H46)=0,"",SUM(D46:H46)) -> 25 | J46: =SUM(L46:N46) -> 25 | K46: =IF(COUNT(D46:H46)=0,"",COUNT(D46:H46)) -> 1 | L46: =IFERROR(LARGE($D46:$H46,D$3),"") -> 25 | M46: =IFERROR(LARGE($D46:$H46,E$3),"") ->  | N46: =IFERROR(LARGE($D46:$H46,F$3),"") ->  | O46: =COUNT(L46:N46) -> 1
A47: =RANK(J47,$J$45:$J$55,0) -> 3 | B47: Sharon Hudson | C47: =VLOOKUP(B47,'Age Cat'!F:G,2,FALSE) -> V40 | D47: =IFERROR(VLOOKUP($B47,'2017 extreme results'!$B$3:$D$14,3,FALSE),"") ->  | E47: =IFERROR(VLOOKUP($B47,'2017 extreme results'!$B$22:$D$31,3,FALSE),"") ->  | F47: =IFERROR(VLOOKUP($B47,'2017 extreme results'!$B$34:$D$49,3,FALSE),"") -> 24 | I47: 24 | J47: 24 | K47: 1 | L47: 24 | O47: 1
A48: =RANK(J48,$J$45:$J$55,0) -> 3 | B48: Hannah Yates | C48: =VLOOKUP(B48,'Age Cat'!F:G,2,FALSE) -> S | D48: =IFERROR(VLOOKUP($B48,'2017 extreme results'!$B$3:$D$14,3,FALSE),"") -> 24 | E48: =IFERROR(VLOOKUP($B48,'2017 extreme results'!$B$22:$D$31,3,FALSE),"") ->  | F48: =IFERROR(VLOOKUP($B48,'2017 extreme results'!$B$34:$D$49,3,FALSE),"") ->  | I48: 24 | J48: 24 | K48: 1 | L48: 24 | O48: 1
A49: =RANK(J49,$J$45:$J$55,0) -> 5 | B49: Amanda Sterling | C49: =VLOOKUP(B49,'Age Cat'!F:G,2,FALSE) -> V40 | D49: =IFERROR(VLOOKUP($B49,'2017 extreme results'!$B$3:$D$14,3,FALSE),"") ->  | E49: =IFERROR(VLOOKUP($B49,'2017 extreme results'!$B$22:$D$31,3,FALSE),"") ->  | F49: =IFERROR(VLOOKUP($B49,'2017 extreme results'!$B$34:$D$49,3,FALSE),"") -> 23 | I49: 23 | J49: 23 | K49: 1 | L49: 23 | O49: 1
A50: =RANK(J50,$J$45:$J$55,0) -> 5 | B50: Donna Chester | C50: =VLOOKUP(B50,'Age Cat'!F:G,2,FALSE) -> V30 | D50: =IFERROR(VLOOKUP($B50,'2017 extreme results'!$B$3:$D$14,3,FALSE),"") -> 23 | E50: =IFERROR(VLOOKUP($B50,'2017 extreme results'!$B$22:$D$31,3,FALSE),"") ->  | F50: =IFERROR(VLOOKUP($B50,'2017 extreme results'!$B$34:$D$49,3,FALSE),"") ->  | I50: 23 | J50: 23 | K50: 1 | L50: 23 | O50: 1
A51: =RANK(J51,$J$45:$J$55,0) -> 7 | B51: Hannah Thom | C51: =VLOOKUP(B51,'Age Cat'!F:G,2,FALSE) -> S | D51: =IFERROR(VLOOKUP($B51,'2017 extreme results'!$B$3:$D$14,3,FALSE),"") ->  | E51: =IFERROR(VLOOKUP($B51,'2017 extreme results'!$B$22:$D$31,3,FALSE),"") ->  | F51: =IFERROR(VLOOKUP($B51,'2017 extreme results'!$B$34:$D$49,3,FALSE),"") -> 22 | I51: 22 | J51: 22 | K51: 1 | L51: 22 | O51: 1
A52: =RANK(J52,$J$45:$J$55,0) -> 7 | B52: Victoria Wadsworth | C52: =VLOOKUP(B52,'Age Cat'!F:G,2,FALSE) -> V40 | D52: =IFERROR(VLOOKUP($B52,'2017 extreme results'!$B$3:$D$14,3,FALSE),"") -> 22 | E52: =IFERROR(VLOOKUP($B52,'2017 extreme results'!$B$22:$D$31,3,FALSE),"") ->  | F52: =IFERROR(VLOOKUP($B52,'2017 extreme results'!$B$34:$D$49,3,FALSE),"") ->  | I52: 22 | J52: 22 | K52: 1 | L52: 22 | O52: 1
A53: 5 | B53: Jane Sedgwick | C53: F | D53: =IFERROR(VLOOKUP($B53,'2017 extreme results'!$B$3:$D$14,3,FALSE),"") ->  | E53: =IFERROR(VLOOKUP($B53,'2017 extreme results'!$B$22:$D$31,3,FALSE),"") ->  | F53: =IFERROR(VLOOKUP($B53,'2017 extreme results'!$B$34:$D$49,3,FALSE),"") ->  | J53: 0 | O53: 0
A54: 9 | B54: Emma Dooks | C54: F | D54: =IFERROR(VLOOKUP($B54,'2017 extreme results'!$B$3:$D$14,3,FALSE),"") ->  | E54: =IFERROR(VLOOKUP($B54,'2017 extreme results'!$B$22:$D$31,3,FALSE),"") ->  | F54: =IFERROR(VLOOKUP($B54,'2017 extreme results'!$B$34:$D$49,3,FALSE),"") ->  | J54: 0 | O54: 0
A55: 10 | B55: Amanda Morrison | C55: F | D55: =IFERROR(VLOOKUP($B55,'2017 extreme results'!$B$3:$D$14,3,FALSE),"") ->  | E55: =IFERROR(VLOOKUP($B55,'2017 extreme results'!$B$22:$D$31,3,FALSE),"") ->  | F55: =IFERROR(VLOOKUP($B55,'2017 extreme results'!$B$34:$D$49,3,FALSE),"") ->  | J55: 0 | O55: 0
A57: 1 | B57: 2017-02-04 | C57: Rombald Stride 23m
A58: 2 | B58: 2017-04-29 | C58: 3 Peaks 23.2m
A59: 3 | B59: 2017-06-10 | C59: Ennerdale 22.9m
A60: 4 | B60: 2017-08-05 | C60: Borrowdale 16.8m
A61: 5 | B61: 2017-11-18 | C61: Full Tour of Pendle 16.8m

Sheet 2017 fell Table
A1: 2017 - Fell (Best 5 of 9 Races)
D2: =VLOOKUP(D3,$A$40:$C$48,3,FALSE) -> Hoofstones | E2: Bleasdale Circle | F2: Stan Bradshaw Pendle Round | G2: Coledale Horseshoe | H2: Oakworth Haul | I2: Grisedale Horseshoe | J2: Great Whernside | K2: Mytholmroyd | L2: Guisborough Wood
A3: Pos | B3: Name | D3: 1 | E3: 2 | F3: 3 | G3: 4 | H3: 5 | I3: 6 | J3: 7 | K3: 8 | L3: 9 | M3: Total | N3: Scoring Total | O3: # Races | P3: Top 5 Results
D4: =VLOOKUP(D3,$A$40:$C$48,2,FALSE) -> 2017-01-28 | E4: 2017-02-18 | F4: 2017-03-04 | G4: 2017-04-08 | H4: 2017-07-01 | I4: 2017-09-02 | J4: 2017-09-23 | K4: 2017-12-09 | L4: 2017-12-27 | P4: =D3 -> 1 | Q4: 2 | R4: 3 | S4: 4 | T4: 5
A5: =RANK(M5,$M$5:$M$18,0) -> 1 | B5: John-Paul Hopkinson | C5: =VLOOKUP(B5,'Age Cat'!F:G,2,FALSE) -> V40 | D5: =IFERROR(VLOOKUP($B5,'2017 fell results'!$B$3:$D$14,3,FALSE),"") -> 25 | E5: =IFERROR(VLOOKUP($B5,'2017 fell results'!$B$18:$D$29,3,FALSE),"") -> 24 | F5: =IFERROR(VLOOKUP($B5,'2017 fell results'!$B$35:$D$52,3,FALSE),"") -> 24 | G5: =IFERROR(VLOOKUP($B5,'2017 fell results'!$B$52:$D$63,3,FALSE),"") -> 23 | H5: =IFERROR(VLOOKUP($B5,'2017 fell results'!$B$67:$D$78,3,FALSE),"") ->  | I5: =IFERROR(VLOOKUP($B5,'2017 fell results'!$B$82:$D$93,3,FALSE),"") ->  | J5: =IFERROR(VLOOKUP($B5,'2017 fell results'!$B$97:$D$108,3,FALSE),"") ->  | K5: =IFERROR(VLOOKUP($B5,'2017 fell results'!$B$112:$D$123,3,FALSE),"") ->  | L5: =IFERROR(VLOOKUP($B5,'2017 fell results'!$B$127:$D$138,3,FALSE),"") ->  | M5: =IF(SUM(D5:L5)=0,"",SUM(D5:L5)) -> 96 | N5: =SUM(P5:T5) -> 96 | O5: =IF(COUNT(D5:L5)=0,"",COUNT(D5:L5)) -> 4 | P5: =IFERROR(LARGE($D5:$L5,D$3),"") -> 25 | Q5: =IFERROR(LARGE($D5:$L5,E$3),"") -> 24 | R5: 24 | S5: 23 | U5: =COUNT(P5:T5) -> 4
A6: =RANK(M6,$M$5:$M$18,0) -> 2 | B6: Paul Crabtree | C6: =VLOOKUP(B6,'Age Cat'!F:G,2,FALSE) -> V40 | D6: =IFERROR(VLOOKUP($B6,'2017 fell results'!$B$3:$D$14,3,FALSE),"") -> 22 | E6: =IFERROR(VLOOKUP($B6,'2017 fell results'!$B$18:$D$29,3,FALSE),"") -> 23 | F6: =IFERROR(VLOOKUP($B6,'2017 fell results'!$B$35:$D$52,3,FALSE),"") -> 25 | G6: =IFERROR(VLOOKUP($B6,'2017 fell results'!$B$52:$D$63,3,FALSE),"") -> 25 | H6: =IFERROR(VLOOKUP($B6,'2017 fell results'!$B$67:$D$78,3,FALSE),"") ->  | I6: =IFERROR(VLOOKUP($B6,'2017 fell results'!$B$82:$D$93,3,FALSE),"") ->  | J6: =IFERROR(VLOOKUP($B6,'2017 fell results'!$B$97:$D$108,3,FALSE),"") ->  | K6: =IFERROR(VLOOKUP($B6,'2017 fell results'!$B$112:$D$123,3,FALSE),"") ->  | L6: =IFERROR(VLOOKUP($B6,'2017 fell results'!$B$127:$D$138,3,FALSE),"") ->  | M6: 95 | N6: 95 | O6: 4 | P6: 25 | Q6: 25 | R6: 23 | S6: 22 | U6: 4
A7: =RANK(M7,$M$5:$M$18,0) -> 3 | B7: Dave Evans | C7: =VLOOKUP(B7,'Age Cat'!F:G,2,FALSE) -> V30 | D7: =IFERROR(VLOOKUP($B7,'2017 fell results'!$B$3:$D$14,3,FALSE),"") ->  | E7: =IFERROR(VLOOKUP($B7,'2017 fell results'!$B$18:$D$29,3,FALSE),"") -> 21 | F7: =IFERROR(VLOOKUP($B7,'2017 fell results'!$B$35:$D$52,3,FALSE),"") -> 23 | G7: =IFERROR(VLOOKUP($B7,'2017 fell results'!$B$52:$D$63,3,FALSE),"") -> 24 | H7: =IFERROR(VLOOKUP($B7,'2017 fell results'!$B$67:$D$78,3,FALSE),"") ->  | I7: =IFERROR(VLOOKUP($B7,'2017 fell results'!$B$82:$D$93,3,FALSE),"") ->  | J7: =IFERROR(VLOOKUP($B7,'2017 fell results'!$B$97:$D$108,3,FALSE),"") ->  | K7: =IFERROR(VLOOKUP($B7,'2017 fell results'!$B$112:$D$123,3,FALSE),"") ->  | L7: =IFERROR(VLOOKUP($B7,'2017 fell results'!$B$127:$D$138,3,FALSE),"") ->  | M7: 68 | N7: 68 | O7: 3 | P7: 24 | Q7: 23 | R7: 21 | U7: 3
A8: =RANK(M8,$M$5:$M$18,0) -> 4 | B8: Peter Lloyd | C8: =VLOOKUP(B8,'Age Cat'!F:G,2,FALSE) -> V30 | D8: =IFERROR(VLOOKUP($B8,'2017 fell results'!$B$3:$D$14,3,FALSE),"") -> 20 | E8: =IFERROR(VLOOKUP($B8,'2017 fell results'!$B$18:$D$29,3,FALSE),"") -> 19 | F8: =IFERROR(VLOOKUP($B8,'2017 fell results'!$B$35:$D$52,3,FALSE),"") ->  | G8: =IFERROR(VLOOKUP($B8,'2017 fell results'!$B$52:$D$63,3,FALSE),"") -> 22 | H8: =IFERROR(VLOOKUP($B8,'2017 fell results'!$B$67:$D$78,3,FALSE),"") ->  | I8: =IFERROR(VLOOKUP($B8,'2017 fell results'!$B$82:$D$93,3,FALSE),"") ->  | J8: =IFERROR(VLOOKUP($B8,'2017 fell results'!$B$97:$D$108,3,FALSE),"") ->  | K8: =IFERROR(VLOOKUP($B8,'2017 fell results'!$B$112:$D$123,3,FALSE),"") ->  | L8: =IFERROR(VLOOKUP($B8,'2017 fell results'!$B$127:$D$138,3,FALSE),"") ->  | M8: 61 | N8: 61 | O8: 3 | P8: 22 | Q8: 20 | R8: 19 | U8: 3
A9: =RANK(M9,$M$5:$M$18,0) -> 5 | B9: Richard Butter | C9: =VLOOKUP(B9,'Age Cat'!F:G,2,FALSE) -> V40 | D9: =IFERROR(VLOOKUP($B9,'2017 fell results'!$B$3:$D$14,3,FALSE),"") -> 19 | E9: =IFERROR(VLOOKUP($B9,'2017 fell results'!$B$18:$D$29,3,FALSE),"") -> 18 | F9: =IFERROR(VLOOKUP($B9,'2017 fell results'!$B$35:$D$52,3,FALSE),"") -> 20 | G9: =IFERROR(VLOOKUP($B9,'2017 fell results'!$B$52:$D$63,3,FALSE),"") ->  | H9: =IFERROR(VLOOKUP($B9,'2017 fell results'!$B$67:$D$78,3,FALSE),"") ->  | I9: =IFERROR(VLOOKUP($B9,'2017 fell results'!$B$82:$D$93,3,FALSE),"") ->  | J9: =IFERROR(VLOOKUP($B9,'2017 fell results'!$B$97:$D$108,3,FALSE),"") ->  | K9: =IFERROR(VLOOKUP($B9,'2017 fell results'!$B$112:$D$123,3,FALSE),"") ->  | L9: =IFERROR(VLOOKUP($B9,'2017 fell results'!$B$127:$D$138,3,FALSE),"") ->  | M9: 57 | N9: 57 | O9: 3 | P9: 20 | Q9: 19 | R9: 18 | U9: 3
A10: =RANK(M10,$M$5:$M$18,0) -> 5 | B10: Tim Thom | C10: =VLOOKUP(B10,'Age Cat'!F:G,2,FALSE) -> V50 | D10: =IFERROR(VLOOKUP($B10,'2017 fell results'!$B$3:$D$14,3,FALSE),"") -> 18 | E10: =IFERROR(VLOOKUP($B10,'2017 fell results'!$B$18:$D$29,3,FALSE),"") ->  | F10: =IFERROR(VLOOKUP($B10,'2017 fell results'!$B$35:$D$52,3,FALSE),"") -> 18 | G10: =IFERROR(VLOOKUP($B10,'2017 fell results'!$B$52:$D$63,3,FALSE),"") -> 21 | H10: =IFERROR(VLOOKUP($B10,'2017 fell results'!$B$67:$D$78,3,FALSE),"") ->  | I10: =IFERROR(VLOOKUP($B10,'2017 fell results'!$B$82:$D$93,3,FALSE),"") ->  | J10: =IFERROR(VLOOKUP($B10,'2017 fell results'!$B$97:$D$108,3,FALSE),"") ->  | K10: =IFERROR(VLOOKUP($B10,'2017 fell results'!$B$112:$D$123,3,FALSE),"") ->  | L10: =IFERROR(VLOOKUP($B10,'2017 fell results'!$B$127:$D$138,3,FALSE),"") ->  | M10: 57 | N10: 57 | O10: 3 | P10: 21 | Q10: 18 | R10: 18 | U10: 3
A11: =RANK(M11,$M$5:$M$18,0) -> 7 | B11: Richard Hindle | C11: =VLOOKUP(B11,'Age Cat'!F:G,2,FALSE) -> V60 | D11: =IFERROR(VLOOKUP($B11,'2017 fell results'!$B$3:$D$14,3,FALSE),"") ->  | E11: =IFERROR(VLOOKUP($B11,'2017 fell results'!$B$18:$D$29,3,FALSE),"") -> 17 | F11: =IFERROR(VLOOKUP($B11,'2017 fell results'!$B$35:$D$52,3,FALSE),"") -> 17 | G11: =IFERROR(VLOOKUP($B11,'2017 fell results'!$B$52:$D$63,3,FALSE),"") -> 20 | H11: =IFERROR(VLOOKUP($B11,'2017 fell results'!$B$67:$D$78,3,FALSE),"") ->  | I11: =IFERROR(VLOOKUP($B11,'2017 fell results'!$B$82:$D$93,3,FALSE),"") ->  | J11: =IFERROR(VLOOKUP($B11,'2017 fell results'!$B$97:$D$108,3,FALSE),"") ->  | K11: =IFERROR(VLOOKUP($B11,'2017 fell results'!$B$112:$D$123,3,FALSE),"") ->  | L11: =IFERROR(VLOOKUP($B11,'2017 fell results'!$B$127:$D$138,3,FALSE),"") ->  | M11: 54 | N11: 54 | O11: 3 | P11: 20 | Q11: 17 | R11: 17 | U11: 3
A12: =RANK(M12,$M$5:$M$18,0) -> 8 | B12: Ian Willis | C12: =VLOOKUP(B12,'Age Cat'!F:G,2,FALSE) -> V40 | D12: =IFERROR(VLOOKUP($B12,'2017 fell results'!$B$3:$D$14,3,FALSE),"") -> 24 | E12: =IFERROR(VLOOKUP($B12,'2017 fell results'!$B$18:$D$29,3,FALSE),"") -> 25 | F12: =IFERROR(VLOOKUP($B12,'2017 fell results'!$B$35:$D$52,3,FALSE),"") ->  | G12: =IFERROR(VLOOKUP($B12,'2017 fell results'!$B$52:$D$63,3,FALSE),"") ->  | H12: =IFERROR(VLOOKUP($B12,'2017 fell results'!$B$67:$D$78,3,FALSE),"") ->  | I12: =IFERROR(VLOOKUP($B12,'2017 fell results'!$B$82:$D$93,3,FALSE),"") ->  | J12: =IFERROR(VLOOKUP($B12,'2017 fell results'!$B$97:$D$108,3,FALSE),"") ->  | K12: =IFERROR(VLOOKUP($B12,'2017 fell results'!$B$112:$D$123,3,FALSE),"") ->  | L12: =IFERROR(VLOOKUP($B12,'2017 fell results'!$B$127:$D$138,3,FALSE),"") ->  | M12: 49 | N12: 49 | O12: 2 | P12: 25 | Q12: 24 | U12: 2
A13: =RANK(M13,$M$5:$M$18,0) -> 9 | B13: Alfie Walker | C13: =VLOOKUP(B13,'Age Cat'!F:G,2,FALSE) -> V40 | D13: =IFERROR(VLOOKUP($B13,'2017 fell results'!$B$3:$D$14,3,FALSE),"") -> 23 | E13: =IFERROR(VLOOKUP($B13,'2017 fell results'!$B$18:$D$29,3,FALSE),"") -> 22 | F13: =IFERROR(VLOOKUP($B13,'2017 fell results'!$B$35:$D$52,3,FALSE),"") ->  | G13: =IFERROR(VLOOKUP($B13,'2017 fell results'!$B$52:$D$63,3,FALSE),"") ->  | H13: =IFERROR(VLOOKUP($B13,'2017 fell results'!$B$67:$D$78,3,FALSE),"") ->  | I13: =IFERROR(VLOOKUP($B13,'2017 fell results'!$B$82:$D$93,3,FALSE),"") ->  | J13: =IFERROR(VLOOKUP($B13,'2017 fell results'!$B$97:$D$108,3,FALSE),"") ->  | K13: =IFERROR(VLOOKUP($B13,'2017 fell results'!$B$112:$D$123,3,FALSE),"") ->  | L13: =IFERROR(VLOOKUP($B13,'2017 fell results'!$B$127:$D$138,3,FALSE),"") ->  | M13: 45 | N13: 45 | O13: 2 | P13: 23 | Q13: 22 | U13: 2
A14: =RANK(M14,$M$5:$M$18,0) ->  | B14: David Copping | C14: =VLOOKUP(B14,'Age Cat'!F:G,2,FALSE) -> V50 | D14: =IFERROR(VLOOKUP($B14,'2017 fell results'!$B$3:$D$14,3,FALSE),"") ->  | E14: =IFERROR(VLOOKUP($B14,'2017 fell results'!$B$18:$D$29,3,FALSE),"") ->  | F14: =IFERROR(VLOOKUP($B14,'2017 fell results'!$B$35:$D$52,3,FALSE),"") ->  | G14: =IFERROR(VLOOKUP($B14,'2017 fell results'!$B$52:$D$63,3,FALSE),"") ->  | H14: =IFERROR(VLOOKUP($B14,'2017 fell results'!$B$67:$D$78,3,FALSE),"") ->  | I14: =IFERROR(VLOOKUP($B14,'2017 fell results'!$B$82:$D$93,3,FALSE),"") ->  | J14: =IFERROR(VLOOKUP($B14,'2017 fell results'!$B$97:$D$108,3,FALSE),"") ->  | K14: =IFERROR(VLOOKUP($B14,'2017 fell results'!$B$112:$D$123,3,FALSE),"") ->  | L14: =IFERROR(VLOOKUP($B14,'2017 fell results'!$B$127:$D$138,3,FALSE),"") ->  | N14: 0 | U14: =COUNT(P14:T14) -> 0
A15: =RANK(M15,$M$5:$M$18,0) -> 10 | B15: John Conroy | C15: =VLOOKUP(B15,'Age Cat'!F:G,2,FALSE) -> V40 | D15: =IFERROR(VLOOKUP($B15,'2017 fell results'!$B$3:$D$14,3,FALSE),"") ->  | E15: =IFERROR(VLOOKUP($B15,'2017 fell results'!$B$18:$D$29,3,FALSE),"") -> 20 | F15: =IFERROR(VLOOKUP($B15,'2017 fell results'!$B$35:$D$52,3,FALSE),"") -> 21 | G15: =IFERROR(VLOOKUP($B15,'2017 fell results'!$B$52:$D$63,3,FALSE),"") ->  | H15: =IFERROR(VLOOKUP($B15,'2017 fell results'!$B$67:$D$78,3,FALSE),"") ->  | I15: =IFERROR(VLOOKUP($B15,'2017 fell results'!$B$82:$D$93,3,FALSE),"") ->  | J15: =IFERROR(VLOOKUP($B15,'2017 fell results'!$B$97:$D$108,3,FALSE),"") ->  | K15: =IFERROR(VLOOKUP($B15,'2017 fell results'!$B$112:$D$123,3,FALSE),"") ->  | L15: =IFERROR(VLOOKUP($B15,'2017 fell results'!$B$127:$D$138,3,FALSE),"") ->  | M15: 41 | N15: 41 | O15: 2 | P15: 21 | Q15: 20 | U15: 2
A16: =RANK(M16,$M$5:$M$18,0) -> 11 | B16: Scott Bairstow | C16: =VLOOKUP(B16,'Age Cat'!F:G,2,FALSE) -> V40 | D16: =IFERROR(VLOOKUP($B16,'2017 fell results'!$B$3:$D$14,3,FALSE),"") ->  | E16: =IFERROR(VLOOKUP($B16,'2017 fell results'!$B$18:$D$29,3,FALSE),"") ->  | F16: =IFERROR(VLOOKUP($B16,'2017 fell results'!$B$35:$D$52,3,FALSE),"") -> 25 | G16: =IFERROR(VLOOKUP($B16,'2017 fell results'!$B$52:$D$63,3,FALSE),"") ->  | H16: =IFERROR(VLOOKUP($B16,'2017 fell results'!$B$67:$D$78,3,FALSE),"") ->  | I16: =IFERROR(VLOOKUP($B16,'2017 fell results'!$B$82:$D$93,3,FALSE),"") ->  | J16: =IFERROR(VLOOKUP($B16,'2017 fell results'!$B$97:$D$108,3,FALSE),"") ->  | K16: =IFERROR(VLOOKUP($B16,'2017 fell results'!$B$112:$D$123,3,FALSE),"") ->  | L16: =IFERROR(VLOOKUP($B16,'2017 fell results'!$B$127:$D$138,3,FALSE),"") ->  | M16: 25 | N16: 25 | O16: 1 | P16: 25 | U16: 1
A17: =RANK(M17,$M$5:$M$18,0) -> 12 | B17: Simon Wheeler | C17: =VLOOKUP(B17,'Age Cat'!F:G,2,FALSE) -> V40 | D17: =IFERROR(VLOOKUP($B17,'2017 fell results'!$B$3:$D$14,3,FALSE),"") ->  | E17: =IFERROR(VLOOKUP($B17,'2017 fell results'!$B$18:$D$29,3,FALSE),"") ->  | F17: =IFERROR(VLOOKUP($B17,'2017 fell results'!$B$35:$D$52,3,FALSE),"") -> 19 | G17: =IFERROR(VLOOKUP($B17,'2017 fell results'!$B$52:$D$63,3,FALSE),"") ->  | H17: =IFERROR(VLOOKUP($B17,'2017 fell results'!$B$67:$D$78,3,FALSE),"") ->  | I17: =IFERROR(VLOOKUP($B17,'2017 fell results'!$B$82:$D$93,3,FALSE),"") ->  | J17: =IFERROR(VLOOKUP($B17,'2017 fell results'!$B$97:$D$108,3,FALSE),"") ->  | K17: =IFERROR(VLOOKUP($B17,'2017 fell results'!$B$112:$D$123,3,FALSE),"") ->  | L17: =IFERROR(VLOOKUP($B17,'2017 fell results'!$B$127:$D$138,3,FALSE),"") ->  | M17: 19 | N17: 19 | O17: =IF(COUNT(D17:L17)=0,"",COUNT(D17:L17)) -> 1 | P17: 19 | U17: 1
A18: =RANK(M18,$M$5:$M$18,0) -> 13 | B18: Paul Sessford | C18: =VLOOKUP(B18,'Age Cat'!F:G,2,FALSE) -> V50 | D18: =IFERROR(VLOOKUP($B18,'2017 fell results'!$B$3:$D$14,3,FALSE),"") -> 17 | E18: =IFERROR(VLOOKUP($B18,'2017 fell results'!$B$18:$D$29,3,FALSE),"") ->  | F18: =IFERROR(VLOOKUP($B18,'2017 fell results'!$B$35:$D$52,3,FALSE),"") ->  | G18: =IFERROR(VLOOKUP($B18,'2017 fell results'!$B$52:$D$63,3,FALSE),"") ->  | H18: =IFERROR(VLOOKUP($B18,'2017 fell results'!$B$67:$D$78,3,FALSE),"") ->  | I18: =IFERROR(VLOOKUP($B18,'2017 fell results'!$B$82:$D$93,3,FALSE),"") ->  | J18: =IFERROR(VLOOKUP($B18,'2017 fell results'!$B$97:$D$108,3,FALSE),"") ->  | K18: =IFERROR(VLOOKUP($B18,'2017 fell results'!$B$112:$D$123,3,FALSE),"") ->  | L18: =IFERROR(VLOOKUP($B18,'2017 fell results'!$B$127:$D$138,3,FALSE),"") ->  | M18: 17 | N18: 17 | O18: 1 | P18: 17 | U18: 1
U19: 0
U20: 0
U21: 0
U22: 0
U23: 0
U24: 0
U25: 0
U26: 0
U27: 0
U28: 0
A30: Pos | B30: Name | D30: =D3 -> 1 | E30: =E3 -> 2 | F30: 3 | G30: 4 | H30: 5 | I30: 6 | J30: 7 | K30: 8 | L30: 9 | M30: Total | N30: Scoring Total | O30: # Races | P30: Top 5 Results
D31: =VLOOKUP(D30,$A$40:$C$48,2,FALSE) -> 2017-01-28 | E31: 2017-02-18 | F31: 2017-03-04 | G31: 2017-04-08 | H31: 2017-07-01 | I31: 2017-09-02 | J31: 2017-09-23 | K31: 2017-12-09 | L31: 2017-12-27 | P31: =D30 -> 1 | Q31: 2 | R31: 3 | S31: 4 | T31: 5
A32: 1 | B32: Tracey Hodgson | C32: =VLOOKUP(B32,'Age Cat'!F:G,2,FALSE) -> V30 | D32: =IFERROR(VLOOKUP($B32,'2017 fell results'!$B$3:$D$14,3,FALSE),"") -> 23 | E32: =IFERROR(VLOOKUP($B32,'2017 fell results'!$B$18:$D$29,3,FALSE),"") -> 24 | F32: =IFERROR(VLOOKUP($B32,'2017 fell results'!$B$35:$D$52,3,FALSE),"") -> 23 | G32: =IFERROR(VLOOKUP($B32,'2017 fell results'!$B$52:$D$63,3,FALSE),"") -> 24 | H32: =IFERROR(VLOOKUP($B32,'2017 fell results'!$B$67:$D$78,3,FALSE),"") ->  | I32: =IFERROR(VLOOKUP($B32,'2017 fell results'!$B$82:$D$93,3,FALSE),"") ->  | J32: =IFERROR(VLOOKUP($B32,'2017 fell results'!$B$97:$D$108,3,FALSE),"") ->  | K32: =IFERROR(VLOOKUP($B32,'2017 fell results'!$B$112:$D$123,3,FALSE),"") ->  | L32: =IFERROR(VLOOKUP($B32,'2017 fell results'!$B$127:$D$138,3,FALSE),"") ->  | M32: =IF(SUM(D32:L32)=0,"",SUM(D32:L32)) -> 94 | N32: =SUM(P32:T32) -> 94 | O32: =IF(COUNT(D32:L32)=0,"",COUNT(D32:L32)) -> 4 | P32: =IFERROR(LARGE($D32:$L32,D$3),"") -> 24 | Q32: =IFERROR(LARGE($D32:$L32,E$3),"") -> 24 | R32: 23 | S32: 23 | U32: =COUNT(P32:T32) -> 4
A33: 2 | B33: Hannah Thom | C33: =VLOOKUP(B33,'Age Cat'!F:G,2,FALSE) -> S | D33: =IFERROR(VLOOKUP($B33,'2017 fell results'!$B$3:$D$14,3,FALSE),"") -> 25 | E33: =IFERROR(VLOOKUP($B33,'2017 fell results'!$B$18:$D$29,3,FALSE),"") ->  | F33: =IFERROR(VLOOKUP($B33,'2017 fell results'!$B$35:$D$52,3,FALSE),"") -> 24 | G33: =IFERROR(VLOOKUP($B33,'2017 fell results'!$B$52:$D$63,3,FALSE),"") -> 23 | H33: =IFERROR(VLOOKUP($B33,'2017 fell results'!$B$67:$D$78,3,FALSE),"") ->  | I33: =IFERROR(VLOOKUP($B33,'2017 fell results'!$B$82:$D$93,3,FALSE),"") ->  | J33: =IFERROR(VLOOKUP($B33,'2017 fell results'!$B$97:$D$108,3,FALSE),"") ->  | K33: =IFERROR(VLOOKUP($B33,'2017 fell results'!$B$112:$D$123,3,FALSE),"") ->  | L33: =IFERROR(VLOOKUP($B33,'2017 fell results'!$B$127:$D$138,3,FALSE),"") ->  | M33: 72 | N33: 72 | O33: 3 | P33: 25 | Q33: 24 | R33: 23 | U33: 3
A34: 3 | B34: Hilary Barber | C34: =VLOOKUP(B34,'Age Cat'!F:G,2,FALSE) -> V50 | D34: =IFERROR(VLOOKUP($B34,'2017 fell results'!$B$3:$D$14,3,FALSE),"") -> 24 | E34: =IFERROR(VLOOKUP($B34,'2017 fell results'!$B$18:$D$29,3,FALSE),"") -> 25 | F34: =IFERROR(VLOOKUP($B34,'2017 fell results'!$B$35:$D$52,3,FALSE),"") ->  | G34: =IFERROR(VLOOKUP($B34,'2017 fell results'!$B$52:$D$63,3,FALSE),"") -> 25 | H34: =IFERROR(VLOOKUP($B34,'2017 fell results'!$B$67:$D$78,3,FALSE),"") ->  | I34: =IFERROR(VLOOKUP($B34,'2017 fell results'!$B$82:$D$93,3,FALSE),"") ->  | J34: =IFERROR(VLOOKUP($B34,'2017 fell results'!$B$97:$D$108,3,FALSE),"") ->  | K34: =IFERROR(VLOOKUP($B34,'2017 fell results'!$B$112:$D$123,3,FALSE),"") ->  | L34: =IFERROR(VLOOKUP($B34,'2017 fell results'!$B$127:$D$138,3,FALSE),"") ->  | M34: 74 | N34: 74 | O34: 3 | P34: 25 | Q34: 25 | R34: 24 | U34: 3
A35: 4 | B35: Lorna Hubbard | C35: =VLOOKUP(B35,'Age Cat'!F:G,2,FALSE) -> V30 | D35: =IFERROR(VLOOKUP($B35,'2017 fell results'!$B$3:$D$14,3,FALSE),"") ->  | E35: =IFERROR(VLOOKUP($B35,'2017 fell results'!$B$18:$D$29,3,FALSE),"") ->  | F35: =IFERROR(VLOOKUP($B35,'2017 fell results'!$B$35:$D$52,3,FALSE),"") -> 25 | G35: =IFERROR(VLOOKUP($B35,'2017 fell results'!$B$52:$D$63,3,FALSE),"") ->  | H35: =IFERROR(VLOOKUP($B35,'2017 fell results'!$B$67:$D$78,3,FALSE),"") ->  | I35: =IFERROR(VLOOKUP($B35,'2017 fell results'!$B$82:$D$93,3,FALSE),"") ->  | J35: =IFERROR(VLOOKUP($B35,'2017 fell results'!$B$97:$D$108,3,FALSE),"") ->  | K35: =IFERROR(VLOOKUP($B35,'2017 fell results'!$B$112:$D$123,3,FALSE),"") ->  | L35: =IFERROR(VLOOKUP($B35,'2017 fell results'!$B$127:$D$138,3,FALSE),"") ->  | M35: 25 | N35: 25 | O35: 1 | P35: 25 | U35: =IFERROR(LARGE($D35:$L35,I$3),"") -> 
A36: 5 | B36: Emma Dooks | C36: =VLOOKUP(B36,'Age Cat'!F:G,2,FALSE) -> V50 | D36: =IFERROR(VLOOKUP($B36,'2017 fell results'!$B$3:$D$14,3,FALSE),"") ->  | E36: =IFERROR(VLOOKUP($B36,'2017 fell results'!$B$18:$D$31,3,FALSE),"") ->  | F36: =IFERROR(VLOOKUP($B36,'2017 fell results'!$B$35:$D$52,3,FALSE),"") -> 22 | G36: =IFERROR(VLOOKUP($B36,'2017 fell results'!$B$52:$D$63,3,FALSE),"") ->  | H36: =IFERROR(VLOOKUP($B36,'2017 fell results'!$B$67:$D$78,3,FALSE),"") ->  | I36: =IFERROR(VLOOKUP($B36,'2017 fell results'!$B$82:$D$93,3,FALSE),"") ->  | J36: =IFERROR(VLOOKUP($B36,'2017 fell results'!$B$97:$D$108,3,FALSE),"") ->  | K36: =IFERROR(VLOOKUP($B36,'2017 fell results'!$B$112:$D$123,3,FALSE),"") ->  | L36: =IFERROR(VLOOKUP($B36,'2017 fell results'!$B$127:$D$138,3,FALSE),"") ->  | M36: 22 | N36: 22 | O36: 1 | P36: 22 | U36: =IFERROR(LARGE($D36:$L36,I$3),"") -> 
A37: 6 | B37: Diane MacDonald | C37: =VLOOKUP(B37,'Age Cat'!F:G,2,FALSE) -> V40 | D37: =IFERROR(VLOOKUP($B37,'2017 fell results'!$B$3:$D$14,3,FALSE),"") ->  | E37: =IFERROR(VLOOKUP($B37,'2017 fell results'!$B$19:$D$31,3,FALSE),"") ->  | F37: =IFERROR(VLOOKUP($B37,'2017 fell results'!$B$35:$D$52,3,FALSE),"") -> 21 | G37: =IFERROR(VLOOKUP($B37,'2017 fell results'!$B$52:$D$63,3,FALSE),"") ->  | H37: =IFERROR(VLOOKUP($B37,'2017 fell results'!$B$67:$D$78,3,FALSE),"") ->  | I37: =IFERROR(VLOOKUP($B37,'2017 fell results'!$B$82:$D$93,3,FALSE),"") ->  | J37: =IFERROR(VLOOKUP($B37,'2017 fell results'!$B$97:$D$108,3,FALSE),"") ->  | K37: =IFERROR(VLOOKUP($B37,'2017 fell results'!$B$112:$D$123,3,FALSE),"") ->  | L37: =IFERROR(VLOOKUP($B37,'2017 fell results'!$B$127:$D$138,3,FALSE),"") ->  | M37: 21 | N37: 21 | O37: 1 | P37: 21 | U37: =IFERROR(LARGE($D37:$L37,I$3),"") -> 
A38: 10 | B38: Amanda Morrison | C38: F | D38: =IFERROR(VLOOKUP($B38,'2017 fell results'!$B$3:$D$14,3,FALSE),"") ->  | E38: =IFERROR(VLOOKUP($B38,'2017 fell results'!$B$18:$D$31,3,FALSE),"") ->  | F38: =IFERROR(VLOOKUP($B38,'2017 fell results'!$B$35:$D$52,3,FALSE),"") ->  | G38: =IFERROR(VLOOKUP($B38,'2017 fell results'!$B$52:$D$63,3,FALSE),"") ->  | H38: =IFERROR(VLOOKUP($B38,'2017 fell results'!$B$67:$D$78,3,FALSE),"") ->  | I38: =IFERROR(VLOOKUP($B38,'2017 fell results'!$B$82:$D$93,3,FALSE),"") ->  | J38: =IFERROR(VLOOKUP($B38,'2017 fell results'!$B$97:$D$108,3,FALSE),"") ->  | K38: =IFERROR(VLOOKUP($B38,'2017 fell results'!$B$112:$D$123,3,FALSE),"") ->  | L38: =IFERROR(VLOOKUP($B38,'2017 fell results'!$B$127:$D$138,3,FALSE),"") ->  | M38: =IF(SUM(D38:L38)=0,"",SUM(D38:L38)) ->  | N38: =SUM(P38:T38) -> 0 | S38: =IFERROR(LARGE($D38:$L38,I$3),"") ->  | T38: =IFERROR(LARGE($D38:$L38,J$3),"") ->  | U38: 0
A40: 1 | B40: 2017-01-28 | C40: Hoofstones
A41: 2 | B41: 2017-02-18 | C41: Bleasdale Circle
A42: 3 | B42: 2017-03-04 | C42: Stan Bradshaw Pendle Round
A43: 4 | B43: 2017-04-08 | C43: Coledale Horseshoe
A44: 5 | B44: 2017-07-01 | C44: Oakworth Haul
A45: 6 | B45: 2017-09-02 | C45: Grisedale Horseshoe
A46: 7 | B46: 2017-09-23 | C46: Great Whernside
A47: 8 | B47: 2017-12-09 | C47: Mytholmroyd
A48: 9 | B48: 2017-12-27 | C48: Guisborough Wood

Sheet 2017 xc Table
A1: 2017 - xc (Best 4 of 7 Races)
D2: =VLOOKUP(D3,$A$39:$C$45,3,FALSE) -> Yorkshire Champs | E2: National Champs | F2: Open Kross Challenge | G2: 1st WYXC Race | H2: 2nd WYXC Race | I2: 3rd WYXC Race | J2: 4th WYXC Race
A3: Pos | B3: Name | D3: 1 | E3: 2 | F3: 3 | G3: 4 | H3: 5 | I3: 6 | J3: 7 | K3: Total | L3: Scoring Total | M3: # Races | N3: Top 4 Results
D4: =VLOOKUP(D3,$A$39:$C$45,2,FALSE) -> Jan | E4: =VLOOKUP(E3,$A$39:$C$45,2,FALSE) -> Feb | G4: =VLOOKUP(G3,$A$39:$C$45,2,FALSE) -> Oct | H4: =VLOOKUP(H3,$A$39:$C$45,2,FALSE) -> Oct | I4: =VLOOKUP(I3,$A$39:$C$45,2,FALSE) -> Nov | J4: =VLOOKUP(J3,$A$39:$C$45,2,FALSE) -> Dec | N4: =D3 -> 1 | O4: 2 | P4: 3 | Q4: 4
A5: 1 | B5: Scott Bairstow | C5: =VLOOKUP(B5,'Age Cat'!F:G,2,FALSE) -> V40 | D5: =IFERROR(VLOOKUP($B5,'2017 xc results'!$B$3:$D$13,3,FALSE),"") -> 24 | E5: =IFERROR(VLOOKUP($B5,'2017 xc results'!$B$17:$D$28,3,FALSE),"") -> 25 | F5: =IFERROR(VLOOKUP($B5,'2017 xc results'!$B$34:$D$50,3,FALSE),"") ->  | G5: =IFERROR(VLOOKUP($B5,'2017 xc results'!$B$50:$D$61,3,FALSE),"") ->  | H5: =IFERROR(VLOOKUP($B5,'2017 xc results'!$B$65:$D$76,3,FALSE),"") ->  | I5: =IFERROR(VLOOKUP($B5,'2017 xc results'!$B$80:$D$91,3,FALSE),"") ->  | J5: =IFERROR(VLOOKUP($B5,'2017 xc results'!$B$95:$D$106,3,FALSE),"") ->  | K5: =IF(SUM(D5:J5)=0,"",SUM(D5:J5)) -> 49 | L5: =SUM(N5:Q5) -> 49 | M5: =IF(COUNT(D5:J5)=0,"",COUNT(D5:J5)) -> 2 | N5: =IFERROR(LARGE($D5:$J5,D$3),"") -> 25 | O5: =IFERROR(LARGE($D5:$J5,E$3),"") -> 24 | P5: =IFERROR(LARGE($D5:$J5,F$3),"") ->  | Q5: =IFERROR(LARGE($D5:$J5,H$3),"") ->  | R5: =COUNT(N5:Q5) -> 2
A6: =A5+1 -> 2 | B6: John Conroy | C6: =VLOOKUP(B6,'Age Cat'!F:G,2,FALSE) -> V40 | D6: =IFERROR(VLOOKUP($B6,'2017 xc results'!$B$3:$D$13,3,FALSE),"") -> 23 | E6: =IFERROR(VLOOKUP($B6,'2017 xc results'!$B$17:$D$28,3,FALSE),"") -> 24 | F6: =IFERROR(VLOOKUP($B6,'2017 xc results'!$B$34:$D$50,3,FALSE),"") ->  | G6: =IFERROR(VLOOKUP($B6,'2017 xc results'!$B$50:$D$61,3,FALSE),"") ->  | H6: =IFERROR(VLOOKUP($B6,'2017 xc results'!$B$65:$D$76,3,FALSE),"") ->  | I6: =IFERROR(VLOOKUP($B6,'2017 xc results'!$B$80:$D$91,3,FALSE),"") ->  | J6: =IFERROR(VLOOKUP($B6,'2017 xc results'!$B$95:$D$106,3,FALSE),"") ->  | K6: 47 | L6: 47 | M6: 2 | N6: 24 | O6: 23 | R6: 2
A7: 3 | B7: Ian Willis | C7: =VLOOKUP(B7,'Age Cat'!F:G,2,FALSE) -> V40 | D7: =IFERROR(VLOOKUP($B7,'2017 xc results'!$B$3:$D$13,3,FALSE),"") -> 25 | E7: =IFERROR(VLOOKUP($B7,'2017 xc results'!$B$17:$D$28,3,FALSE),"") ->  | F7: =IFERROR(VLOOKUP($B7,'2017 xc results'!$B$34:$D$50,3,FALSE),"") ->  | G7: =IFERROR(VLOOKUP($B7,'2017 xc results'!$B$50:$D$61,3,FALSE),"") ->  | H7: =IFERROR(VLOOKUP($B7,'2017 xc results'!$B$65:$D$76,3,FALSE),"") ->  | I7: =IFERROR(VLOOKUP($B7,'2017 xc results'!$B$80:$D$91,3,FALSE),"") ->  | J7: =IFERROR(VLOOKUP($B7,'2017 xc results'!$B$95:$D$106,3,FALSE),"") ->  | K7: 25 | L7: 25 | M7: 1 | N7: 25 | R7: 1
A8: 4 | D8: =IFERROR(VLOOKUP($B8,'2017 xc results'!$B$3:$D$13,3,FALSE),"") ->  | E8: =IFERROR(VLOOKUP($B8,'2017 xc results'!$B$17:$D$28,3,FALSE),"") ->  | F8: =IFERROR(VLOOKUP($B8,'2017 xc results'!$B$34:$D$50,3,FALSE),"") ->  | G8: =IFERROR(VLOOKUP($B8,'2017 xc results'!$B$50:$D$61,3,FALSE),"") ->  | H8: =IFERROR(VLOOKUP($B8,'2017 xc results'!$B$65:$D$76,3,FALSE),"") ->  | I8: =IFERROR(VLOOKUP($B8,'2017 xc results'!$B$80:$D$91,3,FALSE),"") ->  | J8: =IFERROR(VLOOKUP($B8,'2017 xc results'!$B$95:$D$106,3,FALSE),"") ->  | L8: 0 | R8: 0
A9: 5 | D9: =IFERROR(VLOOKUP($B9,'2017 xc results'!$B$3:$D$13,3,FALSE),"") ->  | E9: =IFERROR(VLOOKUP($B9,'2017 xc results'!$B$17:$D$28,3,FALSE),"") ->  | F9: =IFERROR(VLOOKUP($B9,'2017 xc results'!$B$34:$D$50,3,FALSE),"") ->  | G9: =IFERROR(VLOOKUP($B9,'2017 xc results'!$B$50:$D$61,3,FALSE),"") ->  | H9: =IFERROR(VLOOKUP($B9,'2017 xc results'!$B$65:$D$76,3,FALSE),"") ->  | I9: =IFERROR(VLOOKUP($B9,'2017 xc results'!$B$80:$D$91,3,FALSE),"") ->  | J9: =IFERROR(VLOOKUP($B9,'2017 xc results'!$B$95:$D$106,3,FALSE),"") ->  | L9: 0 | R9: 0
A10: 6 | D10: =IFERROR(VLOOKUP($B10,'2017 xc results'!$B$3:$D$13,3,FALSE),"") ->  | E10: =IFERROR(VLOOKUP($B10,'2017 xc results'!$B$17:$D$28,3,FALSE),"") ->  | F10: =IFERROR(VLOOKUP($B10,'2017 xc results'!$B$34:$D$50,3,FALSE),"") ->  | G10: =IFERROR(VLOOKUP($B10,'2017 xc results'!$B$50:$D$61,3,FALSE),"") ->  | H10: =IFERROR(VLOOKUP($B10,'2017 xc results'!$B$65:$D$76,3,FALSE),"") ->  | I10: =IFERROR(VLOOKUP($B10,'2017 xc results'!$B$80:$D$91,3,FALSE),"") ->  | J10: =IFERROR(VLOOKUP($B10,'2017 xc results'!$B$95:$D$106,3,FALSE),"") ->  | L10: 0 | R10: 0
A11: 7 | D11: =IFERROR(VLOOKUP($B11,'2017 xc results'!$B$3:$D$13,3,FALSE),"") ->  | E11: =IFERROR(VLOOKUP($B11,'2017 xc results'!$B$17:$D$28,3,FALSE),"") ->  | F11: =IFERROR(VLOOKUP($B11,'2017 xc results'!$B$34:$D$50,3,FALSE),"") ->  | G11: =IFERROR(VLOOKUP($B11,'2017 xc results'!$B$50:$D$61,3,FALSE),"") ->  | H11: =IFERROR(VLOOKUP($B11,'2017 xc results'!$B$65:$D$76,3,FALSE),"") ->  | I11: =IFERROR(VLOOKUP($B11,'2017 xc results'!$B$80:$D$91,3,FALSE),"") ->  | J11: =IFERROR(VLOOKUP($B11,'2017 xc results'!$B$95:$D$106,3,FALSE),"") ->  | L11: 0 | R11: 0
A12: 8 | D12: =IFERROR(VLOOKUP($B12,'2017 xc results'!$B$3:$D$13,3,FALSE),"") ->  | E12: =IFERROR(VLOOKUP($B12,'2017 xc results'!$B$17:$D$28,3,FALSE),"") ->  | F12: =IFERROR(VLOOKUP($B12,'2017 xc results'!$B$34:$D$50,3,FALSE),"") ->  | G12: =IFERROR(VLOOKUP($B12,'2017 xc results'!$B$50:$D$61,3,FALSE),"") ->  | H12: =IFERROR(VLOOKUP($B12,'2017 xc results'!$B$65:$D$76,3,FALSE),"") ->  | I12: =IFERROR(VLOOKUP($B12,'2017 xc results'!$B$80:$D$91,3,FALSE),"") ->  | J12: =IFERROR(VLOOKUP($B12,'2017 xc results'!$B$95:$D$106,3,FALSE),"") ->  | L12: 0 | R12: 0
A13: 9 | D13: =IFERROR(VLOOKUP($B13,'2017 xc results'!$B$3:$D$13,3,FALSE),"") ->  | E13: =IFERROR(VLOOKUP($B13,'2017 xc results'!$B$17:$D$28,3,FALSE),"") ->  | F13: =IFERROR(VLOOKUP($B13,'2017 xc results'!$B$34:$D$50,3,FALSE),"") ->  | G13: =IFERROR(VLOOKUP($B13,'2017 xc results'!$B$50:$D$61,3,FALSE),"") ->  | H13: =IFERROR(VLOOKUP($B13,'2017 xc results'!$B$65:$D$76,3,FALSE),"") ->  | I13: =IFERROR(VLOOKUP($B13,'2017 xc results'!$B$80:$D$91,3,FALSE),"") ->  | J13: =IFERROR(VLOOKUP($B13,'2017 xc results'!$B$95:$D$106,3,FALSE),"") ->  | L13: 0 | R13: 0
A14: 10 | D14: =IFERROR(VLOOKUP($B14,'2017 xc results'!$B$3:$D$13,3,FALSE),"") ->  | E14: =IFERROR(VLOOKUP($B14,'2017 xc results'!$B$17:$D$28,3,FALSE),"") ->  | F14: =IFERROR(VLOOKUP($B14,'2017 xc results'!$B$34:$D$50,3,FALSE),"") ->  | G14: =IFERROR(VLOOKUP($B14,'2017 xc results'!$B$50:$D$61,3,FALSE),"") ->  | H14: =IFERROR(VLOOKUP($B14,'2017 xc results'!$B$65:$D$76,3,FALSE),"") ->  | I14: =IFERROR(VLOOKUP($B14,'2017 xc results'!$B$80:$D$91,3,FALSE),"") ->  | J14: =IFERROR(VLOOKUP($B14,'2017 xc results'!$B$95:$D$106,3,FALSE),"") ->  | L14: 0 | R14: 0
A15: 11 | D15: =IFERROR(VLOOKUP($B15,'2017 xc results'!$B$3:$D$13,3,FALSE),"") ->  | E15: =IFERROR(VLOOKUP($B15,'2017 xc results'!$B$17:$D$28,3,FALSE),"") ->  | F15: =IFERROR(VLOOKUP($B15,'2017 xc results'!$B$34:$D$50,3,FALSE),"") ->  | G15: =IFERROR(VLOOKUP($B15,'2017 xc results'!$B$50:$D$61,3,FALSE),"") ->  | H15: =IFERROR(VLOOKUP($B15,'2017 xc results'!$B$65:$D$76,3,FALSE),"") ->  | I15: =IFERROR(VLOOKUP($B15,'2017 xc results'!$B$80:$D$91,3,FALSE),"") ->  | J15: =IFERROR(VLOOKUP($B15,'2017 xc results'!$B$95:$D$106,3,FALSE),"") ->  | L15: 0 | R15: 0
A16: 12 | D16: =IFERROR(VLOOKUP($B16,'2017 xc results'!$B$3:$D$13,3,FALSE),"") ->  | E16: =IFERROR(VLOOKUP($B16,'2017 xc results'!$B$17:$D$28,3,FALSE),"") ->  | F16: =IFERROR(VLOOKUP($B16,'2017 xc results'!$B$34:$D$50,3,FALSE),"") ->  | G16: =IFERROR(VLOOKUP($B16,'2017 xc results'!$B$50:$D$61,3,FALSE),"") ->  | H16: =IFERROR(VLOOKUP($B16,'2017 xc results'!$B$65:$D$76,3,FALSE),"") ->  | I16: =IFERROR(VLOOKUP($B16,'2017 xc results'!$B$80:$D$91,3,FALSE),"") ->  | J16: =IFERROR(VLOOKUP($B16,'2017 xc results'!$B$95:$D$106,3,FALSE),"") ->  | L16: 0 | R16: 0
A17: 14 | D17: =IFERROR(VLOOKUP($B17,'2017 xc results'!$B$3:$D$13,3,FALSE),"") ->  | E17: =IFERROR(VLOOKUP($B17,'2017 xc results'!$B$17:$D$28,3,FALSE),"") ->  | F17: =IFERROR(VLOOKUP($B17,'2017 xc results'!$B$34:$D$50,3,FALSE),"") ->  | G17: =IFERROR(VLOOKUP($B17,'2017 xc results'!$B$50:$D$61,3,FALSE),"") ->  | H17: =IFERROR(VLOOKUP($B17,'2017 xc results'!$B$65:$D$76,3,FALSE),"") ->  | I17: =IFERROR(VLOOKUP($B17,'2017 xc results'!$B$80:$D$91,3,FALSE),"") ->  | J17: =IFERROR(VLOOKUP($B17,'2017 xc results'!$B$95:$D$106,3,FALSE),"") ->  | L17: 0 | R17: 0
R18: 0
R19: 0
R20: 0
R21: 0
R22: 0
R23: 0
R24: 0
R25: 0
R26: 0
R27: 0
A29: Pos | B29: Name | D29: =D3 -> 1 | E29: 2 | F29: 3 | G29: 4 | H29: 5 | I29: 6 | J29: 7 | K29: Total | L29: Scoring Total | M29: # Races | N29: Top 4 Results
D30: =VLOOKUP(D29,$A$39:$C$45,2,FALSE) -> Jan | E30: Feb | F30: 00:00:00 | G30: Oct | H30: Oct | I30: Nov | J30: Dec | N30: =D29 -> 1 | O30: 2 | P30: 3 | Q30: 4
A31: 1 | B31: Tizz Woffenden | C31: =VLOOKUP(B31,'Age Cat'!F:G,2,FALSE) -> V40 | D31: =IFERROR(VLOOKUP($B31,'2017 xc results'!$B$3:$D$13,3,FALSE),"") -> 25 | E31: =IFERROR(VLOOKUP($B31,'2017 xc results'!$B$17:$D$28,3,FALSE),"") ->  | F31: =IFERROR(VLOOKUP($B31,'2017 xc results'!$B$34:$D$50,3,FALSE),"") ->  | G31: =IFERROR(VLOOKUP($B31,'2017 xc results'!$B$50:$D$61,3,FALSE),"") ->  | H31: =IFERROR(VLOOKUP($B31,'2017 xc results'!$B$65:$D$76,3,FALSE),"") ->  | I31: =IFERROR(VLOOKUP($B31,'2017 xc results'!$B$80:$D$91,3,FALSE),"") ->  | J31: =IFERROR(VLOOKUP($B31,'2017 xc results'!$B$95:$D$106,3,FALSE),"") ->  | K31: =IF(SUM(D31:J31)=0,"",SUM(D31:J31)) -> 25 | L31: =SUM(N31:Q31) -> 25 | M31: =IF(COUNT(D31:J31)=0,"",COUNT(D31:J31)) -> 1 | N31: =IFERROR(LARGE($D31:$J31,D$3),"") -> 25 | Q31: =IFERROR(LARGE($D31:$J31,H$3),"") ->  | R31: =COUNT(N31:Q31) -> 1
A32: 2 | B32: Claire Cooper | C32: =VLOOKUP(B32,'Age Cat'!F:G,2,FALSE) -> V30 | D32: =IFERROR(VLOOKUP($B32,'2017 xc results'!$B$3:$D$13,3,FALSE),"") -> 24 | E32: =IFERROR(VLOOKUP($B32,'2017 xc results'!$B$17:$D$28,3,FALSE),"") ->  | F32: =IFERROR(VLOOKUP($B32,'2017 xc results'!$B$34:$D$50,3,FALSE),"") ->  | G32: =IFERROR(VLOOKUP($B32,'2017 xc results'!$B$50:$D$61,3,FALSE),"") ->  | H32: =IFERROR(VLOOKUP($B32,'2017 xc results'!$B$65:$D$76,3,FALSE),"") ->  | I32: =IFERROR(VLOOKUP($B32,'2017 xc results'!$B$80:$D$91,3,FALSE),"") ->  | J32: =IFERROR(VLOOKUP($B32,'2017 xc results'!$B$95:$D$106,3,FALSE),"") ->  | K32: 24 | L32: 24 | M32: 1 | N32: 24 | R32: =COUNT(N32:Q32) -> 1
A33: 3 | B33: Sarah O'Sullivan | C33: =VLOOKUP(B33,'Age Cat'!F:G,2,FALSE) -> V40 | D33: =IFERROR(VLOOKUP($B33,'2017 xc results'!$B$3:$D$13,3,FALSE),"") -> 23 | E33: =IFERROR(VLOOKUP($B33,'2017 xc results'!$B$17:$D$28,3,FALSE),"") ->  | F33: =IFERROR(VLOOKUP($B33,'2017 xc results'!$B$34:$D$50,3,FALSE),"") ->  | G33: =IFERROR(VLOOKUP($B33,'2017 xc results'!$B$50:$D$61,3,FALSE),"") ->  | H33: =IFERROR(VLOOKUP($B33,'2017 xc results'!$B$65:$D$76,3,FALSE),"") ->  | I33: =IFERROR(VLOOKUP($B33,'2017 xc results'!$B$80:$D$91,3,FALSE),"") ->  | J33: =IFERROR(VLOOKUP($B33,'2017 xc results'!$B$95:$D$106,3,FALSE),"") ->  | K33: 23 | L33: 23 | M33: 1 | N33: 23 | R33: =COUNT(N33:Q33) -> 1
A34: 4 | B34: Angela Paxton | C34: =VLOOKUP(B34,'Age Cat'!F:G,2,FALSE) -> V50 | D34: =IFERROR(VLOOKUP($B34,'2017 xc results'!$B$3:$D$13,3,FALSE),"") -> 22 | E34: =IFERROR(VLOOKUP($B34,'2017 xc results'!$B$17:$D$28,3,FALSE),"") ->  | F34: =IFERROR(VLOOKUP($B34,'2017 xc results'!$B$34:$D$50,3,FALSE),"") ->  | G34: =IFERROR(VLOOKUP($B34,'2017 xc results'!$B$50:$D$61,3,FALSE),"") ->  | H34: =IFERROR(VLOOKUP($B34,'2017 xc results'!$B$65:$D$76,3,FALSE),"") ->  | I34: =IFERROR(VLOOKUP($B34,'2017 xc results'!$B$80:$D$91,3,FALSE),"") ->  | J34: =IFERROR(VLOOKUP($B34,'2017 xc results'!$B$95:$D$106,3,FALSE),"") ->  | K34: 22 | L34: 22 | M34: 1 | N34: 22 | R34: =IFERROR(LARGE($D34:$J34,I$3),"") -> 
A35: 5 | B35: Camille Askins | C35: =VLOOKUP(B35,'Age Cat'!F:G,2,FALSE) -> V40 | D35: =IFERROR(VLOOKUP($B35,'2017 xc results'!$B$3:$D$13,3,FALSE),"") -> 21 | E35: =IFERROR(VLOOKUP($B35,'2017 xc results'!$B$17:$D$30,3,FALSE),"") ->  | F35: =IFERROR(VLOOKUP($B35,'2017 xc results'!$B$34:$D$50,3,FALSE),"") ->  | G35: =IFERROR(VLOOKUP($B35,'2017 xc results'!$B$50:$D$61,3,FALSE),"") ->  | H35: =IFERROR(VLOOKUP($B35,'2017 xc results'!$B$65:$D$76,3,FALSE),"") ->  | I35: =IFERROR(VLOOKUP($B35,'2017 xc results'!$B$80:$D$91,3,FALSE),"") ->  | J35: =IFERROR(VLOOKUP($B35,'2017 xc results'!$B$95:$D$106,3,FALSE),"") ->  | K35: 21 | L35: 21 | M35: 1 | N35: 21 | R35: =IFERROR(LARGE($D35:$J35,I$3),"") -> 
A36: 6 | C36: F | D36: =IFERROR(VLOOKUP($B36,'2017 xc results'!$B$3:$D$13,3,FALSE),"") ->  | E36: =IFERROR(VLOOKUP($B36,'2017 xc results'!$B$18:$D$30,3,FALSE),"") ->  | F36: =IFERROR(VLOOKUP($B36,'2017 xc results'!$B$34:$D$50,3,FALSE),"") ->  | G36: =IFERROR(VLOOKUP($B36,'2017 xc results'!$B$50:$D$61,3,FALSE),"") ->  | H36: =IFERROR(VLOOKUP($B36,'2017 xc results'!$B$65:$D$76,3,FALSE),"") ->  | I36: =IFERROR(VLOOKUP($B36,'2017 xc results'!$B$80:$D$91,3,FALSE),"") ->  | J36: =IFERROR(VLOOKUP($B36,'2017 xc results'!$B$95:$D$106,3,FALSE),"") ->  | L36: 0 | R36: =IFERROR(LARGE($D36:$J36,I$3),"") -> 
A37: 10 | B37: Amanda Morrison | C37: F | D37: =IFERROR(VLOOKUP($B37,'2017 xc results'!$B$3:$D$13,3,FALSE),"") ->  | E37: =IFERROR(VLOOKUP($B37,'2017 xc results'!$B$17:$D$30,3,FALSE),"") ->  | F37: =IFERROR(VLOOKUP($B37,'2017 xc results'!$B$34:$D$50,3,FALSE),"") ->  | G37: =IFERROR(VLOOKUP($B37,'2017 xc results'!$B$50:$D$61,3,FALSE),"") ->  | H37: =IFERROR(VLOOKUP($B37,'2017 xc results'!$B$65:$D$76,3,FALSE),"") ->  | I37: =IFERROR(VLOOKUP($B37,'2017 xc results'!$B$80:$D$91,3,FALSE),"") ->  | J37: =IFERROR(VLOOKUP($B37,'2017 xc results'!$B$95:$D$106,3,FALSE),"") ->  | L37: =SUM(N37:Q37) -> 0 | N37: =IFERROR(LARGE($D37:$J37,D$3),"") ->  | Q37: =IFERROR(LARGE($D37:$J37,J$3),"") ->  | R37: =COUNT(N37:Q37) -> 0
A39: 1 | B39: Jan | C39: Yorkshire Champs
A40: 2 | B40: Feb | C40: National Champs
A41: 3 | C41: Open Kross Challenge
A42: 4 | B42: Oct | C42: 1st WYXC Race
A43: 5 | B43: Oct | C43: 2nd WYXC Race
A44: 6 | B44: Nov | C44: 3rd WYXC Race
A45: 7 | B45: Dec | C45: 4th WYXC Race

Sheet 2017 Road Table
A1: 2017 - Road (Best 5 of 9 Races)
D2: =VLOOKUP(D3,$A$60:$C$68,3,FALSE) -> Bradford 10k | E2: Esholt 5k Series (x3) | F2: Bronte 5m | G2: Helen Windsor 10K | H2: UAK Track 1M | I2: Burnsall 10M | J2: Holmfirth 10K | K2: Best ½ Marathon | L2: Best Marathon
A3: Pos | B3: Name | D3: 1 | E3: 2 | F3: 3 | G3: 4 | H3: 5 | I3: 6 | J3: 7 | K3: 8 | L3: 9 | M3: Total | N3: Scoring Total | O3: # Races | P3: Top 5 Results
D4: =VLOOKUP(D3,$A$60:$C$68,2,FALSE) -> 2017-03-19 | E4: May | F4: 2017-06-08 | G4: 2017-07-05 | H4: 2017-08-03 | I4: 2017-08-19 | J4: 2017-10-29 | P4: =D3 -> 1 | Q4: 2 | R4: 3 | S4: 4 | T4: 5
A5: =RANK(N5,$N$5:$N$35,0) -> 1 | B5: Craig Cooper | C5: =VLOOKUP(B5,'Age Cat'!F:G,2,FALSE) -> V40 | D5: =IFERROR(VLOOKUP($B5,'2017 Road results'!$B$3:$D$22,3,FALSE),"") -> 25 | K5: =IFERROR(VLOOKUP($B5,'2017 marathon & half'!$B$3:$D$14,3,FALSE),"") ->  | L5: =IFERROR(VLOOKUP($B5,'2017 marathon & half'!$B$27:$D$42,3,FALSE),"") -> 23 | M5: =IF(SUM(D5:L5)=0,"",SUM(D5:L5)) -> 48 | N5: =SUM(P5:T5) -> 48 | O5: =IF(COUNT(D5:L5)=0,"",COUNT(D5:L5)) -> 2 | P5: =IFERROR(LARGE($D5:$L5,D$3),"") -> 25 | Q5: =IFERROR(LARGE($D5:$L5,E$3),"") -> 23 | U5: =COUNT(P5:T5) -> 2
A6: =RANK(N6,$N$5:$N$35,0) -> 1 | B6: Tony Booth | C6: =VLOOKUP(B6,'Age Cat'!F:G,2,FALSE) -> V40 | D6: =IFERROR(VLOOKUP($B6,'2017 Road results'!$B$3:$D$22,3,FALSE),"") ->  | K6: =IFERROR(VLOOKUP($B6,'2017 marathon & half'!$B$3:$D$14,3,FALSE),"") -> 24 | L6: =IFERROR(VLOOKUP($B6,'2017 marathon & half'!$B$27:$D$42,3,FALSE),"") -> 24 | M6: 48 | N6: =SUM(P6:T6) -> 48 | O6: =IF(COUNT(D6:L6)=0,"",COUNT(D6:L6)) -> 2 | P6: 24 | Q6: =IFERROR(LARGE($D6:$L6,E$3),"") -> 24 | R6: =IFERROR(LARGE($D6:$L6,F$3),"") ->  | S6: =IFERROR(LARGE($D6:$L6,G$3),"") ->  | T6: =IFERROR(LARGE($D6:$L6,H$3),"") ->  | U6: =COUNT(P6:T6) -> 2
A7: =RANK(N7,$N$5:$N$35,0) -> 3 | B7: John-Paul Hopkinson | C7: =VLOOKUP(B7,'Age Cat'!F:G,2,FALSE) -> V40 | D7: =IFERROR(VLOOKUP($B7,'2017 Road results'!$B$3:$D$22,3,FALSE),"") ->  | K7: =IFERROR(VLOOKUP($B7,'2017 marathon & half'!$B$3:$D$14,3,FALSE),"") -> 25 | L7: =IFERROR(VLOOKUP($B7,'2017 marathon & half'!$B$27:$D$42,3,FALSE),"") ->  | M7: 25 | N7: 25 | O7: 1 | P7: 25 | U7: 1
A8: =RANK(N8,$N$5:$N$35,0) -> 3 | B8: Gary Chapman | C8: =VLOOKUP(B8,'Age Cat'!F:G,2,FALSE) -> V40 | D8: =IFERROR(VLOOKUP($B8,'2017 Road results'!$B$3:$D$22,3,FALSE),"") ->  | K8: =IFERROR(VLOOKUP($B8,'2017 marathon & half'!$B$3:$D$14,3,FALSE),"") ->  | L8: =IFERROR(VLOOKUP($B8,'2017 marathon & half'!$B$27:$D$42,3,FALSE),"") -> 25 | M8: =IF(SUM(D8:L8)=0,"",SUM(D8:L8)) -> 25 | N8: =SUM(P8:T8) -> 25 | O8: =IF(COUNT(D8:L8)=0,"",COUNT(D8:L8)) -> 1 | P8: =IFERROR(LARGE($D8:$L8,D$3),"") -> 25 | Q8: =IFERROR(LARGE($D8:$L8,E$3),"") ->  | R8: =IFERROR(LARGE($D8:$L8,F$3),"") ->  | S8: =IFERROR(LARGE($D8:$L8,G$3),"") ->  | T8: =IFERROR(LARGE($D8:$L8,H$3),"") ->  | U8: =COUNT(P8:T8) -> 1
A9: =RANK(N9,$N$5:$N$35,0) -> 5 | B9: Chris Tomes | C9: =VLOOKUP(B9,'Age Cat'!F:G,2,FALSE) -> V60 | D9: =IFERROR(VLOOKUP($B9,'2017 Road results'!$B$3:$D$22,3,FALSE),"") -> 24 | K9: =IFERROR(VLOOKUP($B9,'2017 marathon & half'!$B$3:$D$14,3,FALSE),"") ->  | L9: =IFERROR(VLOOKUP($B9,'2017 marathon & half'!$B$27:$D$42,3,FALSE),"") ->  | M9: 24 | N9: 24 | O9: 1 | P9: 24 | U9: 1
A10: =RANK(N10,$N$5:$N$35,0) -> 6 | B10: John Conroy | C10: =VLOOKUP(B10,'Age Cat'!F:G,2,FALSE) -> V40 | D10: =IFERROR(VLOOKUP($B10,'2017 Road results'!$B$3:$D$22,3,FALSE),"") ->  | K10: =IFERROR(VLOOKUP($B10,'2017 marathon & half'!$B$3:$D$14,3,FALSE),"") -> 23 | L10: =IFERROR(VLOOKUP($B10,'2017 marathon & half'!$B$27:$D$42,3,FALSE),"") ->  | M10: 23 | N10: =SUM(P10:T10) -> 23 | O10: =IF(COUNT(D10:L10)=0,"",COUNT(D10:L10)) -> 1 | P10: 23 | Q10: =IFERROR(LARGE($D10:$L10,E$3),"") ->  | U10: =COUNT(P10:T10) -> 1
A11: =RANK(N11,$N$5:$N$35,0) -> 6 | B11: Paul Wilson | C11: =VLOOKUP(B11,'Age Cat'!F:G,2,FALSE) -> V40 | D11: =IFERROR(VLOOKUP($B11,'2017 Road results'!$B$3:$D$22,3,FALSE),"") -> 23 | K11: =IFERROR(VLOOKUP($B11,'2017 marathon & half'!$B$3:$D$14,3,FALSE),"") ->  | L11: =IFERROR(VLOOKUP($B11,'2017 marathon & half'!$B$27:$D$42,3,FALSE),"") ->  | M11: 23 | N11: =SUM(P11:T11) -> 23 | O11: =IF(COUNT(D11:L11)=0,"",COUNT(D11:L11)) -> 1 | P11: 23 | U11: =COUNT(P11:T11) -> 1
A12: =RANK(N12,$N$5:$N$35,0) -> 8 | B12: Simon Smallwood | C12: =VLOOKUP(B12,'Age Cat'!F:G,2,FALSE) -> V50 | D12: =IFERROR(VLOOKUP($B12,'2017 Road results'!$B$3:$D$22,3,FALSE),"") ->  | K12: =IFERROR(VLOOKUP($B12,'2017 marathon & half'!$B$3:$D$14,3,FALSE),"") ->  | L12: =IFERROR(VLOOKUP($B12,'2017 marathon & half'!$B$27:$D$42,3,FALSE),"") -> 22 | M12: 22 | N12: =SUM(P12:T12) -> 22 | O12: =IF(COUNT(D12:L12)=0,"",COUNT(D12:L12)) -> 1 | P12: 22 | U12: =COUNT(P12:T12) -> 1
A13: =RANK(N13,$N$5:$N$35,0) -> 8 | B13: Joe Atherton | C13: =VLOOKUP(B13,'Age Cat'!F:G,2,FALSE) -> V30 | D13: =IFERROR(VLOOKUP($B13,'2017 Road results'!$B$3:$D$22,3,FALSE),"") ->  | K13: =IFERROR(VLOOKUP($B13,'2017 marathon & half'!$B$3:$D$14,3,FALSE),"") -> 22 | L13: =IFERROR(VLOOKUP($B13,'2017 marathon & half'!$B$27:$D$42,3,FALSE),"") ->  | M13: 22 | N13: =SUM(P13:T13) -> 22 | O13: =IF(COUNT(D13:L13)=0,"",COUNT(D13:L13)) -> 1 | P13: 22 | U13: =COUNT(P13:T13) -> 1
A14: =RANK(N14,$N$5:$N$35,0) -> 8 | B14: Richard Butter | C14: =VLOOKUP(B14,'Age Cat'!F:G,2,FALSE) -> V40 | D14: =IFERROR(VLOOKUP($B14,'2017 Road results'!$B$3:$D$22,3,FALSE),"") -> 22 | K14: =IFERROR(VLOOKUP($B14,'2017 marathon & half'!$B$3:$D$14,3,FALSE),"") ->  | L14: =IFERROR(VLOOKUP($B14,'2017 marathon & half'!$B$27:$D$42,3,FALSE),"") ->  | M14: 22 | N14: 22 | O14: 1 | P14: 22 | U14: 1
A15: =RANK(N15,$N$5:$N$35,0) -> 11 | B15: Anand Raval | C15: =VLOOKUP(B15,'Age Cat'!F:G,2,FALSE) -> V30 | D15: =IFERROR(VLOOKUP($B15,'2017 Road results'!$B$3:$D$22,3,FALSE),"") -> 21 | K15: =IFERROR(VLOOKUP($B15,'2017 marathon & half'!$B$3:$D$14,3,FALSE),"") ->  | L15: =IFERROR(VLOOKUP($B15,'2017 marathon & half'!$B$27:$D$42,3,FALSE),"") ->  | M15: 21 | N15: 21 | O15: 1 | P15: =IFERROR(LARGE($D15:$L15,D$3),"") -> 21 | Q15: =IFERROR(LARGE($D15:$L15,E$3),"") ->  | R15: =IFERROR(LARGE($D15:$L15,F$3),"") ->  | S15: =IFERROR(LARGE($D15:$L15,G$3),"") ->  | T15: =IFERROR(LARGE($D15:$L15,H$3),"") ->  | U15: 1
A16: =RANK(N16,$N$5:$N$35,0) -> 12 | B16: Simon Chester | C16: =VLOOKUP(B16,'Age Cat'!F:G,2,FALSE) -> V40 | D16: =IFERROR(VLOOKUP($B16,'2017 Road results'!$B$3:$D$22,3,FALSE),"") -> 20 | K16: =IFERROR(VLOOKUP($B16,'2017 marathon & half'!$B$3:$D$14,3,FALSE),"") ->  | L16: =IFERROR(VLOOKUP($B16,'2017 marathon & half'!$B$27:$D$42,3,FALSE),"") ->  | M16: 20 | N16: 20 | O16: 1 | P16: 20 | U16: 1
A17: =A16+1 -> 13 | D17: =IFERROR(VLOOKUP($B17,'2017 Road results'!$B$3:$D$22,3,FALSE),"") ->  | E17: =IFERROR(VLOOKUP($B17,'[1]2017 road results'!$B$18:$D$29,3,FALSE),"") ->  | F17: =IFERROR(VLOOKUP($B17,'2017 Road results'!#REF!,3,FALSE),"") ->  | G17: =IFERROR(VLOOKUP($B17,'2017 Road results'!#REF!,3,FALSE),"") ->  | H17: =IFERROR(VLOOKUP($B17,'2017 Road results'!#REF!,3,FALSE),"") ->  | I17: =IFERROR(VLOOKUP($B17,'2017 Road results'!$B$15:$D$21,3,FALSE),"") ->  | J17: =IFERROR(VLOOKUP($B17,'2017 Road results'!#REF!,3,FALSE),"") ->  | K17: =IFERROR(VLOOKUP($B17,'2017 Road results'!#REF!,3,FALSE),"") ->  | L17: =IFERROR(VLOOKUP($B17,'2017 Road results'!#REF!,3,FALSE),"") ->  | N17: 0 | U17: 0
A18: 14 | D18: =IFERROR(VLOOKUP($B18,'2017 Road results'!$B$3:$D$22,3,FALSE),"") ->  | E18: =IFERROR(VLOOKUP($B18,'[1]2017 road results'!$B$18:$D$29,3,FALSE),"") ->  | F18: =IFERROR(VLOOKUP($B18,'2017 Road results'!#REF!,3,FALSE),"") ->  | G18: =IFERROR(VLOOKUP($B18,'2017 Road results'!#REF!,3,FALSE),"") ->  | H18: =IFERROR(VLOOKUP($B18,'2017 Road results'!#REF!,3,FALSE),"") ->  | I18: =IFERROR(VLOOKUP($B18,'2017 Road results'!$B$15:$D$21,3,FALSE),"") ->  | J18: =IFERROR(VLOOKUP($B18,'2017 Road results'!#REF!,3,FALSE),"") ->  | K18: =IFERROR(VLOOKUP($B18,'2017 Road results'!#REF!,3,FALSE),"") ->  | L18: =IFERROR(VLOOKUP($B18,'2017 Road results'!#REF!,3,FALSE),"") ->  | N18: 0 | U18: 0
A19: 15 | D19: =IFERROR(VLOOKUP($B19,'2017 Road results'!$B$3:$D$22,3,FALSE),"") ->  | E19: =IFERROR(VLOOKUP($B19,'[1]2017 road results'!$B$18:$D$29,3,FALSE),"") ->  | F19: =IFERROR(VLOOKUP($B19,'2017 Road results'!#REF!,3,FALSE),"") ->  | G19: =IFERROR(VLOOKUP($B19,'2017 Road results'!#REF!,3,FALSE),"") ->  | H19: =IFERROR(VLOOKUP($B19,'2017 Road results'!#REF!,3,FALSE),"") ->  | I19: =IFERROR(VLOOKUP($B19,'2017 Road results'!$B$15:$D$21,3,FALSE),"") ->  | J19: =IFERROR(VLOOKUP($B19,'2017 Road results'!#REF!,3,FALSE),"") ->  | K19: =IFERROR(VLOOKUP($B19,'2017 Road results'!#REF!,3,FALSE),"") ->  | L19: =IFERROR(VLOOKUP($B19,'2017 Road results'!#REF!,3,FALSE),"") ->  | N19: 0 | U19: 0
A20: 16 | D20: =IFERROR(VLOOKUP($B20,'2017 Road results'!$B$3:$D$22,3,FALSE),"") ->  | E20: =IFERROR(VLOOKUP($B20,'[1]2017 road results'!$B$18:$D$29,3,FALSE),"") ->  | F20: =IFERROR(VLOOKUP($B20,'2017 Road results'!#REF!,3,FALSE),"") ->  | G20: =IFERROR(VLOOKUP($B20,'2017 Road results'!#REF!,3,FALSE),"") ->  | H20: =IFERROR(VLOOKUP($B20,'2017 Road results'!#REF!,3,FALSE),"") ->  | I20: =IFERROR(VLOOKUP($B20,'2017 Road results'!$B$15:$D$21,3,FALSE),"") ->  | J20: =IFERROR(VLOOKUP($B20,'2017 Road results'!#REF!,3,FALSE),"") ->  | K20: =IFERROR(VLOOKUP($B20,'2017 Road results'!#REF!,3,FALSE),"") ->  | L20: =IFERROR(VLOOKUP($B20,'2017 Road results'!#REF!,3,FALSE),"") ->  | N20: 0 | U20: 0
A21: 17 | D21: =IFERROR(VLOOKUP($B21,'2017 Road results'!$B$3:$D$22,3,FALSE),"") ->  | E21: =IFERROR(VLOOKUP($B21,'[1]2017 road results'!$B$18:$D$29,3,FALSE),"") ->  | F21: =IFERROR(VLOOKUP($B21,'2017 Road results'!#REF!,3,FALSE),"") ->  | G21: =IFERROR(VLOOKUP($B21,'2017 Road results'!#REF!,3,FALSE),"") ->  | H21: =IFERROR(VLOOKUP($B21,'2017 Road results'!#REF!,3,FALSE),"") ->  | I21: =IFERROR(VLOOKUP($B21,'2017 Road results'!$B$15:$D$21,3,FALSE),"") ->  | J21: =IFERROR(VLOOKUP($B21,'2017 Road results'!#REF!,3,FALSE),"") ->  | K21: =IFERROR(VLOOKUP($B21,'2017 Road results'!#REF!,3,FALSE),"") ->  | L21: =IFERROR(VLOOKUP($B21,'2017 Road results'!#REF!,3,FALSE),"") ->  | N21: 0 | U21: 0
A22: 18 | D22: =IFERROR(VLOOKUP($B22,'2017 Road results'!$B$3:$D$22,3,FALSE),"") ->  | E22: =IFERROR(VLOOKUP($B22,'[1]2017 road results'!$B$18:$D$29,3,FALSE),"") ->  | F22: =IFERROR(VLOOKUP($B22,'2017 Road results'!#REF!,3,FALSE),"") ->  | G22: =IFERROR(VLOOKUP($B22,'2017 Road results'!#REF!,3,FALSE),"") ->  | H22: =IFERROR(VLOOKUP($B22,'2017 Road results'!#REF!,3,FALSE),"") ->  | I22: =IFERROR(VLOOKUP($B22,'2017 Road results'!$B$15:$D$21,3,FALSE),"") ->  | J22: =IFERROR(VLOOKUP($B22,'2017 Road results'!#REF!,3,FALSE),"") ->  | K22: =IFERROR(VLOOKUP($B22,'2017 Road results'!#REF!,3,FALSE),"") ->  | L22: =IFERROR(VLOOKUP($B22,'2017 Road results'!#REF!,3,FALSE),"") ->  | N22: 0 | U22: 0
A23: 19 | D23: =IFERROR(VLOOKUP($B23,'2017 Road results'!$B$3:$D$22,3,FALSE),"") ->  | E23: =IFERROR(VLOOKUP($B23,'[1]2017 road results'!$B$18:$D$29,3,FALSE),"") ->  | F23: =IFERROR(VLOOKUP($B23,'2017 Road results'!#REF!,3,FALSE),"") ->  | G23: =IFERROR(VLOOKUP($B23,'2017 Road results'!#REF!,3,FALSE),"") ->  | H23: =IFERROR(VLOOKUP($B23,'2017 Road results'!#REF!,3,FALSE),"") ->  | I23: =IFERROR(VLOOKUP($B23,'2017 Road results'!$B$15:$D$21,3,FALSE),"") ->  | J23: =IFERROR(VLOOKUP($B23,'2017 Road results'!#REF!,3,FALSE),"") ->  | K23: =IFERROR(VLOOKUP($B23,'2017 Road results'!#REF!,3,FALSE),"") ->  | L23: =IFERROR(VLOOKUP($B23,'2017 Road results'!#REF!,3,FALSE),"") ->  | N23: 0 | U23: 0
A24: 20 | D24: =IFERROR(VLOOKUP($B24,'2017 Road results'!$B$3:$D$22,3,FALSE),"") ->  | E24: =IFERROR(VLOOKUP($B24,'[1]2017 road results'!$B$18:$D$29,3,FALSE),"") ->  | F24: =IFERROR(VLOOKUP($B24,'2017 Road results'!#REF!,3,FALSE),"") ->  | G24: =IFERROR(VLOOKUP($B24,'2017 Road results'!#REF!,3,FALSE),"") ->  | H24: =IFERROR(VLOOKUP($B24,'2017 Road results'!#REF!,3,FALSE),"") ->  | I24: =IFERROR(VLOOKUP($B24,'2017 Road results'!$B$15:$D$21,3,FALSE),"") ->  | J24: =IFERROR(VLOOKUP($B24,'2017 Road results'!#REF!,3,FALSE),"") ->  | K24: =IFERROR(VLOOKUP($B24,'2017 Road results'!#REF!,3,FALSE),"") ->  | L24: =IFERROR(VLOOKUP($B24,'2017 Road results'!#REF!,3,FALSE),"") ->  | M24: =IF(SUM(D24:L24)=0,"",SUM(D24:L24)) ->  | N24: 0 | U24: 0
A25: 21 | D25: =IFERROR(VLOOKUP($B25,'2017 Road results'!$B$3:$D$22,3,FALSE),"") ->  | E25: =IFERROR(VLOOKUP($B25,'[1]2017 road results'!$B$18:$D$29,3,FALSE),"") ->  | F25: =IFERROR(VLOOKUP($B25,'2017 Road results'!#REF!,3,FALSE),"") ->  | G25: =IFERROR(VLOOKUP($B25,'2017 Road results'!#REF!,3,FALSE),"") ->  | H25: =IFERROR(VLOOKUP($B25,'2017 Road results'!#REF!,3,FALSE),"") ->  | I25: =IFERROR(VLOOKUP($B25,'2017 Road results'!$B$15:$D$21,3,FALSE),"") ->  | J25: =IFERROR(VLOOKUP($B25,'2017 Road results'!#REF!,3,FALSE),"") ->  | K25: =IFERROR(VLOOKUP($B25,'2017 Road results'!#REF!,3,FALSE),"") ->  | L25: =IFERROR(VLOOKUP($B25,'2017 Road results'!#REF!,3,FALSE),"") ->  | N25: 0 | U25: 0
A26: 22 | D26: =IFERROR(VLOOKUP($B26,'2017 Road results'!$B$3:$D$22,3,FALSE),"") ->  | E26: =IFERROR(VLOOKUP($B26,'[1]2017 road results'!$B$18:$D$29,3,FALSE),"") ->  | F26: =IFERROR(VLOOKUP($B26,'2017 Road results'!#REF!,3,FALSE),"") ->  | G26: =IFERROR(VLOOKUP($B26,'2017 Road results'!#REF!,3,FALSE),"") ->  | H26: =IFERROR(VLOOKUP($B26,'2017 Road results'!#REF!,3,FALSE),"") ->  | I26: =IFERROR(VLOOKUP($B26,'2017 Road results'!$B$15:$D$21,3,FALSE),"") ->  | J26: =IFERROR(VLOOKUP($B26,'2017 Road results'!#REF!,3,FALSE),"") ->  | K26: =IFERROR(VLOOKUP($B26,'2017 Road results'!#REF!,3,FALSE),"") ->  | L26: =IFERROR(VLOOKUP($B26,'2017 Road results'!#REF!,3,FALSE),"") ->  | N26: 0 | U26: 0
A27: 23 | D27: =IFERROR(VLOOKUP($B27,'2017 Road results'!$B$3:$D$22,3,FALSE),"") ->  | E27: =IFERROR(VLOOKUP($B27,'[1]2017 road results'!$B$18:$D$29,3,FALSE),"") ->  | F27: =IFERROR(VLOOKUP($B27,'2017 Road results'!#REF!,3,FALSE),"") ->  | G27: =IFERROR(VLOOKUP($B27,'2017 Road results'!#REF!,3,FALSE),"") ->  | H27: =IFERROR(VLOOKUP($B27,'2017 Road results'!#REF!,3,FALSE),"") ->  | I27: =IFERROR(VLOOKUP($B27,'2017 Road results'!$B$15:$D$21,3,FALSE),"") ->  | J27: =IFERROR(VLOOKUP($B27,'2017 Road results'!#REF!,3,FALSE),"") ->  | K27: =IFERROR(VLOOKUP($B27,'2017 Road results'!#REF!,3,FALSE),"") ->  | L27: =IFERROR(VLOOKUP($B27,'2017 Road results'!#REF!,3,FALSE),"") ->  | N27: 0 | U27: 0
A28: 24 | D28: =IFERROR(VLOOKUP($B28,'2017 Road results'!$B$3:$D$22,3,FALSE),"") ->  | E28: =IFERROR(VLOOKUP($B28,'[1]2017 road results'!$B$18:$D$29,3,FALSE),"") ->  | F28: =IFERROR(VLOOKUP($B28,'2017 Road results'!#REF!,3,FALSE),"") ->  | G28: =IFERROR(VLOOKUP($B28,'2017 Road results'!#REF!,3,FALSE),"") ->  | H28: =IFERROR(VLOOKUP($B28,'2017 Road results'!#REF!,3,FALSE),"") ->  | I28: =IFERROR(VLOOKUP($B28,'2017 Road results'!$B$15:$D$21,3,FALSE),"") ->  | J28: =IFERROR(VLOOKUP($B28,'2017 Road results'!#REF!,3,FALSE),"") ->  | K28: =IFERROR(VLOOKUP($B28,'2017 Road results'!#REF!,3,FALSE),"") ->  | L28: =IFERROR(VLOOKUP($B28,'2017 Road results'!#REF!,3,FALSE),"") ->  | N28: 0 | U28: 0
A29: 25 | D29: =IFERROR(VLOOKUP($B29,'2017 Road results'!$B$3:$D$22,3,FALSE),"") ->  | E29: =IFERROR(VLOOKUP($B29,'[1]2017 road results'!$B$18:$D$29,3,FALSE),"") ->  | F29: =IFERROR(VLOOKUP($B29,'2017 Road results'!#REF!,3,FALSE),"") ->  | G29: =IFERROR(VLOOKUP($B29,'2017 Road results'!#REF!,3,FALSE),"") ->  | H29: =IFERROR(VLOOKUP($B29,'2017 Road results'!#REF!,3,FALSE),"") ->  | I29: =IFERROR(VLOOKUP($B29,'2017 Road results'!$B$15:$D$21,3,FALSE),"") ->  | J29: =IFERROR(VLOOKUP($B29,'2017 Road results'!#REF!,3,FALSE),"") ->  | K29: =IFERROR(VLOOKUP($B29,'2017 Road results'!#REF!,3,FALSE),"") ->  | L29: =IFERROR(VLOOKUP($B29,'2017 Road results'!#REF!,3,FALSE),"") ->  | N29: 0 | U29: 0
A30: 26 | D30: =IFERROR(VLOOKUP($B30,'2017 Road results'!$B$3:$D$22,3,FALSE),"") ->  | E30: =IFERROR(VLOOKUP($B30,'[1]2017 road results'!$B$18:$D$29,3,FALSE),"") ->  | F30: =IFERROR(VLOOKUP($B30,'2017 Road results'!#REF!,3,FALSE),"") ->  | G30: =IFERROR(VLOOKUP($B30,'2017 Road results'!#REF!,3,FALSE),"") ->  | H30: =IFERROR(VLOOKUP($B30,'2017 Road results'!#REF!,3,FALSE),"") ->  | I30: =IFERROR(VLOOKUP($B30,'2017 Road results'!$B$15:$D$21,3,FALSE),"") ->  | J30: =IFERROR(VLOOKUP($B30,'2017 Road results'!#REF!,3,FALSE),"") ->  | K30: =IFERROR(VLOOKUP($B30,'2017 Road results'!#REF!,3,FALSE),"") ->  | L30: =IFERROR(VLOOKUP($B30,'2017 Road results'!#REF!,3,FALSE),"") ->  | N30: 0 | U30: 0
A31: 27 | D31: =IFERROR(VLOOKUP($B31,'2017 Road results'!$B$3:$D$22,3,FALSE),"") ->  | E31: =IFERROR(VLOOKUP($B31,'[1]2017 road results'!$B$18:$D$29,3,FALSE),"") ->  | F31: =IFERROR(VLOOKUP($B31,'2017 Road results'!#REF!,3,FALSE),"") ->  | G31: =IFERROR(VLOOKUP($B31,'2017 Road results'!#REF!,3,FALSE),"") ->  | H31: =IFERROR(VLOOKUP($B31,'2017 Road results'!#REF!,3,FALSE),"") ->  | I31: =IFERROR(VLOOKUP($B31,'2017 Road results'!$B$15:$D$21,3,FALSE),"") ->  | J31: =IFERROR(VLOOKUP($B31,'2017 Road results'!#REF!,3,FALSE),"") ->  | K31: =IFERROR(VLOOKUP($B31,'2017 Road results'!#REF!,3,FALSE),"") ->  | L31: =IFERROR(VLOOKUP($B31,'2017 Road results'!#REF!,3,FALSE),"") ->  | N31: 0 | U31: 0
A32: =A31+1 -> 28 | D32: =IFERROR(VLOOKUP($B32,'2017 Road results'!$B$3:$D$22,3,FALSE),"") ->  | E32: =IFERROR(VLOOKUP($B32,'[1]2017 road results'!$B$18:$D$29,3,FALSE),"") ->  | F32: =IFERROR(VLOOKUP($B32,'2017 Road results'!#REF!,3,FALSE),"") ->  | G32: =IFERROR(VLOOKUP($B32,'2017 Road results'!#REF!,3,FALSE),"") ->  | H32: =IFERROR(VLOOKUP($B32,'2017 Road results'!#REF!,3,FALSE),"") ->  | I32: =IFERROR(VLOOKUP($B32,'2017 Road results'!$B$15:$D$21,3,FALSE),"") ->  | J32: =IFERROR(VLOOKUP($B32,'2017 Road results'!#REF!,3,FALSE),"") ->  | K32: =IFERROR(VLOOKUP($B32,'2017 Road results'!#REF!,3,FALSE),"") ->  | L32: =IFERROR(VLOOKUP($B32,'2017 Road results'!#REF!,3,FALSE),"") ->  | N32: 0 | U32: 0
A33: 29 | D33: =IFERROR(VLOOKUP($B33,'2017 Road results'!$B$3:$D$22,3,FALSE),"") ->  | E33: =IFERROR(VLOOKUP($B33,'[1]2017 road results'!$B$18:$D$29,3,FALSE),"") ->  | F33: =IFERROR(VLOOKUP($B33,'2017 Road results'!#REF!,3,FALSE),"") ->  | G33: =IFERROR(VLOOKUP($B33,'2017 Road results'!#REF!,3,FALSE),"") ->  | H33: =IFERROR(VLOOKUP($B33,'2017 Road results'!#REF!,3,FALSE),"") ->  | I33: =IFERROR(VLOOKUP($B33,'2017 Road results'!$B$15:$D$21,3,FALSE),"") ->  | J33: =IFERROR(VLOOKUP($B33,'2017 Road results'!#REF!,3,FALSE),"") ->  | K33: =IFERROR(VLOOKUP($B33,'2017 Road results'!#REF!,3,FALSE),"") ->  | L33: =IFERROR(VLOOKUP($B33,'2017 Road results'!#REF!,3,FALSE),"") ->  | N33: 0 | U33: 0
A34: 30 | D34: =IFERROR(VLOOKUP($B34,'2017 Road results'!$B$3:$D$22,3,FALSE),"") ->  | E34: =IFERROR(VLOOKUP($B34,'[1]2017 road results'!$B$18:$D$29,3,FALSE),"") ->  | F34: =IFERROR(VLOOKUP($B34,'2017 Road results'!#REF!,3,FALSE),"") ->  | G34: =IFERROR(VLOOKUP($B34,'2017 Road results'!#REF!,3,FALSE),"") ->  | H34: =IFERROR(VLOOKUP($B34,'2017 Road results'!#REF!,3,FALSE),"") ->  | I34: =IFERROR(VLOOKUP($B34,'2017 Road results'!$B$15:$D$21,3,FALSE),"") ->  | J34: =IFERROR(VLOOKUP($B34,'2017 Road results'!#REF!,3,FALSE),"") ->  | K34: =IFERROR(VLOOKUP($B34,'2017 Road results'!#REF!,3,FALSE),"") ->  | L34: =IFERROR(VLOOKUP($B34,'2017 Road results'!#REF!,3,FALSE),"") ->  | N34: 0 | U34: 0
A35: 31 | D35: =IFERROR(VLOOKUP($B35,'2017 Road results'!$B$3:$D$22,3,FALSE),"") ->  | E35: =IFERROR(VLOOKUP($B35,'[1]2017 road results'!$B$18:$D$29,3,FALSE),"") ->  | F35: =IFERROR(VLOOKUP($B35,'2017 Road results'!#REF!,3,FALSE),"") ->  | G35: =IFERROR(VLOOKUP($B35,'2017 Road results'!#REF!,3,FALSE),"") ->  | H35: =IFERROR(VLOOKUP($B35,'2017 Road results'!#REF!,3,FALSE),"") ->  | I35: =IFERROR(VLOOKUP($B35,'2017 Road results'!$B$15:$D$21,3,FALSE),"") ->  | J35: =IFERROR(VLOOKUP($B35,'2017 Road results'!#REF!,3,FALSE),"") ->  | K35: =IFERROR(VLOOKUP($B35,'2017 Road results'!#REF!,3,FALSE),"") ->  | L35: =IFERROR(VLOOKUP($B35,'2017 Road results'!#REF!,3,FALSE),"") ->  | N35: 0 | P35: =IFERROR(LARGE($D35:$L35,D$3),"") ->  | S35: =IFERROR(LARGE($D35:$L35,I$3),"") ->  | T35: =IFERROR(LARGE($D35:$L35,J$3),"") ->  | U35: 0
A37: Pos | B37: Name | D37: =D3 -> 1 | E37: 2 | F37: 3 | G37: 4 | H37: 5 | I37: 6 | J37: 7 | K37: 8 | L37: 9 | M37: Total | N37: Scoring Total | O37: # Races | P37: Top 5 Results
D38: =VLOOKUP(D37,$A$60:$C$68,2,FALSE) -> 2017-03-19 | E38: =VLOOKUP(E37,$A$60:$C$68,2,FALSE) -> May | F38: =VLOOKUP(F37,$A$60:$C$68,2,FALSE) -> 2017-06-08 | G38: =VLOOKUP(G37,$A$60:$C$68,2,FALSE) -> 2017-07-05 | H38: =VLOOKUP(H37,$A$60:$C$68,2,FALSE) -> 2017-08-03 | I38: =VLOOKUP(I37,$A$60:$C$68,2,FALSE) -> 2017-08-19 | J38: =VLOOKUP(J37,$A$60:$C$68,2,FALSE) -> 2017-10-29 | P38: =D37 -> 1 | Q38: 2 | R38: 3 | S38: 4 | T38: 5
A39: =RANK(N39,$N$39:$N$57,0) -> 1 | B39: Hannah Yates | C39: =VLOOKUP(B39,'Age Cat'!F:G,2,FALSE) -> S | D39: =IFERROR(VLOOKUP($B39,'2017 Road results'!$B$3:$D$22,3,FALSE),"") -> 20 | K39: =IFERROR(VLOOKUP($B39,'2017 marathon & half'!$B$16:$D$34,3,FALSE),"") -> 24 | L39: =IFERROR(VLOOKUP($B39,'2017 marathon & half'!$B$37:$D$52,3,FALSE),"") -> 22 | M39: =IF(SUM(D39:L39)=0,"",SUM(D39:L39)) -> 66 | N39: =SUM(P39:T39) -> 66 | O39: =IF(COUNT(D39:L39)=0,"",COUNT(D39:L39)) -> 3 | P39: =IFERROR(LARGE($D39:$L39,D$3),"") -> 24 | Q39: =IFERROR(LARGE($D39:$L39,E$3),"") -> 22 | R39: =IFERROR(LARGE($D39:$L39,F$3),"") -> 20 | S39: =IFERROR(LARGE($D39:$L39,G$3),"") ->  | T39: =IFERROR(LARGE($D39:$L39,H$3),"") ->  | U39: =COUNT(P39:T39) -> 3
A40: =RANK(N40,$N$39:$N$57,0) -> 2 | B40: Sue Straw | C40: =VLOOKUP(B40,'Age Cat'!F:G,2,FALSE) -> V40 | D40: =IFERROR(VLOOKUP($B40,'2017 Road results'!$B$3:$D$22,3,FALSE),"") ->  | K40: =IFERROR(VLOOKUP($B40,'2017 marathon & half'!$B$16:$D$34,3,FALSE),"") -> 25 | L40: =IFERROR(VLOOKUP($B40,'2017 marathon & half'!$B$37:$D$52,3,FALSE),"") -> 23 | M40: 48 | N40: 48 | O40: 2 | P40: 25 | Q40: 23 | U40: 2
A41: =RANK(N41,$N$39:$N$57,0) -> 3 | B41: Amanda Sterling | C41: =VLOOKUP(B41,'Age Cat'!F:G,2,FALSE) -> V40 | D41: =IFERROR(VLOOKUP($B41,'2017 Road results'!$B$3:$D$22,3,FALSE),"") -> 23 | K41: =IFERROR(VLOOKUP($B41,'2017 marathon & half'!$B$16:$D$34,3,FALSE),"") ->  | L41: =IFERROR(VLOOKUP($B41,'2017 marathon & half'!$B$37:$D$52,3,FALSE),"") -> 24 | M41: 47 | N41: 47 | O41: 2 | P41: 24 | Q41: 23 | U41: 2
A42: =RANK(N42,$N$39:$N$57,0) -> 4 | B42: Lorraine Bamfield | C42: =VLOOKUP(B42,'Age Cat'!F:G,2,FALSE) -> V40 | D42: =IFERROR(VLOOKUP($B42,'2017 Road results'!$B$3:$D$22,3,FALSE),"") ->  | K42: =IFERROR(VLOOKUP($B42,'2017 marathon & half'!$B$16:$D$34,3,FALSE),"") -> 20 | L42: =IFERROR(VLOOKUP($B42,'2017 marathon & half'!$B$37:$D$52,3,FALSE),"") -> 21 | M42: 41 | N42: =SUM(P42:T42) -> 41 | O42: =IF(COUNT(D42:L42)=0,"",COUNT(D42:L42)) -> 2 | P42: =IFERROR(LARGE($D42:$L42,D$3),"") -> 21 | Q42: =IFERROR(LARGE($D42:$L42,E$3),"") -> 20 | R42: =IFERROR(LARGE($D42:$L42,F$3),"") ->  | S42: =IFERROR(LARGE($D42:$L42,G$3),"") ->  | T42: =IFERROR(LARGE($D42:$L42,H$3),"") ->  | U42: =COUNT(P42:T42) -> 2
A43: =RANK(N43,$N$39:$N$57,0) -> 5 | B43: Tracey Hodgson | C43: =VLOOKUP(B43,'Age Cat'!F:G,2,FALSE) -> V30 | D43: =IFERROR(VLOOKUP($B43,'2017 Road results'!$B$3:$D$22,3,FALSE),"") -> 18 | K43: =IFERROR(VLOOKUP($B43,'2017 marathon & half'!$B$16:$D$34,3,FALSE),"") -> 22 | L43: =IFERROR(VLOOKUP($B43,'2017 marathon & half'!$B$37:$D$52,3,FALSE),"") ->  | M43: =IF(SUM(D43:L43)=0,"",SUM(D43:L43)) -> 40 | N43: =SUM(P43:T43) -> 40 | O43: =IF(COUNT(D43:L43)=0,"",COUNT(D43:L43)) -> 2 | P43: =IFERROR(LARGE($D43:$L43,D$3),"") -> 22 | Q43: =IFERROR(LARGE($D43:$L43,E$3),"") -> 18 | R43: =IFERROR(LARGE($D43:$L43,F$3),"") ->  | S43: =IFERROR(LARGE($D43:$L43,G$3),"") ->  | T43: =IFERROR(LARGE($D43:$L43,H$3),"") ->  | U43: =COUNT(P43:T43) -> 2
A44: =RANK(N44,$N$39:$N$57,0) -> 6 | B44: Tizz Woffenden | C44: =VLOOKUP(B44,'Age Cat'!F:G,2,FALSE) -> V40 | D44: =IFERROR(VLOOKUP($B44,'2017 Road results'!$B$3:$D$22,3,FALSE),"") -> 25 | K44: =IFERROR(VLOOKUP($B44,'2017 marathon & half'!$B$16:$D$34,3,FALSE),"") ->  | L44: =IFERROR(VLOOKUP($B44,'2017 marathon & half'!$B$37:$D$52,3,FALSE),"") ->  | M44: 25 | N44: 25 | O44: 1 | P44: 25 | U44: 1
A45: =RANK(N45,$N$39:$N$57,0) -> 6 | B45: Claire Cooper | C45: =VLOOKUP(B45,'Age Cat'!F:G,2,FALSE) -> V30 | D45: =IFERROR(VLOOKUP($B45,'2017 Road results'!$B$3:$D$22,3,FALSE),"") ->  | K45: =IFERROR(VLOOKUP($B45,'2017 marathon & half'!$B$16:$D$34,3,FALSE),"") ->  | L45: =IFERROR(VLOOKUP($B45,'2017 marathon & half'!$B$37:$D$52,3,FALSE),"") -> 25 | M45: 25 | N45: 25 | O45: 1 | P45: 25 | U45: 1
A46: =RANK(N46,$N$39:$N$57,0) -> 8 | B46: Sarah O'Sullivan | C46: =VLOOKUP(B46,'Age Cat'!F:G,2,FALSE) -> V40 | D46: =IFERROR(VLOOKUP($B46,'2017 Road results'!$B$3:$D$22,3,FALSE),"") -> 24 | K46: =IFERROR(VLOOKUP($B46,'2017 marathon & half'!$B$16:$D$34,3,FALSE),"") ->  | L46: =IFERROR(VLOOKUP($B46,'2017 marathon & half'!$B$37:$D$52,3,FALSE),"") ->  | M46: 24 | N46: 24 | O46: 1 | P46: 24 | U46: 1
A47: =RANK(N47,$N$39:$N$57,0) -> 9 | B47: Donna Chester | C47: =VLOOKUP(B47,'Age Cat'!F:G,2,FALSE) -> V30 | D47: =IFERROR(VLOOKUP($B47,'2017 Road results'!$B$3:$D$22,3,FALSE),"") ->  | K47: =IFERROR(VLOOKUP($B47,'2017 marathon & half'!$B$16:$D$34,3,FALSE),"") -> 23 | L47: =IFERROR(VLOOKUP($B47,'2017 marathon & half'!$B$37:$D$52,3,FALSE),"") ->  | M47: 23 | N47: =SUM(P47:T47) -> 23 | O47: =IF(COUNT(D47:L47)=0,"",COUNT(D47:L47)) -> 1 | P47: =IFERROR(LARGE($D47:$L47,D$3),"") -> 23 | U47: =COUNT(P47:T47) -> 1
A48: =RANK(N48,$N$39:$N$57,0) -> 10 | B48: Camille Askins | C48: =VLOOKUP(B48,'Age Cat'!F:G,2,FALSE) -> V40 | D48: =IFERROR(VLOOKUP($B48,'2017 Road results'!$B$3:$D$22,3,FALSE),"") -> 22 | K48: =IFERROR(VLOOKUP($B48,'2017 marathon & half'!$B$16:$D$34,3,FALSE),"") ->  | L48: =IFERROR(VLOOKUP($B48,'2017 marathon & half'!$B$37:$D$52,3,FALSE),"") ->  | M48: 22 | N48: =SUM(P48:T48) -> 22 | O48: =IF(COUNT(D48:L48)=0,"",COUNT(D48:L48)) -> 1 | P48: 22 | U48: =COUNT(P48:T48) -> 1
A49: =RANK(N49,$N$39:$N$57,0) -> 11 | B49: Heather Crow | C49: =VLOOKUP(B49,'Age Cat'!F:G,2,FALSE) -> S | D49: =IFERROR(VLOOKUP($B49,'2017 Road results'!$B$3:$D$22,3,FALSE),"") ->  | K49: =IFERROR(VLOOKUP($B49,'2017 marathon & half'!$B$16:$D$34,3,FALSE),"") -> 21 | L49: =IFERROR(VLOOKUP($B49,'2017 marathon & half'!$B$37:$D$52,3,FALSE),"") ->  | M49: 21 | N49: =SUM(P49:T49) -> 21 | O49: =IF(COUNT(D49:L49)=0,"",COUNT(D49:L49)) -> 1 | P49: 21 | U49: =COUNT(P49:T49) -> 1
A50: =RANK(N50,$N$39:$N$57,0) -> 11 | B50: Kayleigh Fish | C50: =VLOOKUP(B50,'Age Cat'!F:G,2,FALSE) -> S | D50: =IFERROR(VLOOKUP($B50,'2017 Road results'!$B$3:$D$22,3,FALSE),"") -> 21 | K50: =IFERROR(VLOOKUP($B50,'2017 marathon & half'!$B$16:$D$34,3,FALSE),"") ->  | L50: =IFERROR(VLOOKUP($B50,'2017 marathon & half'!$B$37:$D$52,3,FALSE),"") ->  | M50: 21 | N50: 21 | O50: 1 | P50: 21 | U50: 1
A51: =RANK(N51,$N$39:$N$57,0) -> 13 | B51: Samantha Knowles | C51: =VLOOKUP(B51,'Age Cat'!F:G,2,FALSE) -> V40 | D51: =IFERROR(VLOOKUP($B51,'2017 Road results'!$B$3:$D$22,3,FALSE),"") ->  | K51: =IFERROR(VLOOKUP($B51,'2017 marathon & half'!$B$16:$D$34,3,FALSE),"") ->  | L51: =IFERROR(VLOOKUP($B51,'2017 marathon & half'!$B$37:$D$52,3,FALSE),"") -> 20 | M51: 20 | N51: 20 | O51: 1 | P51: 20 | U51: 1
A52: =RANK(N52,$N$39:$N$57,0) -> 14 | B52: Sarah Meikle | C52: =VLOOKUP(B52,'Age Cat'!F:G,2,FALSE) -> V40 | D52: =IFERROR(VLOOKUP($B52,'2017 Road results'!$B$3:$D$22,3,FALSE),"") -> 19 | K52: =IFERROR(VLOOKUP($B52,'2017 marathon & half'!$B$16:$D$34,3,FALSE),"") ->  | L52: =IFERROR(VLOOKUP($B52,'2017 marathon & half'!$B$37:$D$52,3,FALSE),"") ->  | M52: 19 | N52: 19 | O52: 1 | P52: 19 | U52: 1
A53: =RANK(N53,$N$39:$N$57,0) -> 15 | B53: Luisa Lauren | C53: =VLOOKUP(B53,'Age Cat'!F:G,2,FALSE) -> V50 | D53: =IFERROR(VLOOKUP($B53,'2017 Road results'!$B$3:$D$22,3,FALSE),"") -> 17 | K53: =IFERROR(VLOOKUP($B53,'2017 marathon & half'!$B$16:$D$34,3,FALSE),"") ->  | L53: =IFERROR(VLOOKUP($B53,'2017 marathon & half'!$B$37:$D$52,3,FALSE),"") ->  | M53: 17 | N53: 17 | O53: 1 | P53: 17 | U53: 1
A54: =RANK(N54,$N$39:$N$57,0) -> 16 | B54: Paula Williams | C54: =VLOOKUP(B54,'Age Cat'!F:G,2,FALSE) -> V40 | D54: =IFERROR(VLOOKUP($B54,'2017 Road results'!$B$3:$D$22,3,FALSE),"") -> 16 | K54: =IFERROR(VLOOKUP($B54,'2017 marathon & half'!$B$16:$D$34,3,FALSE),"") ->  | L54: =IFERROR(VLOOKUP($B54,'2017 marathon & half'!$B$37:$D$52,3,FALSE),"") ->  | M54: 16 | N54: =SUM(P54:T54) -> 16 | O54: =IF(COUNT(D54:L54)=0,"",COUNT(D54:L54)) -> 1 | P54: =IFERROR(LARGE($D54:$L54,D$3),"") -> 16 | Q54: =IFERROR(LARGE($D54:$L54,E$3),"") ->  | R54: =IFERROR(LARGE($D54:$L54,F$3),"") ->  | S54: =IFERROR(LARGE($D54:$L54,G$3),"") ->  | T54: =IFERROR(LARGE($D54:$L54,H$3),"") ->  | U54: =COUNT(P54:T54) -> 1
A55: =RANK(N55,$N$39:$N$57,0) -> 17 | B55: Catherine Bellwood | C55: =VLOOKUP(B55,'Age Cat'!F:G,2,FALSE) -> V50 | D55: =IFERROR(VLOOKUP($B55,'2017 Road results'!$B$3:$D$22,3,FALSE),"") -> 15 | K55: =IFERROR(VLOOKUP($B55,'2017 marathon & half'!$B$16:$D$34,3,FALSE),"") ->  | L55: =IFERROR(VLOOKUP($B55,'2017 marathon & half'!$B$37:$D$52,3,FALSE),"") ->  | M55: 15 | N55: 15 | O55: 1 | P55: 15 | U55: 1
A56: =RANK(N56,$N$39:$N$57,0) -> 18 | B56: Mary Hodgkiss | C56: =VLOOKUP(B56,'Age Cat'!F:G,2,FALSE) -> V60 | D56: =IFERROR(VLOOKUP($B56,'2017 Road results'!$B$3:$D$22,3,FALSE),"") -> 14 | K56: =IFERROR(VLOOKUP($B56,'2017 marathon & half'!$B$16:$D$34,3,FALSE),"") ->  | L56: =IFERROR(VLOOKUP($B56,'2017 marathon & half'!$B$37:$D$52,3,FALSE),"") ->  | M56: 14 | N56: 14 | O56: 1 | P56: 14 | U56: 1
A57: =RANK(N57,$N$39:$N$57,0) -> 19 | B57: Andrea Stead | D57: =IFERROR(VLOOKUP($B57,'2017 Road results'!$B$3:$D$22,3,FALSE),"") -> 13 | K57: =IFERROR(VLOOKUP($B57,'2017 marathon & half'!$B$16:$D$34,3,FALSE),"") ->  | L57: =IFERROR(VLOOKUP($B57,'2017 marathon & half'!$B$37:$D$52,3,FALSE),"") ->  | M57: 13 | N57: 13 | O57: 1 | P57: 13 | U57: 1
A60: 1 | B60: 2017-03-19 | C60: Bradford 10k
A61: 2 | B61: May | C61: Esholt 5k Series (x3)
A62: 3 | B62: 2017-06-08 | C62: Bronte 5m
A63: 4 | B63: 2017-07-05 | C63: Helen Windsor 10K
A64: 5 | B64: 2017-08-03 | C64: UAK Track 1M
A65: 6 | B65: 2017-08-19 | C65: Burnsall 10M
A66: 7 | B66: 2017-10-29 | C66: Holmfirth 10K
A67: 8 | C67: Best ½ Marathon
A68: 9 | C68: Best Marathon

Sheet 2017 marathon & half
A1: Half Marathon Results | G1: Name | H1: Fastest | I1: Central Lancs | J1: Wilmslow | K1: Inskip | L1: Oulton Park | M1: Hastings | N1: Keswick | O1: Fleet
A2: Position | B2: Name | C2: Time | D2: Points | E2: in Road tbl | F2: In Overall | G2: John-Paul Hopkinson | H2: =MIN(I2:S2) -> 84.24 | K2: 84.24
A3: =RANK(C3,$C$3:$C$13,1) -> 1 | B3: John-Paul Hopkinson | C3: =VLOOKUP(B3,G:H,2,FALSE) -> 84.24 | D3: =26-A3 -> 25 | E3: =VLOOKUP(B3,'2017 Road Table'!$B$3:$B$69,1,FALSE) -> John-Paul Hopkinson | F3: =VLOOKUP(B3,'Overall Champs'!$C$7:$C$47,1,FALSE) -> John-Paul Hopkinson | G3: Tracey Hodgson | H3: =MIN(I3:S3) -> 116.48 | K3: 116.48 | N3: =(2*60+4) -> 124
A4: =RANK(C4,$C$3:$C$13,1) -> 2 | B4: Tony Booth | C4: =VLOOKUP(B4,G:H,2,FALSE) -> 85.59 | D4: =26-A4 -> 24 | E4: =VLOOKUP(B4,'2017 Road Table'!$B$3:$B$69,1,FALSE) -> Tony Booth | F4: =VLOOKUP(B4,'Overall Champs'!$C$7:$C$47,1,FALSE) -> Tony Booth | G4: Lorraine Bamfield | H4: 147.41 | K4: 147.41
A5: =RANK(C5,$C$3:$C$13,1) -> 3 | B5: John Conroy | C5: =VLOOKUP(B5,G:H,2,FALSE) -> 89.54 | D5: =26-A5 -> 23 | E5: =VLOOKUP(B5,'2017 Road Table'!$B$3:$B$69,1,FALSE) -> John Conroy | F5: =VLOOKUP(B5,'Overall Champs'!$C$7:$C$47,1,FALSE) -> John Conroy | G5: Joe Atherton | H5: 92.32 | J5: 92.32
A6: =RANK(C6,$C$3:$C$13,1) -> 4 | B6: Joe Atherton | C6: =VLOOKUP(B6,G:H,2,FALSE) -> 92.32 | D6: =26-A6 -> 22 | E6: =VLOOKUP(B6,'2017 Road Table'!$B$3:$B$69,1,FALSE) -> Joe Atherton | F6: =VLOOKUP(B6,'Overall Champs'!$C$7:$C$47,1,FALSE) -> Joe Atherton | G6: Donna Chester | H6: 113.29 | I6: 113.29
G7: Hannah Yates | H7: 113.27 | I7: 113.27
G8: John Conroy | H8: 89.54 | O8: 89.54
G9: Heather Crow | H9: 134.56 | M9: 134.56
G10: Tony Booth | H10: 85.59 | L10: 85.59
G11: Sue Straw | H11: 101.12 | L11: 101.12
A15: Position | B15: Name | C15: Time | D15: Points | E15: in Road tbl | F15: In Overall
A16: =RANK(C16,$C$16:$C$22,1) -> 1 | B16: Sue Straw | C16: =VLOOKUP(B16,G:H,2,FALSE) -> 101.12 | D16: =26-A16 -> 25 | E16: =VLOOKUP(B16,'2017 Road Table'!$B$3:$B$69,1,FALSE) -> Sue Straw | F16: =VLOOKUP(B16,'Overall Champs'!$O$7:$O$37,1,FALSE) -> Sue Straw
A17: 2 | B17: Hannah Yates | C17: 113.27 | D17: 24 | E17: =VLOOKUP(B17,'2017 Road Table'!$B$3:$B$69,1,FALSE) -> Hannah Yates | F17: =VLOOKUP(B17,'Overall Champs'!$O$7:$O$37,1,FALSE) -> Hannah Yates
A18: 3 | B18: Donna Chester | C18: 113.29 | D18: 23 | E18: =VLOOKUP(B18,'2017 Road Table'!$B$3:$B$69,1,FALSE) -> Donna Chester | F18: =VLOOKUP(B18,'Overall Champs'!$O$7:$O$37,1,FALSE) -> Donna Chester
A19: 4 | B19: Tracey Hodgson | C19: 116.48 | D19: 22 | E19: =VLOOKUP(B19,'2017 Road Table'!$B$3:$B$69,1,FALSE) -> Tracey Hodgson | F19: =VLOOKUP(B19,'Overall Champs'!$O$7:$O$37,1,FALSE) -> Tracey Hodgson
A20: 5 | B20: Heather Crow | C20: 134.56 | D20: 21 | E20: =VLOOKUP(B20,'2017 Road Table'!$B$3:$B$69,1,FALSE) -> Heather Crow | F20: =VLOOKUP(B20,'Overall Champs'!$O$7:$O$37,1,FALSE) -> Heather Crow
A21: 6 | B21: Lorraine Bamfield | C21: 147.41 | D21: 20 | E21: =VLOOKUP(B21,'2017 Road Table'!$B$3:$B$69,1,FALSE) -> Lorraine Bamfield | F21: =VLOOKUP(B21,'Overall Champs'!$O$7:$O$37,1,FALSE) -> Lorraine Bamfield
A25: Marathon Results | G25: Name | H25: Fastest | I25: London | J25: York | K25: Paris
A26: Position | B26: Name | C26: Time | D26: Points | E26: in Road tbl | F26: In Overall | G26: Amanda Sterling | H26: =MIN(I26:S26) -> 215.37 | K26: =(3*60+35+0.37) -> 215.37
A27: 1 | B27: gary chapman | C27: =VLOOKUP(B27,G$26:H$1048576,2,FALSE) -> 192 | D27: =26-A27 -> 25 | E27: =VLOOKUP(B27,'2017 Road Table'!$B$3:$B$69,1,FALSE) -> Gary Chapman | F27: =VLOOKUP(B27,'Overall Champs'!$C$7:$C$77,1,FALSE) -> Gary Chapman | G27: gary chapman | H27: =MIN(I27:S27) -> 192 | I27: 192
A28: 2 | B28: Tony booth | C28: =VLOOKUP(B28,G$26:H$1048576,2,FALSE) -> 194 | D28: =26-A28 -> 24 | E28: =VLOOKUP(B28,'2017 Road Table'!$B$3:$B$69,1,FALSE) -> Tony Booth | F28: =VLOOKUP(B28,'Overall Champs'!$O$7:$O$74,1,FALSE) ->  | G28: Claire Cooper | H28: 193 | I28: 193
A29: 3 | B29: craig cooper | C29: 196 | D29: =26-A29 -> 23 | E29: =VLOOKUP(B29,'2017 Road Table'!$B$3:$B$69,1,FALSE) -> Craig Cooper | F29: =VLOOKUP(B29,'Overall Champs'!$O$7:$O$74,1,FALSE) ->  | G29: Tony booth | H29: 194 | I29: 194
A30: 4 | B30: Simon smallwood | C30: 274 | D30: =26-A30 -> 22 | E30: =VLOOKUP(B30,'2017 Road Table'!$B$3:$B$69,1,FALSE) -> Simon Smallwood | F30: =VLOOKUP(B30,'Overall Champs'!$O$7:$O$74,1,FALSE) ->  | G30: craig cooper | H30: 196 | I30: 196
G31: sue straw | H31: 229 | I31: 229
G32: Simon smallwood | H32: 274 | I32: 274
G33: hannah yates | H33: 276 | I33: 276
G34: lorraine bamfield | H34: 314 | I34: 314
G35: samantha knowles | H35: 351 | I35: 351
A40: Position | B40: Name | C40: Time | D40: Points | E40: in Road tbl | F40: In Overall
A41: 1 | B41: Claire Cooper | C41: =VLOOKUP(B41,G$26:H$1048576,2,FALSE) -> 193 | D41: =26-A41 -> 25 | E41: =VLOOKUP(B41,'2017 Road Table'!$B$3:$B$69,1,FALSE) -> Claire Cooper | F41: =VLOOKUP(B41,'Overall Champs'!$O$7:$O$37,1,FALSE) -> Claire Cooper
A42: 2 | B42: Amanda Sterling | C42: =VLOOKUP(B42,G$26:H$1048576,2,FALSE) -> 215.37 | D42: =26-A42 -> 24 | E42: =VLOOKUP(B42,'2017 Road Table'!$B$3:$B$69,1,FALSE) -> Amanda Sterling | F42: =VLOOKUP(B42,'Overall Champs'!$O$7:$O$37,1,FALSE) -> Amanda Sterling
A43: 3 | B43: sue straw | C43: =VLOOKUP(B43,G$26:H$1048576,2,FALSE) -> 229 | D43: =26-A43 -> 23 | E43: =VLOOKUP(B43,'2017 Road Table'!$B$3:$B$69,1,FALSE) -> Sue Straw | F43: =VLOOKUP(B43,'Overall Champs'!$O$7:$O$37,1,FALSE) -> Sue Straw
A44: 4 | B44: hannah yates | C44: =VLOOKUP(B44,G$26:H$1048576,2,FALSE) -> 276 | D44: =26-A44 -> 22 | E44: =VLOOKUP(B44,'2017 Road Table'!$B$3:$B$69,1,FALSE) -> Hannah Yates | F44: =VLOOKUP(B44,'Overall Champs'!$O$7:$O$37,1,FALSE) -> Hannah Yates
A45: 5 | B45: lorraine bamfield | C45: =VLOOKUP(B45,G$26:H$1048576,2,FALSE) -> 314 | D45: =26-A45 -> 21 | E45: =VLOOKUP(B45,'2017 Road Table'!$B$3:$B$69,1,FALSE) -> Lorraine Bamfield | F45: =VLOOKUP(B45,'Overall Champs'!$O$7:$O$37,1,FALSE) -> Lorraine Bamfield
A46: 6 | B46: samantha knowles | C46: =VLOOKUP(B46,G$26:H$1048576,2,FALSE) -> 351 | D46: 20 | E46: =VLOOKUP(B46,'2017 Road Table'!$B$3:$B$69,1,FALSE) -> Samantha Knowles | F46: =VLOOKUP(B46,'Overall Champs'!$O$7:$O$37,1,FALSE) -> Samantha Knowles
I52: » Chapman, Gary (GBR) | J52: =3*60+12 -> 192 | K52: 05:14:36
I53: » Cooper, Claire (GBR) | J53: =3*60+13 -> 193 | K53: 03:14:25
I54: » Booth, Tony (GBR) | J54: =3*60+14 -> 194 | K54: 03:12:11
I55: » Cooper, Craig (GBR) | J55: =3*60+16 -> 196 | K55: 03:13:06
I56: » Straw, Sue (GBR) | J56: =3*60+49 -> 229 | K56: 03:16:00
I57: » Smallwood, Robert (GBR) | J57: =4*60+34 -> 274 | K57: 05:51:56
I58: » Yates, Hannah (ENG) | J58: =4*60+36 -> 276 | K58: 04:34:25
I59: » Bamfield, Lorraine (GBR) | J59: =(5*60+14) -> 314 | K59: 03:49:14
I60: » Knowles, Samantha (GBR) | J60: =5*60+51 -> 351 | K60: 04:36:09

Sheet 2017 extreme results
A1: Race 1 | B1: Rombalds
A2: Position | B2: Name | C2: lookup | D2: Points | E2: overall champs lookup | F2: overall champs lookup | G2: Club | H2: Cat | I2: Time | J2: Comment | K2: overall champs lookup
A3: 1 | B3: John-Paul Hopkinson | C3: =VLOOKUP(B3,'2017 extreme Table'!$B$3:$B$76,1,FALSE) -> John-Paul Hopkinson | D3: =26-A3 -> 25 | E3: =VLOOKUP(B3,'Overall Champs'!C:C,1,FALSE) -> John-Paul Hopkinson | F3: =VLOOKUP(B3,'Overall Champs'!O:O,1,FALSE) ->  | I3: 03:18:18
A4: 2 | B4: Richard Butter | C4: =VLOOKUP(B4,'2017 extreme Table'!$B$3:$B$76,1,FALSE) ->  | D4: =26-A4 -> 24 | E4: =VLOOKUP(B4,'Overall Champs'!C:C,1,FALSE) -> Richard Butter | F4: =VLOOKUP(B4,'Overall Champs'!O:O,1,FALSE) ->  | I4: 03:40:08
A5: 3 | B5: Dick Ballantine | C5: =VLOOKUP(B5,'2017 extreme Table'!$B$3:$B$76,1,FALSE) -> Dick Ballantine | D5: 23 | E5: =VLOOKUP(B5,'Overall Champs'!C:C,1,FALSE) -> Dick Ballantine | F5: =VLOOKUP(B5,'Overall Champs'!O:O,1,FALSE) ->  | I5: 03:49:43
A6: 4 | B6: Simon Bellwood | C6: =VLOOKUP(B6,'2017 extreme Table'!$B$3:$B$76,1,FALSE) -> Simon Bellwood | D6: 22 | E6: =VLOOKUP(B6,'Overall Champs'!C:C,1,FALSE) -> Simon Bellwood | F6: =VLOOKUP(B6,'Overall Champs'!O:O,1,FALSE) ->  | I6: 03:59:57
A7: 5 | B7: Russell Fairhurst | C7: =VLOOKUP(B7,'2017 extreme Table'!$B$3:$B$76,1,FALSE) -> Russell Fairhurst | D7: 21 | E7: =VLOOKUP(B7,'Overall Champs'!C:C,1,FALSE) -> Russell Fairhurst | F7: =VLOOKUP(B7,'Overall Champs'!O:O,1,FALSE) ->  | I7: 03:59:57
A8: 6 | B8: Simon Wheeler | C8: =VLOOKUP(B8,'2017 extreme Table'!$B$3:$B$76,1,FALSE) -> Simon Wheeler | D8: 20 | E8: =VLOOKUP(B8,'Overall Champs'!C:C,1,FALSE) -> Simon Wheeler | F8: =VLOOKUP(B8,'Overall Champs'!O:O,1,FALSE) ->  | I8: 04:00:14
A9: 7 | B9: Steve Carter | C9: =VLOOKUP(B9,'2017 extreme Table'!$B$3:$B$76,1,FALSE) -> Steve Carter | D9: 19 | E9: =VLOOKUP(B9,'Overall Champs'!C:C,1,FALSE) -> Steve Carter | F9: =VLOOKUP(B9,'Overall Champs'!O:O,1,FALSE) ->  | I9: 04:37:28
A10: 1 | B10: Diane Macdonald | C10: =VLOOKUP(B10,'2017 extreme Table'!$B$3:$B$76,1,FALSE) -> Diane Macdonald | D10: 25 | E10: =VLOOKUP(B10,'Overall Champs'!C:C,1,FALSE) ->  | F10: =VLOOKUP(B10,'Overall Champs'!O:O,1,FALSE) -> Diane Macdonald | I10: 04:43:34
A11: 8 | B11: Ian Rodgers | C11: =VLOOKUP(B11,'2017 extreme Table'!$B$3:$B$76,1,FALSE) -> Ian Rodgers | D11: 18 | E11: =VLOOKUP(B11,'Overall Champs'!C:C,1,FALSE) -> Ian Rodgers | F11: =VLOOKUP(B11,'Overall Champs'!O:O,1,FALSE) ->  | I11: 04:43:34
A12: 2 | B12: Hannah Yates | C12: =VLOOKUP(B12,'2017 extreme Table'!$B$3:$B$76,1,FALSE) -> Hannah Yates | D12: 24 | E12: =VLOOKUP(B12,'Overall Champs'!C:C,1,FALSE) ->  | F12: =VLOOKUP(B12,'Overall Champs'!O:O,1,FALSE) -> Hannah Yates | I12: 05:11:20
A13: 3 | B13: Donna Chester | C13: =VLOOKUP(B13,'2017 extreme Table'!$B$3:$B$76,1,FALSE) -> Donna Chester | D13: 23 | E13: =VLOOKUP(B13,'Overall Champs'!C:C,1,FALSE) ->  | F13: =VLOOKUP(B13,'Overall Champs'!O:O,1,FALSE) -> Donna Chester | I13: 05:11:45
A14: 4 | B14: Victoria Wadsworth | C14: =VLOOKUP(B14,'2017 extreme Table'!$B$3:$B$76,1,FALSE) -> Victoria Wadsworth | D14: 22 | E14: =VLOOKUP(B14,'Overall Champs'!C:C,1,FALSE) ->  | F14: =VLOOKUP(B14,'Overall Champs'!O:O,1,FALSE) -> Victoria Wadsworth | I14: 05:13:00
A15: 9 | B15: Alistair Gavins | C15: =VLOOKUP(B15,'2017 extreme Table'!$B$3:$B$76,1,FALSE) -> Alistair Gavins | D15: 17 | E15: =VLOOKUP(B15,'Overall Champs'!C:C,1,FALSE) -> Alistair Gavins | F15: =VLOOKUP(B15,'Overall Champs'!O:O,1,FALSE) ->  | I15: 05:13:12
A20: Race 2 | B20: 3 peaks
A21: Position | B21: Name | C21: ext table check | D21: Points | E21: overall champs check | G21: Club | H21: Cat | I21: Time | J21: Comment
A22: 1 | B22: Christopher Loftus | C22: =VLOOKUP(B22,'2017 extreme Table'!$B$3:$B$76,1,FALSE) -> Christopher Loftus | D22: =26-A22 -> 25 | E22: =VLOOKUP(B22,'Overall Champs'!C:C,1,FALSE) -> Christopher Loftus | G22: Keithley | H22: M40 | I22: 1.13.15
A23: 2 | B23: Sam Downey | C23: =VLOOKUP(B23,'2017 extreme Table'!$B$3:$B$76,1,FALSE) -> Sam Downey | D23: =26-A23 -> 24 | E23: =VLOOKUP(B23,'Overall Champs'!C:C,1,FALSE) -> Sam Downey | G23: Keithley | H23: M40 | I23: 1.13.47
A24: 3 | B24: Shaun Wilkinson | C24: =VLOOKUP(B24,'2017 extreme Table'!$B$3:$B$76,1,FALSE) -> Shaun Wilkinson | D24: 23 | E24: =VLOOKUP(B24,'Overall Champs'!C:C,1,FALSE) -> Shaun Wilkinson | G24: Keithley | H24: M40 | I24: 1.15.22
A25: 4 | B25: Ben Timbers | C25: =VLOOKUP(B25,'2017 extreme Table'!$B$3:$B$76,1,FALSE) -> Ben Timbers | D25: 22 | E25: =VLOOKUP(B25,'Overall Champs'!C:C,1,FALSE) -> Ben Timbers | G25: Keithley | H25: M40 | I25: 1.19.09
A26: 5 | B26: Rick Harwood | C26: =VLOOKUP(B26,'2017 extreme Table'!$B$3:$B$76,1,FALSE) -> Rick Harwood | D26: 21 | E26: =VLOOKUP(B26,'Overall Champs'!C:C,1,FALSE) -> Rick Harwood | G26: Keithley | H26: M50 | I26: 1.20.46
A27: 6 | B27: John Conroy | C27: =VLOOKUP(B27,'2017 extreme Table'!$B$3:$B$76,1,FALSE) -> John Conroy | D27: 20 | E27: =VLOOKUP(B27,'Overall Champs'!C:C,1,FALSE) -> John Conroy | G27: Keithley | H27: M Senior | I27: 1.21.19
A28: 7 | B28: Peter Lloyd | C28: =VLOOKUP(B28,'2017 extreme Table'!$B$3:$B$76,1,FALSE) -> Peter Lloyd | D28: 19 | E28: =VLOOKUP(B28,'Overall Champs'!C:C,1,FALSE) -> Peter Lloyd | G28: Keithley | H28: M40 | I28: 1.30.48
A29: 8 | B29: Russell Aydon-Butler | C29: =VLOOKUP(B29,'2017 extreme Table'!$B$3:$B$76,1,FALSE) -> Russell Aydon-Butler | D29: 18 | E29: =VLOOKUP(B29,'Overall Champs'!C:C,1,FALSE) -> Russell Aydon-Butler | G29: Keithley | H29: F Senior | I29: 1.33.17 | J29: 1st F Senior
A30: 9 | B30: David Copping | C30: =VLOOKUP(B30,'2017 extreme Table'!$B$3:$B$76,1,FALSE) -> David Copping | D30: 17 | E30: =VLOOKUP(B30,'Overall Champs'!C:C,1,FALSE) -> David Copping | G30: Keithley | H30: F50 | I30: 1.37.04 | J30: 1st F50
A31: 10 | B31: Andrew Travis | C31: =VLOOKUP(B31,'2017 extreme Table'!$B$3:$B$76,1,FALSE) -> Andrew Travis | D31: 16 | E31: =VLOOKUP(B31,'Overall Champs'!C:C,1,FALSE) -> Andrew Travis | G31: Keithley | H31: F Senior | I31: 1.48.21
A32: 11 | B32: Peter Smith | C32: =VLOOKUP(B32,'2017 extreme Table'!$B$3:$B$76,1,FALSE) -> Peter Smith | D32: 15 | E32: =VLOOKUP(B32,'Overall Champs'!C:C,1,FALSE) -> Peter Smith
A33: 12 | B33: Russell Fairhurst | C33: =VLOOKUP(B33,'2017 extreme Table'!$B$3:$B$76,1,FALSE) -> Russell Fairhurst | D33: 14 | E33: =VLOOKUP(B33,'Overall Champs'!C:C,1,FALSE) -> Russell Fairhurst
A34: 13 | B34: Dan Timbers | C34: =VLOOKUP(B34,'2017 extreme Table'!$B$3:$B$76,1,FALSE) -> Dan Timbers | D34: 13 | E34: =VLOOKUP(B34,'Overall Champs'!C:C,1,FALSE) -> Dan Timbers
A35: 14 | B35: Dick Ballantine | C35: =VLOOKUP(B35,'2017 extreme Table'!$B$3:$B$76,1,FALSE) -> Dick Ballantine | D35: 12 | E35: =VLOOKUP(B35,'Overall Champs'!C:C,1,FALSE) -> Dick Ballantine
A36: 15 | B36: Tim Thom | C36: =VLOOKUP(B36,'2017 extreme Table'!$B$3:$B$76,1,FALSE) -> Tim Thom | D36: 11 | E36: =VLOOKUP(B36,'Overall Champs'!C:C,1,FALSE) -> Tim Thom
A37: 16 | B37: Simon Wheeler | C37: =VLOOKUP(B37,'2017 extreme Table'!$B$3:$B$76,1,FALSE) -> Simon Wheeler | D37: 10 | E37: =VLOOKUP(B37,'Overall Champs'!C:C,1,FALSE) -> Simon Wheeler
A38: 1 | B38: Angela Paxton | C38: =VLOOKUP(B38,'2017 extreme Table'!$B$3:$B$76,1,FALSE) -> Angela Paxton | D38: =26-A38 -> 25 | F38: =VLOOKUP(B38,'Overall Champs'!O:O,1,FALSE) -> Angela Paxton
A39: 2 | B39: Sharon Hudson | C39: =VLOOKUP(B39,'2017 extreme Table'!$B$3:$B$76,1,FALSE) -> Sharon Hudson | D39: 24 | F39: =VLOOKUP(B39,'Overall Champs'!O:O,1,FALSE) -> Sharon Hudson
A40: 3 | B40: Amanda Sterling | C40: =VLOOKUP(B40,'2017 extreme Table'!$B$3:$B$76,1,FALSE) -> Amanda Sterling | D40: 23 | F40: =VLOOKUP(B40,'Overall Champs'!O:O,1,FALSE) -> Amanda Sterling
A41: 4 | B41: Hannah Thom | C41: =VLOOKUP(B41,'2017 extreme Table'!$B$3:$B$76,1,FALSE) -> Hannah Thom | D41: 22 | F41: =VLOOKUP(B41,'Overall Champs'!O:O,1,FALSE) -> Hannah Thom
A44: Race 3 | D44: Points
A45: Position | C45: =VLOOKUP(B34,#REF!,1,FALSE) ->  | D45: =26-A46 -> 25
A46: 1 | C46: =VLOOKUP(B35,#REF!,1,FALSE) ->  | D46: =26-A47 -> 24
A47: 2 | C47: =VLOOKUP(B36,#REF!,1,FALSE) ->  | D47: 23
A48: 3 | C48: =VLOOKUP(B37,#REF!,1,FALSE) ->  | D48: 22
A49: 4 | C49: =VLOOKUP(B42,#REF!,1,FALSE) ->  | D49: 25
A50: 1 | C50: =VLOOKUP(B43,#REF!,1,FALSE) ->  | D50: 21
A51: 5 | B51: Race 4 | C51: =VLOOKUP(B44,#REF!,1,FALSE) ->  | D51: 20
A52: 6 | B52: Name | C52: =VLOOKUP(B45,#REF!,1,FALSE) ->  | D52: 24
A53: 2 | C53: =VLOOKUP(B46,#REF!,1,FALSE) ->  | D53: 23
A54: 3 | C54: =VLOOKUP(B47,#REF!,1,FALSE) ->  | D54: 22
A55: 4 | C55: =VLOOKUP(B48,#REF!,1,FALSE) ->  | D55: 19
A56: 7 | C56: =VLOOKUP(B49,#REF!,1,FALSE) ->  | D56: 21
A57: 5
A59: Race 4 | D59: Points
A60: Position | C60: =VLOOKUP(B53,#REF!,1,FALSE) ->  | D60: =26-A61 -> 25
A61: 1 | C61: =VLOOKUP(B54,#REF!,1,FALSE) ->  | D61: =26-A62 -> 24
A62: 2 | C62: =VLOOKUP(B55,#REF!,1,FALSE) ->  | D62: 23
A63: 3 | C63: =VLOOKUP(B56,#REF!,1,FALSE) ->  | D63: 22
A64: 4 | C64: =VLOOKUP(B57,#REF!,1,FALSE) ->  | D64: 25
A65: 1 | C65: =VLOOKUP(B58,#REF!,1,FALSE) ->  | D65: 21
A66: 5 | C66: =VLOOKUP(B59,#REF!,1,FALSE) ->  | D66: 20
A67: 6 | B67: Name | C67: =VLOOKUP(B60,#REF!,1,FALSE) ->  | D67: 24
A68: 2 | C68: =VLOOKUP(B61,#REF!,1,FALSE) ->  | D68: 23
A69: 3 | C69: =VLOOKUP(B62,#REF!,1,FALSE) ->  | D69: 22
A70: 4 | C70: =VLOOKUP(B63,#REF!,1,FALSE) ->  | D70: 19
A71: 7 | C71: =VLOOKUP(B64,#REF!,1,FALSE) ->  | D71: 21
A72: 5
A74: Race 5 | D74: Points
A75: Position | C75: =VLOOKUP(B68,#REF!,1,FALSE) ->  | D75: =26-A76 -> 25
A76: 1 | C76: =VLOOKUP(B69,#REF!,1,FALSE) ->  | D76: =26-A77 -> 24
A77: 2 | C77: =VLOOKUP(B70,#REF!,1,FALSE) ->  | D77: 23
A78: 3 | C78: =VLOOKUP(B71,#REF!,1,FALSE) ->  | D78: 22
A79: 4 | C79: =VLOOKUP(B72,#REF!,1,FALSE) ->  | D79: 25
A80: 1 | C80: =VLOOKUP(B73,#REF!,1,FALSE) ->  | D80: 21
A81: 5 | C81: =VLOOKUP(B74,#REF!,1,FALSE) ->  | D81: 20
A82: 6 | C82: =VLOOKUP(B75,#REF!,1,FALSE) ->  | D82: 24
A83: 2 | C83: =VLOOKUP(B76,#REF!,1,FALSE) ->  | D83: 23
A84: 3 | C84: =VLOOKUP(B77,#REF!,1,FALSE) ->  | D84: 22
A85: 4 | C85: =VLOOKUP(B78,#REF!,1,FALSE) ->  | D85: 19
A86: 7 | C86: =VLOOKUP(B79,#REF!,1,FALSE) ->  | D86: 21
A87: 5

Sheet 2017 fell results
A1: Race 1 Hoofstones | B1: Hoofstones
A2: Position | B2: Name | D2: Points | E2: overall champs lookup male | F2: overall champs lookup female
A3: 1 | B3: John-Paul Hopkinson | C3: =VLOOKUP(B3,'2017 fell Table'!$B$3:$B$61,1,FALSE) -> John-Paul Hopkinson | D3: =26-A3 -> 25 | E3: =VLOOKUP(B3,'Overall Champs'!C:C,1,FALSE) -> John-Paul Hopkinson | F3: =VLOOKUP(B3,'Overall Champs'!O:O,1,FALSE) -> 
A4: 2 | B4: Ian Willis | C4: =VLOOKUP(B4,'2017 fell Table'!$B$3:$B$61,1,FALSE) -> Ian Willis | D4: =26-A4 -> 24 | E4: =VLOOKUP(B4,'Overall Champs'!C:C,1,FALSE) -> Ian Willis | F4: =VLOOKUP(B4,'Overall Champs'!O:O,1,FALSE) -> 
A5: 3 | B5: Alfie Walker | C5: =VLOOKUP(B5,'2017 fell Table'!$B$3:$B$61,1,FALSE) -> Alfie Walker | D5: 23 | E5: =VLOOKUP(B5,'Overall Champs'!C:C,1,FALSE) -> Alfie Walker | F5: =VLOOKUP(B5,'Overall Champs'!O:O,1,FALSE) -> 
A6: 4 | B6: Paul Crabtree | C6: =VLOOKUP(B6,'2017 fell Table'!$B$3:$B$61,1,FALSE) -> Paul Crabtree | D6: 22 | E6: =VLOOKUP(B6,'Overall Champs'!C:C,1,FALSE) -> Paul Crabtree | F6: =VLOOKUP(B6,'Overall Champs'!O:O,1,FALSE) -> 
A7: 5 | B7: Dave Copping | C7: =VLOOKUP(B7,'2017 fell Table'!$B$3:$B$61,1,FALSE) ->  | D7: 21 | E7: =VLOOKUP(B7,'Overall Champs'!C:C,1,FALSE) -> Dave Copping | F7: =VLOOKUP(B7,'Overall Champs'!O:O,1,FALSE) -> 
A8: 6 | B8: Peter Lloyd | C8: =VLOOKUP(B8,'2017 fell Table'!$B$3:$B$61,1,FALSE) -> Peter Lloyd | D8: 20 | E8: =VLOOKUP(B8,'Overall Champs'!C:C,1,FALSE) -> Peter Lloyd | F8: =VLOOKUP(B8,'Overall Champs'!O:O,1,FALSE) -> 
A9: 7 | B9: Richard Butter | C9: =VLOOKUP(B9,'2017 fell Table'!$B$3:$B$61,1,FALSE) -> Richard Butter | D9: 19 | E9: =VLOOKUP(B9,'Overall Champs'!C:C,1,FALSE) -> Richard Butter | F9: =VLOOKUP(B9,'Overall Champs'!O:O,1,FALSE) -> 
A10: 1 | B10: Hannah Thom | C10: =VLOOKUP(B10,'2017 fell Table'!$B$3:$B$61,1,FALSE) -> Hannah Thom | D10: 25 | E10: =VLOOKUP(B10,'Overall Champs'!C:C,1,FALSE) ->  | F10: =VLOOKUP(B10,'Overall Champs'!O:O,1,FALSE) -> Hannah Thom
A11: 8 | B11: Tim Thom | C11: =VLOOKUP(B11,'2017 fell Table'!$B$3:$B$61,1,FALSE) -> Tim Thom | D11: 18 | E11: =VLOOKUP(B11,'Overall Champs'!C:C,1,FALSE) -> Tim Thom | F11: =VLOOKUP(B11,'Overall Champs'!O:O,1,FALSE) -> 
A12: 2 | B12: Hilary Barber | C12: =VLOOKUP(B12,'2017 fell Table'!$B$3:$B$61,1,FALSE) -> Hilary Barber | D12: 24 | E12: =VLOOKUP(B12,'Overall Champs'!C:C,1,FALSE) ->  | F12: =VLOOKUP(B12,'Overall Champs'!O:O,1,FALSE) -> Hilary Barber
A13: 9 | B13: Paul Sessford | C13: =VLOOKUP(B13,'2017 fell Table'!$B$3:$B$61,1,FALSE) -> Paul Sessford | D13: 17 | E13: =VLOOKUP(B13,'Overall Champs'!C:C,1,FALSE) -> Paul Sessford | F13: =VLOOKUP(B13,'Overall Champs'!O:O,1,FALSE) -> 
A14: 3 | B14: Tracey Hodgson | C14: =VLOOKUP(B14,'2017 fell Table'!$B$3:$B$61,1,FALSE) -> Tracey Hodgson | D14: 23 | E14: =VLOOKUP(B14,'Overall Champs'!C:C,1,FALSE) ->  | F14: =VLOOKUP(B14,'Overall Champs'!O:O,1,FALSE) -> Tracey Hodgson
E15: =VLOOKUP(B15,'Overall Champs'!C:C,1,FALSE) ->  | F15: =VLOOKUP(B15,'Overall Champs'!O:O,1,FALSE) -> 
A16: Race 2 | B16: Bleasdale
A17: Position | B17: Name | D17: Points
A18: 1 | B18: Ian Willis | C18: =VLOOKUP(B18,'2017 fell Table'!$B$3:$B$61,1,FALSE) -> Ian Willis | D18: =26-A18 -> 25 | E18: =VLOOKUP(B18,'Overall Champs'!C:C,1,FALSE) -> Ian Willis | F18: =VLOOKUP(B18,'Overall Champs'!O:O,1,FALSE) -> 
A19: 2 | B19: John-Paul Hopkinson | C19: =VLOOKUP(B19,'2017 fell Table'!$B$3:$B$61,1,FALSE) -> John-Paul Hopkinson | D19: =26-A19 -> 24 | E19: =VLOOKUP(B19,'Overall Champs'!C:C,1,FALSE) -> John-Paul Hopkinson | F19: =VLOOKUP(B19,'Overall Champs'!O:O,1,FALSE) -> 
A20: 3 | B20: Paul Crabtree | C20: =VLOOKUP(B20,'2017 fell Table'!$B$3:$B$61,1,FALSE) -> Paul Crabtree | D20: 23 | E20: =VLOOKUP(B20,'Overall Champs'!C:C,1,FALSE) -> Paul Crabtree | F20: =VLOOKUP(B20,'Overall Champs'!O:O,1,FALSE) -> 
A21: 4 | B21: Alfie Walker | C21: =VLOOKUP(B21,'2017 fell Table'!$B$3:$B$61,1,FALSE) -> Alfie Walker | D21: 22 | E21: =VLOOKUP(B21,'Overall Champs'!C:C,1,FALSE) -> Alfie Walker | F21: =VLOOKUP(B21,'Overall Champs'!O:O,1,FALSE) -> 
A22: 5 | B22: Dave Evans | C22: =VLOOKUP(B22,'2017 fell Table'!$B$3:$B$61,1,FALSE) -> Dave Evans | D22: 21 | E22: =VLOOKUP(B22,'Overall Champs'!C:C,1,FALSE) -> Dave Evans | F22: =VLOOKUP(B22,'Overall Champs'!O:O,1,FALSE) -> 
A23: 6 | B23: John Conroy | C23: =VLOOKUP(B23,'2017 fell Table'!$B$3:$B$61,1,FALSE) -> John Conroy | D23: 20 | E23: =VLOOKUP(B23,'Overall Champs'!C:C,1,FALSE) -> John Conroy | F23: =VLOOKUP(B23,'Overall Champs'!O:O,1,FALSE) -> 
A24: 7 | B24: Peter Lloyd | C24: =VLOOKUP(B24,'2017 fell Table'!$B$3:$B$61,1,FALSE) -> Peter Lloyd | D24: 19 | E24: =VLOOKUP(B24,'Overall Champs'!C:C,1,FALSE) -> Peter Lloyd | F24: =VLOOKUP(B24,'Overall Champs'!O:O,1,FALSE) -> 
A25: 8 | B25: Richard Butter | C25: =VLOOKUP(B25,'2017 fell Table'!$B$3:$B$61,1,FALSE) -> Richard Butter | D25: 18 | E25: =VLOOKUP(B25,'Overall Champs'!C:C,1,FALSE) -> Richard Butter | F25: =VLOOKUP(B25,'Overall Champs'!O:O,1,FALSE) -> 
A26: 1 | B26: Hilary Barber | C26: =VLOOKUP(B26,'2017 fell Table'!$B$3:$B$61,1,FALSE) -> Hilary Barber | D26: 25 | E26: =VLOOKUP(B26,'Overall Champs'!C:C,1,FALSE) ->  | F26: =VLOOKUP(B26,'Overall Champs'!O:O,1,FALSE) -> Hilary Barber
A27: 2 | B27: Tracey Hodgson | C27: =VLOOKUP(B27,'2017 fell Table'!$B$3:$B$61,1,FALSE) -> Tracey Hodgson | D27: 24 | E27: =VLOOKUP(B27,'Overall Champs'!C:C,1,FALSE) ->  | F27: =VLOOKUP(B27,'Overall Champs'!O:O,1,FALSE) -> Tracey Hodgson
A28: 9 | B28: Richard Hindle | C28: =VLOOKUP(B28,'2017 fell Table'!$B$3:$B$61,1,FALSE) -> Richard Hindle | D28: 17 | E28: =VLOOKUP(B28,'Overall Champs'!C:C,1,FALSE) -> Richard Hindle | F28: =VLOOKUP(B28,'Overall Champs'!O:O,1,FALSE) -> 
A29: 9 | C29: =VLOOKUP(B29,'2017 fell Table'!$B$3:$B$61,1,FALSE) ->  | D29: 17
A30: 4 | C30: =VLOOKUP(B30,'2017 fell Table'!$B$3:$B$61,1,FALSE) ->  | D30: 22
A31: 5 | C31: =VLOOKUP(B31,'2017 fell Table'!$B$3:$B$61,1,FALSE) ->  | D31: 21
A33: Race 3 | B33: Stan Bradshaw
A34: Position | B34: Name | D34: Points
A35: 1 | B35: Scott Bairstow | C35: =VLOOKUP(B35,'2017 fell Table'!$B$3:$B$61,1,FALSE) -> Scott Bairstow | D35: =26-A35 -> 25 | E35: =VLOOKUP(B35,'Overall Champs'!C:C,1,FALSE) -> Scott Bairstow | F35: =VLOOKUP(B35,'Overall Champs'!O:O,1,FALSE) -> 
A36: 2 | B36: John-Paul Hopkinson | C36: =VLOOKUP(B36,'2017 fell Table'!$B$3:$B$61,1,FALSE) -> John-Paul Hopkinson | D36: =26-A36 -> 24 | E36: =VLOOKUP(B36,'Overall Champs'!C:C,1,FALSE) -> John-Paul Hopkinson | F36: =VLOOKUP(B36,'Overall Champs'!O:O,1,FALSE) -> 
A37: 3 | B37: Dave Evans | C37: =VLOOKUP(B37,'2017 fell Table'!$B$3:$B$61,1,FALSE) -> Dave Evans | D37: =26-A37 -> 23 | E37: =VLOOKUP(B37,'Overall Champs'!C:C,1,FALSE) -> Dave Evans | F37: =VLOOKUP(B37,'Overall Champs'!O:O,1,FALSE) -> 
A38: 4 | B38: Dave Copping | C38: =VLOOKUP(B38,'2017 fell Table'!$B$3:$B$61,1,FALSE) ->  | D38: 22 | E38: =VLOOKUP(B38,'Overall Champs'!C:C,1,FALSE) -> Dave Copping | F38: =VLOOKUP(B38,'Overall Champs'!O:O,1,FALSE) -> 
A39: 5 | B39: John Conroy | C39: =VLOOKUP(B39,'2017 fell Table'!$B$3:$B$61,1,FALSE) -> John Conroy | D39: 21 | E39: =VLOOKUP(B39,'Overall Champs'!C:C,1,FALSE) -> John Conroy | F39: =VLOOKUP(B39,'Overall Champs'!O:O,1,FALSE) -> 
A40: 6 | B40: Richard Butter | C40: =VLOOKUP(B40,'2017 fell Table'!$B$3:$B$61,1,FALSE) -> Richard Butter | D40: =26-A40 -> 20 | E40: =VLOOKUP(B40,'Overall Champs'!C:C,1,FALSE) -> Richard Butter | F40: =VLOOKUP(B40,'Overall Champs'!O:O,1,FALSE) -> 
A41: 1 | B41: Lorna Hubbard | C41: =VLOOKUP(B41,'2017 fell Table'!$B$3:$B$61,1,FALSE) -> Lorna Hubbard | D41: 25 | E41: =VLOOKUP(B41,'Overall Champs'!C:C,1,FALSE) ->  | F41: =VLOOKUP(B41,'Overall Champs'!O:O,1,FALSE) -> Lorna Hubbard
A42: 2 | B42: Hannah Thom | C42: =VLOOKUP(B42,'2017 fell Table'!$B$3:$B$61,1,FALSE) -> Hannah Thom | D42: 24 | E42: =VLOOKUP(B42,'Overall Champs'!C:C,1,FALSE) ->  | F42: =VLOOKUP(B42,'Overall Champs'!O:O,1,FALSE) -> Hannah Thom
A43: 7 | B43: Simon Wheeler | C43: =VLOOKUP(B43,'2017 fell Table'!$B$3:$B$61,1,FALSE) -> Simon Wheeler | D43: 19 | E43: =VLOOKUP(B43,'Overall Champs'!C:C,1,FALSE) -> Simon Wheeler | F43: =VLOOKUP(B43,'Overall Champs'!O:O,1,FALSE) -> 
A44: 8 | B44: Tim Thom | C44: =VLOOKUP(B44,'2017 fell Table'!$B$3:$B$61,1,FALSE) -> Tim Thom | D44: 18 | E44: =VLOOKUP(B44,'Overall Champs'!C:C,1,FALSE) -> Tim Thom | F44: =VLOOKUP(B44,'Overall Champs'!O:O,1,FALSE) -> 
A45: 3 | B45: Tracey Hodgson | C45: =VLOOKUP(B45,'2017 fell Table'!$B$3:$B$61,1,FALSE) -> Tracey Hodgson | D45: 23 | E45: =VLOOKUP(B45,'Overall Champs'!C:C,1,FALSE) ->  | F45: =VLOOKUP(B45,'Overall Champs'!O:O,1,FALSE) -> Tracey Hodgson
A46: 9 | B46: Richard Hindle | C46: =VLOOKUP(B46,'2017 fell Table'!$B$3:$B$61,1,FALSE) -> Richard Hindle | D46: 17 | E46: =VLOOKUP(B46,'Overall Champs'!C:C,1,FALSE) -> Richard Hindle | F46: =VLOOKUP(B46,'Overall Champs'!O:O,1,FALSE) -> 
A47: 4 | B47: Emma Dooks | C47: =VLOOKUP(B47,'2017 fell Table'!$B$3:$B$61,1,FALSE) -> Emma Dooks | D47: 22 | E47: =VLOOKUP(B47,'Overall Champs'!C:C,1,FALSE) ->  | F47: =VLOOKUP(B47,'Overall Champs'!O:O,1,FALSE) -> Emma Dooks
A48: 5 | B48: Diane MacDonald | C48: =VLOOKUP(B48,'2017 fell Table'!$B$3:$B$61,1,FALSE) -> Diane MacDonald | D48: 21 | E48: =VLOOKUP(B48,'Overall Champs'!C:C,1,FALSE) ->  | F48: =VLOOKUP(B48,'Overall Champs'!O:O,1,FALSE) -> Diane Macdonald
A50: Race 4 | B50: Coledale
A51: Position | B51: Name | D51: Points
A52: 1 | B52: Paul Crabtree | C52: =VLOOKUP(B52,'2017 fell Table'!$B$3:$B$61,1,FALSE) -> Paul Crabtree | D52: =26-A52 -> 25 | E52: =VLOOKUP(B52,'Overall Champs'!C:C,1,FALSE) -> Paul Crabtree | F52: =VLOOKUP(B52,'Overall Champs'!O:O,1,FALSE) -> 
A53: 2 | B53: Dave Evans | C53: =VLOOKUP(B53,'2017 fell Table'!$B$3:$B$61,1,FALSE) -> Dave Evans | D53: =26-A53 -> 24 | E53: =VLOOKUP(B53,'Overall Champs'!C:C,1,FALSE) -> Dave Evans | F53: =VLOOKUP(B53,'Overall Champs'!O:O,1,FALSE) -> 
A54: 3 | B54: John-Paul Hopkinson | C54: =VLOOKUP(B54,'2017 fell Table'!$B$3:$B$61,1,FALSE) -> John-Paul Hopkinson | D54: 23 | E54: =VLOOKUP(B54,'Overall Champs'!C:C,1,FALSE) -> John-Paul Hopkinson | F54: =VLOOKUP(B54,'Overall Champs'!O:O,1,FALSE) -> 
A55: 4 | B55: Peter Lloyd | C55: =VLOOKUP(B55,'2017 fell Table'!$B$3:$B$61,1,FALSE) -> Peter Lloyd | D55: 22 | E55: =VLOOKUP(B55,'Overall Champs'!C:C,1,FALSE) -> Peter Lloyd | F55: =VLOOKUP(B55,'Overall Champs'!O:O,1,FALSE) -> 
A56: 1 | B56: Hilary Barber | C56: =VLOOKUP(B56,'2017 fell Table'!$B$3:$B$61,1,FALSE) -> Hilary Barber | D56: 25 | E56: =VLOOKUP(B56,'Overall Champs'!C:C,1,FALSE) ->  | F56: =VLOOKUP(B56,'Overall Champs'!O:O,1,FALSE) -> Hilary Barber
A57: 5 | B57: Tim Thom | C57: =VLOOKUP(B57,'2017 fell Table'!$B$3:$B$61,1,FALSE) -> Tim Thom | D57: 21 | E57: =VLOOKUP(B57,'Overall Champs'!C:C,1,FALSE) -> Tim Thom | F57: =VLOOKUP(B57,'Overall Champs'!O:O,1,FALSE) -> 
A58: 6 | B58: Richard Hindle | C58: =VLOOKUP(B58,'2017 fell Table'!$B$3:$B$61,1,FALSE) -> Richard Hindle | D58: 20 | E58: =VLOOKUP(B58,'Overall Champs'!C:C,1,FALSE) -> Richard Hindle | F58: =VLOOKUP(B58,'Overall Champs'!O:O,1,FALSE) -> 
A59: 2 | B59: Tracey Hodgson | C59: =VLOOKUP(B59,'2017 fell Table'!$B$3:$B$61,1,FALSE) -> Tracey Hodgson | D59: 24 | E59: =VLOOKUP(B59,'Overall Champs'!C:C,1,FALSE) ->  | F59: =VLOOKUP(B59,'Overall Champs'!O:O,1,FALSE) -> Tracey Hodgson
A60: 3 | B60: Hannah Thom | C60: =VLOOKUP(B60,'2017 fell Table'!$B$3:$B$61,1,FALSE) -> Hannah Thom | D60: 23 | E60: =VLOOKUP(B60,'Overall Champs'!C:C,1,FALSE) ->  | F60: =VLOOKUP(B60,'Overall Champs'!O:O,1,FALSE) -> Hannah Thom
A61: 4 | C61: =VLOOKUP(B61,'2017 fell Table'!$B$3:$B$61,1,FALSE) ->  | D61: 22
A62: 7 | C62: =VLOOKUP(B62,'2017 fell Table'!$B$3:$B$61,1,FALSE) ->  | D62: 19
A63: 5 | C63: =VLOOKUP(B63,'2017 fell Table'!$B$3:$B$61,1,FALSE) ->  | D63: 21
A65: Race 5
A66: Position | B66: Name | D66: Points
A67: 1 | C67: =VLOOKUP(B67,'2017 fell Table'!$B$3:$B$61,1,FALSE) ->  | D67: =26-A67 -> 25
A68: 2 | C68: =VLOOKUP(B68,'2017 fell Table'!$B$3:$B$61,1,FALSE) ->  | D68: =26-A68 -> 24
A69: 3 | C69: =VLOOKUP(B69,'2017 fell Table'!$B$3:$B$61,1,FALSE) ->  | D69: 23
A70: 4 | C70: =VLOOKUP(B70,'2017 fell Table'!$B$3:$B$61,1,FALSE) ->  | D70: 22
A71: 1 | C71: =VLOOKUP(B71,'2017 fell Table'!$B$3:$B$61,1,FALSE) ->  | D71: 25
A72: 5 | C72: =VLOOKUP(B72,'2017 fell Table'!$B$3:$B$61,1,FALSE) ->  | D72: 21
A73: 6 | C73: =VLOOKUP(B73,'2017 fell Table'!$B$3:$B$61,1,FALSE) ->  | D73: 20
A74: 2 | C74: =VLOOKUP(B74,'2017 fell Table'!$B$3:$B$61,1,FALSE) ->  | D74: 24
A75: 3 | C75: =VLOOKUP(B75,'2017 fell Table'!$B$3:$B$61,1,FALSE) ->  | D75: 23
A76: 4 | C76: =VLOOKUP(B76,'2017 fell Table'!$B$3:$B$61,1,FALSE) ->  | D76: 22
A77: 7 | C77: =VLOOKUP(B77,'2017 fell Table'!$B$3:$B$61,1,FALSE) ->  | D77: 19
A78: 5 | C78: =VLOOKUP(B78,'2017 fell Table'!$B$3:$B$61,1,FALSE) ->  | D78: 21
A80: Race 6
A81: Position | B81: Name | D81: Points
A82: 1 | C82: =VLOOKUP(B82,'2017 fell Table'!$B$3:$B$61,1,FALSE) ->  | D82: =26-A82 -> 25
A83: 2 | C83: =VLOOKUP(B83,'2017 fell Table'!$B$3:$B$61,1,FALSE) ->  | D83: =26-A83 -> 24
A84: 3 | C84: =VLOOKUP(B84,'2017 fell Table'!$B$3:$B$61,1,FALSE) ->  | D84: 23
A85: 4 | C85: =VLOOKUP(B85,'2017 fell Table'!$B$3:$B$61,1,FALSE) ->  | D85: 22
A86: 1 | C86: =VLOOKUP(B86,'2017 fell Table'!$B$3:$B$61,1,FALSE) ->  | D86: 25
A87: 5 | C87: =VLOOKUP(B87,'2017 fell Table'!$B$3:$B$61,1,FALSE) ->  | D87: 21
A88: 6 | C88: =VLOOKUP(B88,'2017 fell Table'!$B$3:$B$61,1,FALSE) ->  | D88: 20
A89: 2 | C89: =VLOOKUP(B89,'2017 fell Table'!$B$3:$B$61,1,FALSE) ->  | D89: 24
A90: 3 | C90: =VLOOKUP(B90,'2017 fell Table'!$B$3:$B$61,1,FALSE) ->  | D90: 23
A91: 4 | C91: =VLOOKUP(B91,'2017 fell Table'!$B$3:$B$61,1,FALSE) ->  | D91: 22
A92: 7 | C92: =VLOOKUP(B92,'2017 fell Table'!$B$3:$B$61,1,FALSE) ->  | D92: 19
A93: 5 | C93: =VLOOKUP(B93,'2017 fell Table'!$B$3:$B$61,1,FALSE) ->  | D93: 21
A95: Race 7
A96: Position | B96: Name | D96: Points
A97: 1 | C97: =VLOOKUP(B97,'2017 fell Table'!$B$3:$B$61,1,FALSE) ->  | D97: =26-A97 -> 25
A98: 2 | C98: =VLOOKUP(B98,'2017 fell Table'!$B$3:$B$61,1,FALSE) ->  | D98: =26-A98 -> 24
A99: 3 | C99: =VLOOKUP(B99,'2017 fell Table'!$B$3:$B$61,1,FALSE) ->  | D99: 23
A100: 4 | C100: =VLOOKUP(B100,'2017 fell Table'!$B$3:$B$61,1,FALSE) ->  | D100: 22
A101: 1 | C101: =VLOOKUP(B101,'2017 fell Table'!$B$3:$B$61,1,FALSE) ->  | D101: 25
A102: 5 | C102: =VLOOKUP(B102,'2017 fell Table'!$B$3:$B$61,1,FALSE) ->  | D102: 21
A103: 6 | C103: =VLOOKUP(B103,'2017 fell Table'!$B$3:$B$61,1,FALSE) ->  | D103: 20
A104: 2 | C104: =VLOOKUP(B104,'2017 fell Table'!$B$3:$B$61,1,FALSE) ->  | D104: 24
A105: 3 | C105: =VLOOKUP(B105,'2017 fell Table'!$B$3:$B$61,1,FALSE) ->  | D105: 23
A106: 4 | C106: =VLOOKUP(B106,'2017 fell Table'!$B$3:$B$61,1,FALSE) ->  | D106: 22
A107: 7 | C107: =VLOOKUP(B107,'2017 fell Table'!$B$3:$B$61,1,FALSE) ->  | D107: 19
A108: 5 | C108: =VLOOKUP(B108,'2017 fell Table'!$B$3:$B$61,1,FALSE) ->  | D108: 21
A110: Race 8
A111: Position | B111: Name | D111: Points
A112: 1 | C112: =VLOOKUP(B112,'2017 fell Table'!$B$3:$B$61,1,FALSE) ->  | D112: =26-A112 -> 25
A113: 2 | C113: =VLOOKUP(B113,'2017 fell Table'!$B$3:$B$61,1,FALSE) ->  | D113: =26-A113 -> 24
A114: 3 | C114: =VLOOKUP(B114,'2017 fell Table'!$B$3:$B$61,1,FALSE) ->  | D114: 23
A115: 4 | C115: =VLOOKUP(B115,'2017 fell Table'!$B$3:$B$61,1,FALSE) ->  | D115: 22
A116: 1 | C116: =VLOOKUP(B116,'2017 fell Table'!$B$3:$B$61,1,FALSE) ->  | D116: 25
A117: 5 | C117: =VLOOKUP(B117,'2017 fell Table'!$B$3:$B$61,1,FALSE) ->  | D117: 21
A118: 6 | C118: =VLOOKUP(B118,'2017 fell Table'!$B$3:$B$61,1,FALSE) ->  | D118: 20
A119: 2 | C119: =VLOOKUP(B119,'2017 fell Table'!$B$3:$B$61,1,FALSE) ->  | D119: 24
A120: 3 | C120: =VLOOKUP(B120,'2017 fell Table'!$B$3:$B$61,1,FALSE) ->  | D120: 23
A121: 4 | C121: =VLOOKUP(B121,'2017 fell Table'!$B$3:$B$61,1,FALSE) ->  | D121: 22
A122: 7 | C122: =VLOOKUP(B122,'2017 fell Table'!$B$3:$B$61,1,FALSE) ->  | D122: 19
A123: 5 | C123: =VLOOKUP(B123,'2017 fell Table'!$B$3:$B$61,1,FALSE) ->  | D123: 21
A125: Race 9
A126: Position | B126: Name | D126: Points
A127: 1 | C127: =VLOOKUP(B127,'2017 fell Table'!$B$3:$B$61,1,FALSE) ->  | D127: =26-A127 -> 25
A128: 2 | C128: =VLOOKUP(B128,'2017 fell Table'!$B$3:$B$61,1,FALSE) ->  | D128: =26-A128 -> 24
A129: 3 | C129: =VLOOKUP(B129,'2017 fell Table'!$B$3:$B$61,1,FALSE) ->  | D129: 23
A130: 4 | C130: =VLOOKUP(B130,'2017 fell Table'!$B$3:$B$61,1,FALSE) ->  | D130: 22
A131: 1 | C131: =VLOOKUP(B131,'2017 fell Table'!$B$3:$B$61,1,FALSE) ->  | D131: 25
A132: 5 | C132: =VLOOKUP(B132,'2017 fell Table'!$B$3:$B$61,1,FALSE) ->  | D132: 21
A133: 6 | C133: =VLOOKUP(B133,'2017 fell Table'!$B$3:$B$61,1,FALSE) ->  | D133: 20
A134: 2 | C134: =VLOOKUP(B134,'2017 fell Table'!$B$3:$B$61,1,FALSE) ->  | D134: 24
A135: 3 | C135: =VLOOKUP(B135,'2017 fell Table'!$B$3:$B$61,1,FALSE) ->  | D135: 23
A136: 4 | C136: =VLOOKUP(B136,'2017 fell Table'!$B$3:$B$61,1,FALSE) ->  | D136: 22
A137: 7 | C137: =VLOOKUP(B137,'2017 fell Table'!$B$3:$B$61,1,FALSE) ->  | D137: 19
A138: 5 | C138: =VLOOKUP(B138,'2017 fell Table'!$B$3:$B$61,1,FALSE) ->  | D138: 21

Sheet 2017 Road results
A1: Race 1 | B1: Bradford 10k
A2: Position | B2: Name | C2: table look up | D2: Points | E2: overall champs lookup male | F2: overall champs lookup female
A3: 1 | B3: Craig Cooper | C3: =VLOOKUP(B3,'2017 Road Table'!$B$3:$B$58,1,FALSE) -> Craig Cooper | D3: =26-A3 -> 25 | E3: =VLOOKUP(B3,'Overall Champs'!C:C,1,FALSE) -> Craig Cooper | F3: =VLOOKUP(B3,'Overall Champs'!O:O,1,FALSE) ->  | H3: 1925 | I3: Craig Cooper | J3: Male | K3: M40 | L3: Keighley & Craven AC | M3: 00:40:25 | N3: 00:40:23 | O3: 43 | P3: 11 | Q3: 50
A4: 1 | B4: Tizz Woffenden | C4: =VLOOKUP(B4,'2017 Road Table'!$B$3:$B$58,1,FALSE) -> Tizz Woffenden | D4: 25 | E4: =VLOOKUP(B4,'Overall Champs'!C:C,1,FALSE) ->  | F4: =VLOOKUP(B4,'Overall Champs'!O:O,1,FALSE) -> Tizz Woffenden | H4: 1721 | I4: Elisa Woffenden | J4: Female | K4: F40 | L4: Keighley & Craven AC | M4: 00:41:10 | N4: 00:41:06 | O4: 8 | P4: 3 | Q4: 66
A5: 2 | B5: Sarah O'Sullivan | C5: =VLOOKUP(B5,'2017 Road Table'!$B$3:$B$58,1,FALSE) -> Sarah O'Sullivan | D5: 24 | E5: =VLOOKUP(B5,'Overall Champs'!C:C,1,FALSE) ->  | F5: =VLOOKUP(B5,'Overall Champs'!O:O,1,FALSE) -> Sarah O'Sullivan | H5: 964 | I5: Sarah O'Sullivan | J5: Female | K5: F40 | L5: Keighley & Craven AC | M5: 00:43:14 | N5: 00:43:11 | O5: 14 | P5: 6 | Q5: 125
A6: 2 | B6: Chris Tomes | C6: =VLOOKUP(B6,'2017 Road Table'!$B$3:$B$58,1,FALSE) -> Chris Tomes | D6: 24 | E6: =VLOOKUP(B6,'Overall Champs'!C:C,1,FALSE) -> Chris Tomes | F6: =VLOOKUP(B6,'Overall Champs'!O:O,1,FALSE) ->  | H6: 1084 | I6: Chris Tomes | J6: Male | K6: M60 | L6: Keighley & Craven AC | M6: 00:43:19 | N6: 00:43:16 | O6: 109 | P6: 6 | Q6: 133
A7: 3 | B7: Paul Wilson | C7: =VLOOKUP(B7,'2017 Road Table'!$B$3:$B$58,1,FALSE) -> Paul Wilson | D7: 23 | E7: =VLOOKUP(B7,'Overall Champs'!C:C,1,FALSE) -> Paul Wilson | F7: =VLOOKUP(B7,'Overall Champs'!O:O,1,FALSE) ->  | H7: 340 | I7: Paul Wilson | J7: Male | K7: M40 | L7: Keighley & Craven AC | M7: 00:44:06 | N7: 00:44:02 | O7: 136 | P7: 43 | Q7: 159
A8: 3 | B8: Amanda Sterling | C8: =VLOOKUP(B8,'2017 Road Table'!$B$3:$B$58,1,FALSE) -> Amanda Sterling | D8: 23 | E8: =VLOOKUP(B8,'Overall Champs'!C:C,1,FALSE) ->  | F8: =VLOOKUP(B8,'Overall Champs'!O:O,1,FALSE) -> Amanda Sterling | H8: 973 | I8: Amanda Sterling | J8: Female | K8: F40 | L8: Keighley & Craven AC | M8: 00:44:06 | N8: 00:44:00 | O8: 22 | P8: 9 | Q8: 158
A9: 4 | B9: Camille Askins | C9: =VLOOKUP(B9,'2017 Road Table'!$B$3:$B$58,1,FALSE) -> Camille Askins | D9: 22 | E9: =VLOOKUP(B9,'Overall Champs'!C:C,1,FALSE) ->  | F9: =VLOOKUP(B9,'Overall Champs'!O:O,1,FALSE) -> Camille Askins | H9: 948 | I9: Camille Askins | J9: Female | K9: F40 | L9: Keighley & Craven AC | M9: 00:44:28 | N9: 00:44:22 | O9: 25 | P9: 10 | Q9: 169
A10: 4 | B10: Richard Butter | C10: =VLOOKUP(B10,'2017 Road Table'!$B$3:$B$58,1,FALSE) -> Richard Butter | D10: =26-A10 -> 22 | E10: =VLOOKUP(B10,'Overall Champs'!C:C,1,FALSE) -> Richard Butter | F10: =VLOOKUP(B10,'Overall Champs'!O:O,1,FALSE) ->  | H10: 1158 | I10: Richard Butter | J10: Male | K10: M40 | M10: 00:44:51 | N10: 00:44:47 | O10: 150 | P10: 48 | Q10: 183
A11: 5 | B11: Anand Raval | C11: =VLOOKUP(B11,'2017 Road Table'!$B$3:$B$58,1,FALSE) -> Anand Raval | D11: 21 | E11: =VLOOKUP(B11,'Overall Champs'!C:C,1,FALSE) -> Anand Raval | F11: =VLOOKUP(B11,'Overall Champs'!O:O,1,FALSE) ->  | H11: 1745 | I11: Anand Raval | J11: Male | K11: MSen | L11: Keighley & Craven AC | M11: 00:46:51 | N11: 00:46:46 | O11: 226 | P11: 102 | Q11: 277
A12: 5 | B12: Kayleigh Fish | C12: =VLOOKUP(B12,'2017 Road Table'!$B$3:$B$58,1,FALSE) -> Kayleigh Fish | D12: 21 | E12: =VLOOKUP(B12,'Overall Champs'!C:C,1,FALSE) ->  | F12: =VLOOKUP(B12,'Overall Champs'!O:O,1,FALSE) -> Kayleigh Fish | H12: 2060 | I12: Kayleigh Fish | J12: Female | K12: FSen | L12: Keighley & Craven AC | M12: 00:47:49 | N12: 00:47:09 | O12: 48 | P12: 2 | Q12: 372
A13: 6 | B13: Hannah Yates | C13: =VLOOKUP(B13,'2017 Road Table'!$B$3:$B$58,1,FALSE) -> Hannah Yates | D13: 20 | E13: =VLOOKUP(B13,'Overall Champs'!C:C,1,FALSE) ->  | F13: =VLOOKUP(B13,'Overall Champs'!O:O,1,FALSE) -> Hannah Yates | H13: 1210 | I13: Hannah Yates | J13: Female | K13: FU21 | L13: Keighley & Craven AC | M13: 00:48:37 | N13: 00:48:32 | O13: 129 | P13: 7 | Q13: 621
E14: =VLOOKUP(B14,'Overall Champs'!C:C,1,FALSE) ->  | F14: =VLOOKUP(B14,'Overall Champs'!O:O,1,FALSE) ->  | H14: 1957 | I14: Gaynor Yates | J14: Female | K14: FU21 | L14: Keighley & Craven AC | M14: 00:53:01 | N14: 00:52:55
A15: 6 | B15: Simon Chester | C15: =VLOOKUP(B15,'2017 Road Table'!$B$3:$B$58,1,FALSE) -> Simon Chester | D15: =26-A15 -> 20 | E15: =VLOOKUP(B15,'Overall Champs'!C:C,1,FALSE) -> Simon Chester | F15: =VLOOKUP(B15,'Overall Champs'!O:O,1,FALSE) ->  | I15: Simon Chester | J15: Male | O15: 153 | P15: 55 | Q15: 698
A16: 7 | B16: Sarah Meikle | C16: =VLOOKUP(B16,'2017 Road Table'!$B$3:$B$58,1,FALSE) -> Sarah Meikle | D16: 19 | E16: =VLOOKUP(B16,'Overall Champs'!C:C,1,FALSE) ->  | F16: =VLOOKUP(B16,'Overall Champs'!O:O,1,FALSE) -> Sarah Meikle | H16: 593 | I16: Sarah Meikle | J16: Female | L16: Keighley & Craven AC | M16: 00:54:17 | N16: 00:54:17
A17: 8 | B17: Tracey Hodgson | C17: =VLOOKUP(B17,'2017 Road Table'!$B$3:$B$58,1,FALSE) -> Tracey Hodgson | D17: 18 | E17: =VLOOKUP(B17,'Overall Champs'!C:C,1,FALSE) ->  | F17: =VLOOKUP(B17,'Overall Champs'!O:O,1,FALSE) -> Tracey Hodgson | I17: Tracey Hodgson | J17: Female | O17: 197 | P17: 16 | Q17: 716
A18: 9 | B18: Luisa Lauren | C18: =VLOOKUP(B18,'2017 Road Table'!$B$3:$B$58,1,FALSE) -> Luisa Lauren | D18: 17 | E18: =VLOOKUP(B18,'Overall Champs'!C:C,1,FALSE) ->  | F18: =VLOOKUP(B18,'Overall Champs'!O:O,1,FALSE) -> Luisa Lauren | H18: 2011 | I18: Luisa Lauren | J18: Female | K18: F40 | L18: Keighley & Craven AC | M18: 00:55:58 | N18: 00:54:33 | O18: 219 | P18: 78 | Q18: 859
A19: 10 | B19: Paula Williams | C19: =VLOOKUP(B19,'2017 Road Table'!$B$3:$B$58,1,FALSE) -> Paula Williams | D19: 16 | E19: =VLOOKUP(B19,'Overall Champs'!C:C,1,FALSE) ->  | F19: =VLOOKUP(B19,'Overall Champs'!O:O,1,FALSE) -> Paula Williams | H19: 1368 | I19: Paula Williams | J19: Female | K19: F50 | L19: Keighley & Craven AC | M19: 00:56:44 | N19: 00:56:31 | O19: 261 | P19: 22 | Q19: 915
A20: 11 | B20: Catherine Bellwood | C20: =VLOOKUP(B20,'2017 Road Table'!$B$3:$B$58,1,FALSE) -> Catherine Bellwood | D20: 15 | E20: =VLOOKUP(B20,'Overall Champs'!C:C,1,FALSE) ->  | F20: =VLOOKUP(B20,'Overall Champs'!O:O,1,FALSE) -> Catherine Bellwood | H20: 1797 | I20: Catherine Bellwood | J20: Female | K20: F40 | L20: Keighley & Craven AC | M20: 00:58:03 | N20: 00:57:32 | O20: 495 | P20: 13 | Q20: 1327
A21: 12 | B21: Mary Hodgkiss | C21: =VLOOKUP(B21,'2017 Road Table'!$B$3:$B$58,1,FALSE) -> Mary Hodgkiss | D21: 14 | E21: =VLOOKUP(B21,'Overall Champs'!C:C,1,FALSE) ->  | F21: =VLOOKUP(B21,'Overall Champs'!O:O,1,FALSE) -> Mary Hodgkiss | H21: 518 | I21: Mary Hodgkiss | J21: Female | K21: F50 | L21: Keighley & Craven AC | M21: 01:05:45 | N21: 01:05:07 | O21: 597 | P21: 284 | Q21: 1470
A22: 13 | B22: Andrea Stead | C22: =VLOOKUP(B22,'2017 Road Table'!$B$3:$B$58,1,FALSE) -> Andrea Stead | D22: 13 | E22: =VLOOKUP(B22,'Overall Champs'!C:C,1,FALSE) ->  | F22: =VLOOKUP(B22,'Overall Champs'!O:O,1,FALSE) -> Andrea Stead | H22: 1746 | I22: Andrea Stead | J22: Female | K22: F60 | L22: Keighley & Craven AC | M22: 01:10:15 | N22: 01:09:48
K23: FSen

Sheet 2017 xc results
A1: Race 1 Yorkshire
A2: Position | B2: Name | D2: Points | E2: overall champs lookup | F2: overall champs lookup
A3: 1 | B3: Ian Willis | C3: =VLOOKUP(B3,'2017 xc Table'!$B$3:$B$60,1,FALSE) -> Ian Willis | D3: =26-A3 -> 25 | E3: =VLOOKUP(B3,'Overall Champs'!C:C,1,FALSE) -> Ian Willis | F3: =VLOOKUP(B3,'Overall Champs'!O:O,1,FALSE) -> 
A4: 2 | B4: Scott Bairstow | C4: =VLOOKUP(B4,'2017 xc Table'!$B$3:$B$60,1,FALSE) -> Scott Bairstow | D4: 24 | E4: =VLOOKUP(B4,'Overall Champs'!C:C,1,FALSE) -> Scott Bairstow | F4: =VLOOKUP(B4,'Overall Champs'!O:O,1,FALSE) -> 
A5: 3 | B5: John Conroy | C5: =VLOOKUP(B5,'2017 xc Table'!$B$3:$B$60,1,FALSE) -> John Conroy | D5: 23 | E5: =VLOOKUP(B5,'Overall Champs'!C:C,1,FALSE) -> John Conroy | F5: =VLOOKUP(B5,'Overall Champs'!O:O,1,FALSE) -> 
A6: 1 | B6: Tizz Woffenden | C6: =VLOOKUP(B6,'2017 xc Table'!$B$3:$B$60,1,FALSE) -> Tizz Woffenden | D6: 25 | E6: =VLOOKUP(B6,'Overall Champs'!C:C,1,FALSE) ->  | F6: =VLOOKUP(B6,'Overall Champs'!O:O,1,FALSE) -> Tizz Woffenden
A7: 2 | B7: Claire Cooper | C7: =VLOOKUP(B7,'2017 xc Table'!$B$3:$B$60,1,FALSE) -> Claire Cooper | D7: 24 | E7: =VLOOKUP(B7,'Overall Champs'!C:C,1,FALSE) ->  | F7: =VLOOKUP(B7,'Overall Champs'!O:O,1,FALSE) -> Claire Cooper
A8: 3 | B8: Sarah O'Sullivan | C8: =VLOOKUP(B8,'2017 xc Table'!$B$3:$B$60,1,FALSE) -> Sarah O'Sullivan | D8: 23 | E8: =VLOOKUP(B8,'Overall Champs'!C:C,1,FALSE) ->  | F8: =VLOOKUP(B8,'Overall Champs'!O:O,1,FALSE) -> Sarah O'Sullivan
A9: 4 | B9: Angela Paxton | C9: =VLOOKUP(B9,'2017 xc Table'!$B$3:$B$60,1,FALSE) -> Angela Paxton | D9: 22 | E9: =VLOOKUP(B9,'Overall Champs'!C:C,1,FALSE) ->  | F9: =VLOOKUP(B9,'Overall Champs'!O:O,1,FALSE) -> Angela Paxton
A10: 5 | B10: Camille Askins | C10: =VLOOKUP(B10,'2017 xc Table'!$B$3:$B$60,1,FALSE) -> Camille Askins | D10: 21 | E10: =VLOOKUP(B10,'Overall Champs'!C:C,1,FALSE) ->  | F10: =VLOOKUP(B10,'Overall Champs'!O:O,1,FALSE) -> Camille Askins
C11: =VLOOKUP(B11,'2017 xc Table'!$B$3:$B$60,1,FALSE) ->  | D11: 26 | E11: =VLOOKUP(B11,'Overall Champs'!C:C,1,FALSE) ->  | F11: =VLOOKUP(B11,'Overall Champs'!O:O,1,FALSE) -> 
C12: =VLOOKUP(B12,'2017 xc Table'!$B$3:$B$60,1,FALSE) ->  | D12: 26 | E12: =VLOOKUP(B12,'Overall Champs'!C:C,1,FALSE) ->  | F12: =VLOOKUP(B12,'Overall Champs'!O:O,1,FALSE) -> 
C13: =VLOOKUP(B13,'2017 xc Table'!$B$3:$B$60,1,FALSE) ->  | D13: 26 | E13: =VLOOKUP(B13,'Overall Champs'!C:C,1,FALSE) ->  | F13: =VLOOKUP(B13,'Overall Champs'!O:O,1,FALSE) -> 
E14: =VLOOKUP(B14,'Overall Champs'!C:C,1,FALSE) ->  | F14: =VLOOKUP(B14,'Overall Champs'!O:O,1,FALSE) -> 
A15: Race 2 National
A16: Position | B16: Name | D16: Points
A17: 1 | B17: Scott Bairstow | C17: =VLOOKUP(B17,'2017 xc Table'!$B$3:$B$60,1,FALSE) -> Scott Bairstow | D17: =26-A17 -> 25
A18: 2 | B18: John Conroy | C18: =VLOOKUP(B18,'2017 xc Table'!$B$3:$B$60,1,FALSE) -> John Conroy | D18: =26-A18 -> 24
A19: 3 | C19: =VLOOKUP(B19,'2017 xc Table'!$B$3:$B$60,1,FALSE) ->  | D19: 23
A20: 4 | C20: =VLOOKUP(B20,'2017 xc Table'!$B$3:$B$60,1,FALSE) ->  | D20: 22
A21: 5 | C21: =VLOOKUP(B21,'2017 xc Table'!$B$3:$B$60,1,FALSE) ->  | D21: 21
A22: 6 | C22: =VLOOKUP(B22,'2017 xc Table'!$B$3:$B$60,1,FALSE) ->  | D22: 20
A23: 7 | C23: =VLOOKUP(B23,'2017 xc Table'!$B$3:$B$60,1,FALSE) ->  | D23: 19
A24: 8 | C24: =VLOOKUP(B24,'2017 xc Table'!$B$3:$B$60,1,FALSE) ->  | D24: 18
A25: 1 | C25: =VLOOKUP(B25,'2017 xc Table'!$B$3:$B$60,1,FALSE) ->  | D25: 25
A26: 2 | C26: =VLOOKUP(B26,'2017 xc Table'!$B$3:$B$60,1,FALSE) ->  | D26: 24
A27: 9 | C27: =VLOOKUP(B27,'2017 xc Table'!$B$3:$B$60,1,FALSE) ->  | D27: 17
A28: 9 | C28: =VLOOKUP(B28,'2017 xc Table'!$B$3:$B$60,1,FALSE) ->  | D28: 17
A29: 4 | C29: =VLOOKUP(B29,'2017 xc Table'!$B$3:$B$60,1,FALSE) ->  | D29: 22
A30: 5 | C30: =VLOOKUP(B30,'2017 xc Table'!$B$3:$B$60,1,FALSE) ->  | D30: 21
A32: Race 3 | B32: Stan Bradshaw
A33: Position | B33: Name | D33: Points
A34: 1 | C34: =VLOOKUP(B34,'2017 xc Table'!$B$3:$B$60,1,FALSE) ->  | D34: =26-A34 -> 25
A35: 2 | C35: =VLOOKUP(B35,'2017 xc Table'!$B$3:$B$60,1,FALSE) ->  | D35: =26-A35 -> 24
A36: 3 | C36: =VLOOKUP(B36,'2017 xc Table'!$B$3:$B$60,1,FALSE) ->  | D36: =26-A36 -> 23
A37: 4 | C37: =VLOOKUP(B37,'2017 xc Table'!$B$3:$B$60,1,FALSE) ->  | D37: 22
A38: 5 | C38: =VLOOKUP(B38,'2017 xc Table'!$B$3:$B$60,1,FALSE) ->  | D38: 21
A39: 1 | C39: =VLOOKUP(B39,'2017 xc Table'!$B$3:$B$60,1,FALSE) ->  | D39: 25
A40: 2 | C40: =VLOOKUP(B40,'2017 xc Table'!$B$3:$B$60,1,FALSE) ->  | D40: 24
A41: 6 | C41: =VLOOKUP(B41,'2017 xc Table'!$B$3:$B$60,1,FALSE) ->  | D41: 20
A42: 7 | C42: =VLOOKUP(B42,'2017 xc Table'!$B$3:$B$60,1,FALSE) ->  | D42: 19
A43: 3 | C43: =VLOOKUP(B43,'2017 xc Table'!$B$3:$B$60,1,FALSE) ->  | D43: 23
A44: 8 | C44: =VLOOKUP(B44,'2017 xc Table'!$B$3:$B$60,1,FALSE) ->  | D44: 18
A45: 4 | C45: =VLOOKUP(B45,'2017 xc Table'!$B$3:$B$60,1,FALSE) ->  | D45: 22
A46: 5 | C46: =VLOOKUP(B46,'2017 xc Table'!$B$3:$B$60,1,FALSE) ->  | D46: 21
A48: Race 4
A49: Position | B49: Name | D49: Points
A50: 1 | C50: =VLOOKUP(B50,'2017 xc Table'!$B$3:$B$60,1,FALSE) ->  | D50: =26-A50 -> 25
A51: 2 | C51: =VLOOKUP(B51,'2017 xc Table'!$B$3:$B$60,1,FALSE) ->  | D51: =26-A51 -> 24
A52: 3 | C52: =VLOOKUP(B52,'2017 xc Table'!$B$3:$B$60,1,FALSE) ->  | D52: 23
A53: 4 | C53: =VLOOKUP(B53,'2017 xc Table'!$B$3:$B$60,1,FALSE) ->  | D53: 22
A54: 1 | C54: =VLOOKUP(B54,'2017 xc Table'!$B$3:$B$60,1,FALSE) ->  | D54: 25
A55: 5 | C55: =VLOOKUP(B55,'2017 xc Table'!$B$3:$B$60,1,FALSE) ->  | D55: 21
A56: 6 | C56: =VLOOKUP(B56,'2017 xc Table'!$B$3:$B$60,1,FALSE) ->  | D56: 20
A57: 2 | C57: =VLOOKUP(B57,'2017 xc Table'!$B$3:$B$60,1,FALSE) ->  | D57: 24
A58: 3 | C58: =VLOOKUP(B58,'2017 xc Table'!$B$3:$B$60,1,FALSE) ->  | D58: 23
A59: 4 | C59: =VLOOKUP(B59,'2017 xc Table'!$B$3:$B$60,1,FALSE) ->  | D59: 22
A60: 7 | C60: =VLOOKUP(B60,'2017 xc Table'!$B$3:$B$60,1,FALSE) ->  | D60: 19
A61: 5 | C61: =VLOOKUP(B61,'2017 xc Table'!$B$3:$B$60,1,FALSE) ->  | D61: 21
A63: Race 5
A64: Position | B64: Name | D64: Points
A65: 1 | C65: =VLOOKUP(B65,'2017 xc Table'!$B$3:$B$60,1,FALSE) ->  | D65: =26-A65 -> 25
A66: 2 | C66: =VLOOKUP(B66,'2017 xc Table'!$B$3:$B$60,1,FALSE) ->  | D66: =26-A66 -> 24
A67: 3 | C67: =VLOOKUP(B67,'2017 xc Table'!$B$3:$B$60,1,FALSE) ->  | D67: 23
A68: 4 | C68: =VLOOKUP(B68,'2017 xc Table'!$B$3:$B$60,1,FALSE) ->  | D68: 22
A69: 1 | C69: =VLOOKUP(B69,'2017 xc Table'!$B$3:$B$60,1,FALSE) ->  | D69: 25
A70: 5 | C70: =VLOOKUP(B70,'2017 xc Table'!$B$3:$B$60,1,FALSE) ->  | D70: 21
A71: 6 | C71: =VLOOKUP(B71,'2017 xc Table'!$B$3:$B$60,1,FALSE) ->  | D71: 20
A72: 2 | C72: =VLOOKUP(B72,'2017 xc Table'!$B$3:$B$60,1,FALSE) ->  | D72: 24
A73: 3 | C73: =VLOOKUP(B73,'2017 xc Table'!$B$3:$B$60,1,FALSE) ->  | D73: 23
A74: 4 | C74: =VLOOKUP(B74,'2017 xc Table'!$B$3:$B$60,1,FALSE) ->  | D74: 22
A75: 7 | C75: =VLOOKUP(B75,'2017 xc Table'!$B$3:$B$60,1,FALSE) ->  | D75: 19
A76: 5 | C76: =VLOOKUP(B76,'2017 xc Table'!$B$3:$B$60,1,FALSE) ->  | D76: 21
A78: Race 6
A79: Position | B79: Name | D79: Points
A80: 1 | C80: =VLOOKUP(B80,'2017 xc Table'!$B$3:$B$60,1,FALSE) ->  | D80: =26-A80 -> 25
A81: 2 | C81: =VLOOKUP(B81,'2017 xc Table'!$B$3:$B$60,1,FALSE) ->  | D81: =26-A81 -> 24
A82: 3 | C82: =VLOOKUP(B82,'2017 xc Table'!$B$3:$B$60,1,FALSE) ->  | D82: 23
A83: 4 | C83: =VLOOKUP(B83,'2017 xc Table'!$B$3:$B$60,1,FALSE) ->  | D83: 22
A84: 1 | C84: =VLOOKUP(B84,'2017 xc Table'!$B$3:$B$60,1,FALSE) ->  | D84: 25
A85: 5 | C85: =VLOOKUP(B85,'2017 xc Table'!$B$3:$B$60,1,FALSE) ->  | D85: 21
A86: 6 | C86: =VLOOKUP(B86,'2017 xc Table'!$B$3:$B$60,1,FALSE) ->  | D86: 20
A87: 2 | C87: =VLOOKUP(B87,'2017 xc Table'!$B$3:$B$60,1,FALSE) ->  | D87: 24
A88: 3 | C88: =VLOOKUP(B88,'2017 xc Table'!$B$3:$B$60,1,FALSE) ->  | D88: 23
A89: 4 | C89: =VLOOKUP(B89,'2017 xc Table'!$B$3:$B$60,1,FALSE) ->  | D89: 22
A90: 7 | C90: =VLOOKUP(B90,'2017 xc Table'!$B$3:$B$60,1,FALSE) ->  | D90: 19
A91: 5 | C91: =VLOOKUP(B91,'2017 xc Table'!$B$3:$B$60,1,FALSE) ->  | D91: 21
A93: Race 7
A94: Position | B94: Name | D94: Points
A95: 1 | C95: =VLOOKUP(B95,'2017 xc Table'!$B$3:$B$60,1,FALSE) ->  | D95: =26-A95 -> 25
A96: 2 | C96: =VLOOKUP(B96,'2017 xc Table'!$B$3:$B$60,1,FALSE) ->  | D96: =26-A96 -> 24
A97: 3 | C97: =VLOOKUP(B97,'2017 xc Table'!$B$3:$B$60,1,FALSE) ->  | D97: 23
A98: 4 | C98: =VLOOKUP(B98,'2017 xc Table'!$B$3:$B$60,1,FALSE) ->  | D98: 22
A99: 1 | C99: =VLOOKUP(B99,'2017 xc Table'!$B$3:$B$60,1,FALSE) ->  | D99: 25
A100: 5 | C100: =VLOOKUP(B100,'2017 xc Table'!$B$3:$B$60,1,FALSE) ->  | D100: 21
A101: 6 | C101: =VLOOKUP(B101,'2017 xc Table'!$B$3:$B$60,1,FALSE) ->  | D101: 20
A102: 2 | C102: =VLOOKUP(B102,'2017 xc Table'!$B$3:$B$60,1,FALSE) ->  | D102: 24
A103: 3 | C103: =VLOOKUP(B103,'2017 xc Table'!$B$3:$B$60,1,FALSE) ->  | D103: 23
A104: 4 | C104: =VLOOKUP(B104,'2017 xc Table'!$B$3:$B$60,1,FALSE) ->  | D104: 22
A105: 7 | C105: =VLOOKUP(B105,'2017 xc Table'!$B$3:$B$60,1,FALSE) ->  | D105: 19
A106: 5 | C106: =VLOOKUP(B106,'2017 xc Table'!$B$3:$B$60,1,FALSE) ->  | D106: 21
A108: Race 8
A109: Position | B109: Name | D109: Points
A110: 1 | C110: =VLOOKUP(B110,'2017 xc Table'!$B$3:$B$60,1,FALSE) ->  | D110: =26-A110 -> 25
A111: 2 | C111: =VLOOKUP(B111,'2017 xc Table'!$B$3:$B$60,1,FALSE) ->  | D111: =26-A111 -> 24
A112: 3 | C112: =VLOOKUP(B112,'2017 xc Table'!$B$3:$B$60,1,FALSE) ->  | D112: 23
A113: 4 | C113: =VLOOKUP(B113,'2017 xc Table'!$B$3:$B$60,1,FALSE) ->  | D113: 22
A114: 1 | C114: =VLOOKUP(B114,'2017 xc Table'!$B$3:$B$60,1,FALSE) ->  | D114: 25
A115: 5 | C115: =VLOOKUP(B115,'2017 xc Table'!$B$3:$B$60,1,FALSE) ->  | D115: 21
A116: 6 | C116: =VLOOKUP(B116,'2017 xc Table'!$B$3:$B$60,1,FALSE) ->  | D116: 20
A117: 2 | C117: =VLOOKUP(B117,'2017 xc Table'!$B$3:$B$60,1,FALSE) ->  | D117: 24
A118: 3 | C118: =VLOOKUP(B118,'2017 xc Table'!$B$3:$B$60,1,FALSE) ->  | D118: 23
A119: 4 | C119: =VLOOKUP(B119,'2017 xc Table'!$B$3:$B$60,1,FALSE) ->  | D119: 22
A120: 7 | C120: =VLOOKUP(B120,'2017 xc Table'!$B$3:$B$60,1,FALSE) ->  | D120: 19
A121: 5 | C121: =VLOOKUP(B121,'2017 xc Table'!$B$3:$B$60,1,FALSE) ->  | D121: 21
A123: Race 9
A124: Position | B124: Name | D124: Points
A125: 1 | C125: =VLOOKUP(B125,'2017 xc Table'!$B$3:$B$60,1,FALSE) ->  | D125: =26-A125 -> 25
A126: 2 | C126: =VLOOKUP(B126,'2017 xc Table'!$B$3:$B$60,1,FALSE) ->  | D126: =26-A126 -> 24
A127: 3 | C127: =VLOOKUP(B127,'2017 xc Table'!$B$3:$B$60,1,FALSE) ->  | D127: 23
A128: 4 | C128: =VLOOKUP(B128,'2017 xc Table'!$B$3:$B$60,1,FALSE) ->  | D128: 22
A129: 1 | C129: =VLOOKUP(B129,'2017 xc Table'!$B$3:$B$60,1,FALSE) ->  | D129: 25
A130: 5 | C130: =VLOOKUP(B130,'2017 xc Table'!$B$3:$B$60,1,FALSE) ->  | D130: 21
A131: 6 | C131: =VLOOKUP(B131,'2017 xc Table'!$B$3:$B$60,1,FALSE) ->  | D131: 20
A132: 2 | C132: =VLOOKUP(B132,'2017 xc Table'!$B$3:$B$60,1,FALSE) ->  | D132: 24
A133: 3 | C133: =VLOOKUP(B133,'2017 xc Table'!$B$3:$B$60,1,FALSE) ->  | D133: 23
A134: 4 | C134: =VLOOKUP(B134,'2017 xc Table'!$B$3:$B$60,1,FALSE) ->  | D134: 22
A135: 7 | C135: =VLOOKUP(B135,'2017 xc Table'!$B$3:$B$60,1,FALSE) ->  | D135: 19
A136: 5 | C136: =VLOOKUP(B136,'2017 xc Table'!$B$3:$B$60,1,FALSE) ->  | D136: 21

Sheet Age Cat
F2: Abigail Knowles | G2: J
F3: Adie Greenwood | G3: V50
F4: Adrian Dunbar | G4: V60
F5: Adrian Thomas | G5: V40
F6: Adrienne Preston | G6: V40
F7: Alan Abbott | G7: V40
F8: Alan Kirton | G8: V50
F9: Alan Turner | G9: V50
F10: Alan Wright | G10: V50
F11: Alastair Wallace | G11: V40
F12: Alfie Walker | G12: V40
F13: Alison Walker | G13: V40
F14: Alistair Gavins | G14: V50
F15: Amanda Burgess | G15: V40
F16: Amanda Harrison | G16: V40
F17: Amanda Sterling | G17: V40
F18: Amy McKechnie | G18: V30
F19: Anand Raval | G19: V30 | H19: s
F20: Andrew Brett | G20: V40
F21: Andrew Conally | G21: V30
F22: Andrew Green | G22: V60
F23: Andrew Hardaker | G23: V40
F24: Andrew Jackson | G24: V40
F25: Andrew Kitts | G25: V50
F26: Andrew Travis | G26: V40
F27: Angela Paxton | G27: V50
F28: Ania Sroka | G28: V50
F29: Ann Hopkinson | G29: V50
F30: Anthony B Knowles | G30: V70
F31: Anthony Raby | G31: V70
F32: Arthur John Leng | G32: V60
F33: Ayesha Thompson | G33: V30
F34: Ben Timbers | G34: V40
F35: Beverley Hardie | G35: V40
F36: Brett Weeden | G36: V50
F37: Camille Askins | G37: V40
F38: Caren Crabtree | G38: V40
F39: Carl Jenkinson | G39: V40
F40: Carol Young | G40: V50
F41: Carole Allan | G41: V50
F42: Carolyn Howell | G42: V60
F43: Catherine Bellwood | G43: V50
F44: Catherine Mercer | G44: V50
F45: Charlie Marshall | G45: V50
F46: Chris Shaw | G46: V50
F47: Chris Tomes | G47: V60
F48: Christine Chapman | G48: V40
F49: Christopher (UKA 3612486) Whittel | G49: V50
F50: Christopher Howe | G50: V30
F51: Christopher Jones | G51: V60
F52: Christopher Loftus | G52: V40
F53: Claire Aspden | G53: S
F54: Claire Cooper | G54: V30
F55: Clare Smallwood | G55: V40
F56: Clare Smurthwaite | G56: V40
F57: Craig Cooper | G57: V40
F58: Craig Shearer | G58: S
F59: Damian Petrucci | G59: V40
F60: Dave Evans | G60: V30
F61: David Copping | G61: V50
F62: David Hamer | G62: V50
F63: David Ramsden | G63: V70
F64: David Seaward | G64: V50
F65: Dawn Rollins | G65: V40
F66: Debbie Spurr | G66: V50
F67: Deborah Peacock | G67: V50
F68: Deborah Walton | G68: V40
F69: Des Fretwell | G69: V60
F70: Diane Barker | G70: V40
F71: Diane Collett | G71: V50
F72: Diane Macdonald | G72: V40
F73: Diane Whiteoak | G73: V40
F74: Dick Ballantine | G74: V50
F75: Donna Chester | G75: V30
F76: Elizabeth Green | G76: V40
F77: Emily Whitehead | G77: V40
F78: Emma Dooks | G78: V50
F79: Emma Timbers | G79: V40
F80: Emma Wadsworth | G80: V40
F81: Estelle Willis | G81: V40
F82: Fiona Gostling | G82: V50
F83: Frankie Coulthread | G83: S
F84: Fraser Hardie | G84: V50
F85: Gary Chapman | G85: V40
F86: Gary Searby | G86: V40
F87: Gary Ward | G87: V40
F88: George Dennis | G88: S
F89: Georgie Sian Knappy | G89: S
F90: Gill Petrucci | G90: V40
F91: Gillian Robinson | G91: V50
F92: Hannah Thom | G92: S
F93: Hannah Yates | G93: S
F94: Heather Clapham | G94: V30
F95: Heather Crow | G95: S
F96: Helen Brett | G96: V40
F97: Helen Jackson | G97: V40
F98: Helen Margaret Cawkwell | G98: V50
F99: Helen Wright | G99: V30
F100: Hellen Collins | G100: V30
F101: Hilary Barber | G101: V50
F102: Hinda Hardaker | G102: V40
F103: Iain Ross Turner | G103: V30
F104: Ian H Smith | G104: V50
F105: Ian Lewis | G105: V40
F106: Ian Willis | G106: V40
F107: Irene Yates | G107: V50
F108: Jackie Kirton | G108: V50
F109: Jackie Rishton | G109: V50
F110: James Ashley | G110: V40
F111: James Callaghan | G111: V40
F112: James Pawson | G112: V30
F113: Jane Johnson | G113: V50
F114: Jane Sedgwick | G114: V40
F115: Janet-Alison Arkwright | G115: V40
F116: Jeremy O'Connell | G116: V50
F117: Jeremy Wilkinson | G117: V40
F118: Jill Bell | G118: V50
F119: Jim Roberts | G119: V40
F120: Jo Lewis | G120: V50
F121: Joanne Conroy | G121: V40
F122: Joanne Gaunt | G122: V40
F123: Joanne Griffiths | G123: V30
F124: Joe Atherton | G124: V30
F125: John Andrew Dennis | G125: V50
F126: John Conroy | G126: V40
F127: John-Henry Johnson | G127: S
F128: John-Paul Hopkinson | G128: V40
F129: Jonnie Butler | G129: V60
F130: Judith Ellis | G130: V50
F131: Julie Hart | G131: V50
F132: Julie Narey | G132: V50
F133: Karen Ballantine | G133: V40
F134: Katie Atherton | G134: V30
F135: Katrina Snowden | G135: V40
F136: Kayleigh Fish | G136: S
F137: Keith Waddingham | G137: V50
F138: Kellie Butterfield | G138: V40
F139: Kim Shaw | G139: V50
F140: Kirsty Pettit | G140: V40
F141: Koleen Wright | G141: V50
F142: Larraine Stott | G142: V40
F143: Laura Jackson | G143: V60
F144: Lee Ricketts | G144: V40
F145: Lesley Ann Knappy | G145: V50
F146: Liam Spencer | G146: V40
F147: Linda Green | G147: V60
F148: Liz Crosland | G148: V40
F149: Lorna Hubbard | G149: V30
F150: Lorraine Bamfield | G150: V40
F151: Louise Marriott | G151: V30
F152: Luisa Lauren | G152: V50
F153: Lukas Lee | G153: V40
F154: Lyn Wigfield | G154: V70
F155: Lynn Murphy | G155: V40
F156: Maria Walker | G156: V50
F157: Mark Knowles | G157: V40
F158: Mark Redhead | G158: V50
F159: Mark Whitehead | G159: V40
F160: Marko Gvero | G160: V40
F161: Mary Hodgkiss | G161: V60
F162: Matt House | G162: V30
F163: Matthew Clayton-Stead | G163: V30
F164: Melissa Brown | G164: V40
F165: Mike Tomison | G165: V50
F166: Mike Watson | G166: V50
F167: Neil Edward Palmer | G167: V50
F168: Neil Palmer | G168: V50
F169: Neville Whittingham | G169: V50
F170: Nick Brown | G170: V40
F171: Nick Dewell | G171: V40
F172: Nigel Atkinson | G172: V40
F173: Nikhola Haley | G173: V40
F174: P Margaret Marsden | G174: V50
F175: Paul Crabtree | G175: V40
F176: Paul King | G176: V40
F177: Paul Morris | G177: V60
F178: Paul Sessford | G178: V50
F179: Paul Wilson | G179: V40
F180: Paula Williams | G180: V40
F181: Peter Bramham | G181: V60
F182: Peter Lloyd | G182: V30
F183: Peter McDermott | G183: V60
F184: Peter Mitchell | G184: V70
F185: Peter Smith | G185: V30
F186: Peter Thompson | G186: V50
F187: Pin Dhillon-Downey | G187: V40
F188: Pippa Barret | G188: S
F189: Rachel Gasior | G189: V40
F190: Rachel Lyles | G190: V30
F191: Rachel Russell | G191: V40
F192: Rachel Welsh | G192: V40
F193: Ray Causten | G193: V50
F194: Ria Bright | G194: V40
F195: Richard Ayrton | G195: V40
F196: Richard Butter | G196: V40
F197: Richard Hindle | G197: V60
F198: Richard Lund | G198: V50
F199: Richard Taylor | G199: V40
F200: Robert Hudson | G200: V40
F201: Robert Thompson | G201: J
... 59 more rows
